Body,Body name,Service label,Service division label,Expenditure category,Detailed expenditure type,Detailed Expenditure Code,Date paid,Transaction Number,Net Amount,Capital or revenue,Supplier name
http://statistics.data.gov.uk/doc/local-authority/00DA,Leeds City Council,Central & Corporate Functions,Commercial Services Trading Services,Supplies and Services,Operational Materials,205,14-Jan-2011,1101-00001,870.83,R,A & A ELECTRICAL DISTRIBUTORS LTD
http://statistics.data.gov.uk/doc/local-authority/00DA,Leeds City Council,Central & Corporate Functions,Commercial Services Trading Services,Supplies and Services,Operational Materials,205,21-Jan-2011,1101-00002,850.80,R,A ANDREWS & SONS (MARBLES & TILES)
http://statistics.data.gov.uk/doc/local-authority/00DA,East North East Homes Leeds,East - North East,Technical Services,Supplies and Services,Other Materials,205,28-Jan-2011,1101-00003,680.80,R,A ANDREWS & SONS (MARBLES & TILES)
http://statistics.data.gov.uk/doc/local-authority/00DA,Leeds City Council,Environment & Neighbourhoods,Streetscene Environmental Services,Supplies and Services,Other Hired And Contracted Services,265,14-Jan-2011,1101-00004,3536.00,R,A APPLEYARD
http://statistics.data.gov.uk/doc/local-authority/00DA,Leeds City Council,Central & Corporate Functions,Commercial Services Trading Services,Supplies and Services,Other Hired And Contracted Services,265,21-Jan-2011,1101-00005,1176.00,R,A BUSH (ENGINEERING SERVICES) LTD
http://statistics.data.gov.uk/doc/local-authority/00DA,East North East Homes Leeds,East - North East,Technical Services,Supplies and Services,Other Hired And Contracted Services,265,04-Jan-2011,1101-00006,685.70,R,A D Simpson Ltd
http://statistics.data.gov.uk/doc/local-authority/00DA,East North East Homes Leeds,East - North East,Technical Services,Supplies and Services,Other Hired And Contracted Services,265,04-Jan-2011,1101-00007,1259.90,R,A D Simpson Ltd
http://statistics.data.gov.uk/doc/local-authority/00DA,East North East Homes Leeds,East - North East,Technical Services,Supplies and Services,Other Hired And Contracted Services,265,04-Jan-2011,1101-00008,891.60,R,A D Simpson Ltd
http://statistics.data.gov.uk/doc/local-authority/00DA,East North East Homes Leeds,East - North East,Technical Services,Supplies and Services,Other Hired And Contracted Services,265,04-Jan-2011,1101-00009,434.95,R,A D Simpson Ltd
http://statistics.data.gov.uk/doc/local-authority/00DA,East North East Homes Leeds,East - North East,Technical Services,Supplies and Services,Other Hired And Contracted Services,265,04-Jan-2011,1101-00010,861.92,R,A D Simpson Ltd
http://statistics.data.gov.uk/doc/local-authority/00DA,East North East Homes Leeds,East - North East,Technical Services,Supplies and Services,Other Hired And Contracted Services,265,04-Jan-2011,1101-00011,567.40,R,A D Simpson Ltd
http://statistics.data.gov.uk/doc/local-authority/00DA,East North East Homes Leeds,East - North East,Technical Services,Supplies and Services,Other Hired And Contracted Services,265,04-Jan-2011,1101-00012,1322.60,R,A D Simpson Ltd
http://statistics.data.gov.uk/doc/local-authority/00DA,East North East Homes Leeds,East - North East,Technical Services,Supplies and Services,Other Hired And Contracted Services,265,07-Jan-2011,1101-00013,821.51,R,A D Simpson Ltd
http://statistics.data.gov.uk/doc/local-authority/00DA,East North East Homes Leeds,East - North East,Technical Services,Supplies and Services,Other Hired And Contracted Services,265,07-Jan-2011,1101-00014,670.10,R,A D Simpson Ltd
http://statistics.data.gov.uk/doc/local-authority/00DA,East North East Homes Leeds,East - North East,Technical Services,Supplies and Services,Other Hired And Contracted Services,265,18-Jan-2011,1101-00015,1318.10,R,A D Simpson Ltd
http://statistics.data.gov.uk/doc/local-authority/00DA,East North East Homes Leeds,East - North East,Technical Services,Supplies and Services,Other Hired And Contracted Services,265,18-Jan-2011,1101-00016,945.40,R,A D Simpson Ltd
http://statistics.data.gov.uk/doc/local-authority/00DA,East North East Homes Leeds,East - North East,Technical Services,Supplies and Services,Other Hired And Contracted Services,265,18-Jan-2011,1101-00017,2149.03,R,A D Simpson Ltd
http://statistics.data.gov.uk/doc/local-authority/00DA,East North East Homes Leeds,East - North East,Technical Services,Supplies and Services,Other Hired And Contracted Services,265,24-Jan-2011,1101-00018,1733.65,R,A D Simpson Ltd
http://statistics.data.gov.uk/doc/local-authority/00DA,East North East Homes Leeds,East - North East,Technical Services,Supplies and Services,Other Hired And Contracted Services,265,24-Jan-2011,1101-00019,973.37,R,A D Simpson Ltd
http://statistics.data.gov.uk/doc/local-authority/00DA,East North East Homes Leeds,East - North East,Technical Services,Supplies and Services,Other Hired And Contracted Services,265,24-Jan-2011,1101-00020,848.95,R,A D Simpson Ltd
http://statistics.data.gov.uk/doc/local-authority/00DA,East North East Homes Leeds,East - North East,Technical Services,Supplies and Services,Other Hired And Contracted Services,265,24-Jan-2011,1101-00021,444.75,R,A D Simpson Ltd
http://statistics.data.gov.uk/doc/local-authority/00DA,East North East Homes Leeds,East - North East,Technical Services,Supplies and Services,Other Hired And Contracted Services,265,24-Jan-2011,1101-00022,622.06,R,A D Simpson Ltd
http://statistics.data.gov.uk/doc/local-authority/00DA,East North East Homes Leeds,East - North East,Technical Services,Supplies and Services,Other Hired And Contracted Services,265,24-Jan-2011,1101-00023,516.77,R,A D Simpson Ltd
http://statistics.data.gov.uk/doc/local-authority/00DA,East North East Homes Leeds,East - North East,Technical Services,Supplies and Services,Other Hired And Contracted Services,265,24-Jan-2011,1101-00024,1476.50,R,A D Simpson Ltd
http://statistics.data.gov.uk/doc/local-authority/00DA,East North East Homes Leeds,East - North East,Technical Services,Supplies and Services,Other Hired And Contracted Services,265,24-Jan-2011,1101-00025,2366.41,R,A D Simpson Ltd
http://statistics.data.gov.uk/doc/local-authority/00DA,East North East Homes Leeds,East - North East,Technical Services,Supplies and Services,Other Hired And Contracted Services,265,24-Jan-2011,1101-00026,487.97,R,A D Simpson Ltd
http://statistics.data.gov.uk/doc/local-authority/00DA,East North East Homes Leeds,East - North East,Technical Services,Supplies and Services,Other Hired And Contracted Services,265,24-Jan-2011,1101-00027,2101.29,R,A D Simpson Ltd
http://statistics.data.gov.uk/doc/local-authority/00DA,East North East Homes Leeds,East - North East,Technical Services,Employees,Temporary Staff-Basic,009,24-Jan-2011,1101-00028,920.00,R,A D Simpson Ltd
http://statistics.data.gov.uk/doc/local-authority/00DA,East North East Homes Leeds,East - North East,Technical Services,Employees,Temporary Staff-Basic,009,24-Jan-2011,1101-00029,920.00,R,A D Simpson Ltd
http://statistics.data.gov.uk/doc/local-authority/00DA,East North East Homes Leeds,East - North East,Technical Services,Employees,Temporary Staff-Basic,009,24-Jan-2011,1101-00030,920.00,R,A D Simpson Ltd
http://statistics.data.gov.uk/doc/local-authority/00DA,East North East Homes Leeds,East - North East,Technical Services,Supplies and Services,Other Hired And Contracted Services,265,31-Jan-2011,1101-00031,565.00,R,A D Simpson Ltd
http://statistics.data.gov.uk/doc/local-authority/00DA,East North East Homes Leeds,East - North East,Technical Services,Supplies and Services,Other Hired And Contracted Services,265,31-Jan-2011,1101-00032,432.40,R,A D Simpson Ltd
http://statistics.data.gov.uk/doc/local-authority/00DA,East North East Homes Leeds,East - North East,Technical Services,Supplies and Services,Other Hired And Contracted Services,265,31-Jan-2011,1101-00033,561.00,R,A D Simpson Ltd
http://statistics.data.gov.uk/doc/local-authority/00DA,Leeds City Council,Childrens Services,Early Years Service,Third Party Payments,Services Rendered By Voluntary Sector,505,07-Jan-2011,1101-00034,13051.13,R,A E SPEIGHT
http://statistics.data.gov.uk/doc/local-authority/00DA,Leeds City Council,City Development,Highways,Supplies and Services,Other Hired And Contracted Services,265,28-Jan-2011,1101-00035,732.42,R,A E YATES LTD
http://statistics.data.gov.uk/doc/local-authority/00DA,Leeds City Council,City Development,Highways,Supplies and Services,Other Hired And Contracted Services,265,28-Jan-2011,1101-00036,2054.42,R,A E YATES LTD
http://statistics.data.gov.uk/doc/local-authority/00DA,Leeds City Council,City Development,Highways,Supplies and Services,Other Hired And Contracted Services,265,28-Jan-2011,1101-00037,883.84,R,A E YATES LTD
http://statistics.data.gov.uk/doc/local-authority/00DA,Leeds City Council,Childrens Services,Director Of Childrens Services,Supplies and Services,Other Hired And Contracted Services,265,20-Jan-2011,1101-00038,2221.65,R,A J  Bailey
http://statistics.data.gov.uk/doc/local-authority/00DA,Leeds City Council,Central & Corporate Functions,Commercial Services Trading Services,Supplies and Services,Other Hired And Contracted Services,265,21-Jan-2011,1101-00039,11979.24,R,A J H  Pump Supply & Repair Ltd
http://statistics.data.gov.uk/doc/local-authority/00DA,Leeds City Council,City Development,Libraries Arts & Heritage,Supplies and Services,Publication And Promotion,267,04-Jan-2011,1101-00040,600.00,R,A J PARASKOS
http://statistics.data.gov.uk/doc/local-authority/00DA,Leeds City Council,City Development,Recreation,Supplies and Services,Other Hired And Contracted Services,265,20-Jan-2011,1101-00041,560.00,R,A Y CREATIVE SERVICES
http://statistics.data.gov.uk/doc/local-authority/00DA,Leeds City Council,Environment & Neighbourhoods,Housing Needs,Transport,Public Transport Expenses,310,28-Jan-2011,1101-00042,2175.00,R,A ZOOM TAXIS
http://statistics.data.gov.uk/doc/local-authority/00DA,Leeds City Council,City Development,Economic Development,Supplies and Services,Other Hired And Contracted Services,265,13-Jan-2011,1101-00043,946.00,R,AA Media Ltd
http://statistics.data.gov.uk/doc/local-authority/00DA,Leeds City Council,Adult Social Care,Services For Older People - 65 And Over,Third Party Payments,Residential Care Emi,571,19-Jan-2011,1101-00044,1189.60,R,ABBEY LEA RESIDENTIAL CARE HOME
http://statistics.data.gov.uk/doc/local-authority/00DA,Leeds City Council,Adult Social Care,Services For Adults Under 65 Mental/Dis,Third Party Payments,Residential,580,19-Jan-2011,1101-00045,1174.20,R,Abbeydale Care Home
http://statistics.data.gov.uk/doc/local-authority/00DA,Leeds City Council,Childrens Services,Early Years Service,Third Party Payments,Services Rendered By Other Organisations,511,06-Jan-2011,1101-00046,3091.06,R,ABC DAYCARE
http://statistics.data.gov.uk/doc/local-authority/00DA,Leeds City Council,Childrens Services,Early Years Service,Third Party Payments,Services Rendered By Other Organisations,511,07-Jan-2011,1101-00047,4808.31,R,ABC NURSERY AT LUFC
http://statistics.data.gov.uk/doc/local-authority/00DA,Leeds City Council,City Development,Economic Development,Supplies and Services,Other Hired And Contracted Services,265,24-Jan-2011,1101-00048,3466.74,R,ABDN
http://statistics.data.gov.uk/doc/local-authority/00DA,Leeds City Council,Environment & Neighbourhoods,Regeneration,Supplies and Services,'Well Being' Large Grants Projects,230,12-Jan-2011,1101-00049,2500.00,R,Aberford Parish Plan
http://statistics.data.gov.uk/doc/local-authority/00DA,Leeds City Council,Environment & Neighbourhoods,Environmental Health,Capital,CONSTRUCTION,3,04-Jan-2011,1101-00050,4500.00,C,ABLE BATHING & BUILDING CONTRACTORS LTD
http://statistics.data.gov.uk/doc/local-authority/00DA,Leeds City Council,Environment & Neighbourhoods,Environmental Health,Capital,CONSTRUCTION,3,07-Jan-2011,1101-00051,4400.00,C,ABLE BATHING & BUILDING CONTRACTORS LTD
http://statistics.data.gov.uk/doc/local-authority/00DA,Leeds City Council,Environment & Neighbourhoods,Environmental Health,Capital,CONSTRUCTION,3,07-Jan-2011,1101-00052,2650.00,C,ABLE BATHING & BUILDING CONTRACTORS LTD
http://statistics.data.gov.uk/doc/local-authority/00DA,Leeds City Council,Environment & Neighbourhoods,Environmental Health,Capital,CONSTRUCTION,3,07-Jan-2011,1101-00053,2940.00,C,ABLE BATHING & BUILDING CONTRACTORS LTD
http://statistics.data.gov.uk/doc/local-authority/00DA,Leeds City Council,Environment & Neighbourhoods,Environmental Health,Capital,CONSTRUCTION,3,07-Jan-2011,1101-00054,4400.00,C,ABLE BATHING & BUILDING CONTRACTORS LTD
http://statistics.data.gov.uk/doc/local-authority/00DA,Leeds City Council,Environment & Neighbourhoods,Environmental Health,Capital,CONSTRUCTION,3,07-Jan-2011,1101-00055,4400.00,C,ABLE BATHING & BUILDING CONTRACTORS LTD
http://statistics.data.gov.uk/doc/local-authority/00DA,Leeds City Council,Environment & Neighbourhoods,Environmental Health,Capital,CONSTRUCTION,3,07-Jan-2011,1101-00056,4970.00,C,ABLE BATHING & BUILDING CONTRACTORS LTD
http://statistics.data.gov.uk/doc/local-authority/00DA,Leeds City Council,Environment & Neighbourhoods,Environmental Health,Capital,CONSTRUCTION,3,07-Jan-2011,1101-00057,4400.00,C,ABLE BATHING & BUILDING CONTRACTORS LTD
http://statistics.data.gov.uk/doc/local-authority/00DA,Leeds City Council,Environment & Neighbourhoods,Environmental Health,Capital,CONSTRUCTION,3,07-Jan-2011,1101-00058,4400.00,C,ABLE BATHING & BUILDING CONTRACTORS LTD
http://statistics.data.gov.uk/doc/local-authority/00DA,Leeds City Council,Environment & Neighbourhoods,Environmental Health,Capital,CONSTRUCTION,3,18-Jan-2011,1101-00059,1500.00,C,ABLE BATHING & BUILDING CONTRACTORS LTD
http://statistics.data.gov.uk/doc/local-authority/00DA,Leeds City Council,Environment & Neighbourhoods,Environmental Health,Capital,CONSTRUCTION,3,18-Jan-2011,1101-00060,4510.00,C,ABLE BATHING & BUILDING CONTRACTORS LTD
http://statistics.data.gov.uk/doc/local-authority/00DA,Leeds City Council,Environment & Neighbourhoods,Environmental Health,Capital,CONSTRUCTION,3,31-Jan-2011,1101-00061,4400.00,C,ABLE BATHING & BUILDING CONTRACTORS LTD
http://statistics.data.gov.uk/doc/local-authority/00DA,Leeds City Council,City Development,Recreation,Capital,CONSTRUCTION,3,05-Jan-2011,1101-00062,6985.00,C,Able Canopies Ltd
http://statistics.data.gov.uk/doc/local-authority/00DA,Leeds City Council,City Development,Recreation,Supplies and Services,Other Hired And Contracted Services,265,19-Jan-2011,1101-00063,1625.00,R,Abyss Recycling
http://statistics.data.gov.uk/doc/local-authority/00DA,Leeds City Council,City Development,Recreation,Supplies and Services,Other Hired And Contracted Services,265,19-Jan-2011,1101-00064,1960.00,R,Abyss Recycling
http://statistics.data.gov.uk/doc/local-authority/00DA,Education Leeds,Education Leeds,Education Leeds,Supplies and Services,Other Hired And Contracted Services,265,05-Jan-2011,1101-00065,435.00,R,ACADEMIC APPOINTMENTS LTD
http://statistics.data.gov.uk/doc/local-authority/00DA,Education Leeds,Education Leeds,Education Leeds,Supplies and Services,Other Hired And Contracted Services,265,06-Jan-2011,1101-00066,1951.00,R,ACADEMIC APPOINTMENTS LTD
http://statistics.data.gov.uk/doc/local-authority/00DA,Education Leeds,Education Leeds,Education Leeds,Supplies and Services,Other Hired And Contracted Services,265,06-Jan-2011,1101-00067,725.00,R,ACADEMIC APPOINTMENTS LTD
http://statistics.data.gov.uk/doc/local-authority/00DA,Education Leeds,Education Leeds,Education Leeds,Supplies and Services,Other Hired And Contracted Services,265,07-Jan-2011,1101-00068,1572.00,R,ACADEMIC APPOINTMENTS LTD
http://statistics.data.gov.uk/doc/local-authority/00DA,Education Leeds,Education Leeds,Education Leeds,Supplies and Services,Other Hired And Contracted Services,265,07-Jan-2011,1101-00069,808.00,R,ACADEMIC APPOINTMENTS LTD
http://statistics.data.gov.uk/doc/local-authority/00DA,Education Leeds,Education Leeds,Education Leeds,Supplies and Services,Other Hired And Contracted Services,265,07-Jan-2011,1101-00070,964.00,R,ACADEMIC APPOINTMENTS LTD
http://statistics.data.gov.uk/doc/local-authority/00DA,Education Leeds,Education Leeds,Education Leeds,Supplies and Services,Other Hired And Contracted Services,265,07-Jan-2011,1101-00071,606.00,R,ACADEMIC APPOINTMENTS LTD
http://statistics.data.gov.uk/doc/local-authority/00DA,Education Leeds,Education Leeds,Education Leeds,Supplies and Services,Other Hired And Contracted Services,265,13-Jan-2011,1101-00072,1610.00,R,ACADEMIC APPOINTMENTS LTD
http://statistics.data.gov.uk/doc/local-authority/00DA,Education Leeds,Education Leeds,Education Leeds,Supplies and Services,Other Hired And Contracted Services,265,13-Jan-2011,1101-00073,725.00,R,ACADEMIC APPOINTMENTS LTD
http://statistics.data.gov.uk/doc/local-authority/00DA,Education Leeds,Education Leeds,Education Leeds,Supplies and Services,Other Hired And Contracted Services,265,14-Jan-2011,1101-00074,1951.00,R,ACADEMIC APPOINTMENTS LTD
http://statistics.data.gov.uk/doc/local-authority/00DA,Education Leeds,Education Leeds,Education Leeds,Supplies and Services,Other Hired And Contracted Services,265,18-Jan-2011,1101-00075,1490.00,R,ACADEMIC APPOINTMENTS LTD
http://statistics.data.gov.uk/doc/local-authority/00DA,Education Leeds,Education Leeds,Education Leeds,Supplies and Services,Other Hired And Contracted Services,265,20-Jan-2011,1101-00076,1749.00,R,ACADEMIC APPOINTMENTS LTD
http://statistics.data.gov.uk/doc/local-authority/00DA,Education Leeds,Education Leeds,Education Leeds,Supplies and Services,Other Hired And Contracted Services,265,20-Jan-2011,1101-00077,725.00,R,ACADEMIC APPOINTMENTS LTD
http://statistics.data.gov.uk/doc/local-authority/00DA,East North East Homes Leeds,East - North East,Technical Services,Supplies and Services,Other Materials,205,07-Jan-2011,1101-00078,1494.19,R,ACCESS LOCKSMITHS (LEEDS) LIMITED
http://statistics.data.gov.uk/doc/local-authority/00DA,East North East Homes Leeds,East - North East,Technical Services,Premises,H.R.A. - Special Maintenance,106,13-Jan-2011,1101-00079,762.00,R,ACCESS LOCKSMITHS (LEEDS) LIMITED
http://statistics.data.gov.uk/doc/local-authority/00DA,Education Leeds,Education Leeds,Education Leeds,Supplies and Services,Other Hired And Contracted Services,265,28-Jan-2011,1101-00080,6120.00,R,Accipio Learning Ltd
http://statistics.data.gov.uk/doc/local-authority/00DA,Leeds City Council,City Development,Recreation,Premises,Premises Security Services,162,05-Jan-2011,1101-00081,438.24,R,ACCLAIMED SECURITY SERVICES
http://statistics.data.gov.uk/doc/local-authority/00DA,Leeds City Council,City Development,Recreation,Premises,Premises Security Services,162,07-Jan-2011,1101-00082,438.24,R,ACCLAIMED SECURITY SERVICES
http://statistics.data.gov.uk/doc/local-authority/00DA,Leeds City Council,City Development,Recreation,Supplies and Services,Security Services(Non Infrastructure),262,07-Jan-2011,1101-00083,1215.24,R,ACCLAIMED SECURITY SERVICES
http://statistics.data.gov.uk/doc/local-authority/00DA,Leeds City Council,City Development,Recreation,Premises,Premises Security Services,162,13-Jan-2011,1101-00084,438.24,R,ACCLAIMED SECURITY SERVICES
http://statistics.data.gov.uk/doc/local-authority/00DA,Leeds City Council,City Development,Recreation,Supplies and Services,Security Services(Non Infrastructure),262,14-Jan-2011,1101-00085,1062.72,R,ACCLAIMED SECURITY SERVICES
http://statistics.data.gov.uk/doc/local-authority/00DA,Leeds City Council,City Development,Recreation,Supplies and Services,Security Services(Non Infrastructure),262,18-Jan-2011,1101-00086,1087.32,R,ACCLAIMED SECURITY SERVICES
http://statistics.data.gov.uk/doc/local-authority/00DA,Leeds City Council,City Development,Recreation,Supplies and Services,Security Services(Non Infrastructure),262,18-Jan-2011,1101-00087,1098.72,R,ACCLAIMED SECURITY SERVICES
http://statistics.data.gov.uk/doc/local-authority/00DA,Leeds City Council,City Development,Recreation,Supplies and Services,Security Services(Non Infrastructure),262,18-Jan-2011,1101-00088,1077.48,R,ACCLAIMED SECURITY SERVICES
http://statistics.data.gov.uk/doc/local-authority/00DA,Leeds City Council,City Development,Recreation,Premises,Premises Security Services,162,19-Jan-2011,1101-00089,730.40,R,ACCLAIMED SECURITY SERVICES
http://statistics.data.gov.uk/doc/local-authority/00DA,Leeds City Council,City Development,Recreation,Supplies and Services,Security Services(Non Infrastructure),262,21-Jan-2011,1101-00090,1062.72,R,ACCLAIMED SECURITY SERVICES
http://statistics.data.gov.uk/doc/local-authority/00DA,Leeds City Council,City Development,Recreation,Premises,Premises Security Services,162,21-Jan-2011,1101-00091,438.24,R,ACCLAIMED SECURITY SERVICES
http://statistics.data.gov.uk/doc/local-authority/00DA,Leeds City Council,City Development,Recreation,Supplies and Services,Security Services(Non Infrastructure),262,24-Jan-2011,1101-00092,1161.12,R,ACCLAIMED SECURITY SERVICES
http://statistics.data.gov.uk/doc/local-authority/00DA,Leeds City Council,City Development,Recreation,Supplies and Services,Security Services(Non Infrastructure),262,25-Jan-2011,1101-00093,1426.80,R,ACCLAIMED SECURITY SERVICES
http://statistics.data.gov.uk/doc/local-authority/00DA,Leeds City Council,City Development,Recreation,Premises,Premises Security Services,162,28-Jan-2011,1101-00094,949.52,R,ACCLAIMED SECURITY SERVICES
http://statistics.data.gov.uk/doc/local-authority/00DA,Leeds City Council,City Development,Recreation,Supplies and Services,Security Services(Non Infrastructure),262,28-Jan-2011,1101-00095,2287.80,R,ACCLAIMED SECURITY SERVICES
http://statistics.data.gov.uk/doc/local-authority/00DA,Leeds City Council,Insurance,Insurance,Supplies and Services,Insurance Claims,248,04-Jan-2011,1101-00096,55525.00,R,Accountant General of the Senior Court
http://statistics.data.gov.uk/doc/local-authority/00DA,Leeds City Council,Insurance,Insurance,Supplies and Services,Insurance Claims,248,27-Jan-2011,1101-00097,1950.00,R,Accountant General of the Senior Court
http://statistics.data.gov.uk/doc/local-authority/00DA,Education Leeds,Education Leeds,Education Leeds,Supplies and Services,Bought in Professional Services,277,14-Jan-2011,1101-00098,6525.00,R,ACKTON PASTURES JUNIOR & INFANTS SCHOOL
http://statistics.data.gov.uk/doc/local-authority/00DA,Leeds City Council,Adult Social Care,Services For Older People - 65 And Over,Third Party Payments,Nursing Home,570,19-Jan-2011,1101-00099,1202.88,R,ACKWORTH HOUSE
http://statistics.data.gov.uk/doc/local-authority/00DA,Leeds City Council,Central & Corporate Functions,Commercial Services Trading Services,Supplies and Services,Other Hired And Contracted Services,265,07-Jan-2011,1101-00100,480.00,R,ACM
http://statistics.data.gov.uk/doc/local-authority/00DA,Leeds City Council,City Development,Recreation,Supplies and Services,Operational Furniture And Equipment,203,20-Jan-2011,1101-00101,846.00,R,ACM
http://statistics.data.gov.uk/doc/local-authority/00DA,Leeds City Council,Central & Corporate Functions,Commercial Services Trading Services,Supplies and Services,Other Hired And Contracted Services,265,07-Jan-2011,1101-00102,2090.00,R,ACME
http://statistics.data.gov.uk/doc/local-authority/00DA,Leeds City Council,Central & Corporate Functions,Commercial Services Trading Services,Supplies and Services,Crockery Cutlery & Utensils,221,20-Jan-2011,1101-00103,1153.00,R,ACME
http://statistics.data.gov.uk/doc/local-authority/00DA,Leeds City Council,Childrens Services,Early Years Service,Third Party Payments,Services Rendered By Other Organisations,511,07-Jan-2011,1101-00104,7654.05,R,ACORNS NURSERY
http://statistics.data.gov.uk/doc/local-authority/00DA,Leeds City Council,Childrens Services,Early Years Service,Third Party Payments,Services Rendered By Other Organisations,511,07-Jan-2011,1101-00105,8373.66,R,ACRE WOOD CHILDRENS NURSERY
http://statistics.data.gov.uk/doc/local-authority/00DA,Leeds City Council,Childrens Services,Other Childrens And Families Services,Third Party Payments,Adoptions - Allowances,560,12-Jan-2011,1101-00106,20640.00,R,Action For Children
http://statistics.data.gov.uk/doc/local-authority/00DA,Leeds City Council,Childrens Services,Children Looked After,Third Party Payments,Independent Fostering Agencies,509,12-Jan-2011,1101-00107,8894.34,R,Action For Children
http://statistics.data.gov.uk/doc/local-authority/00DA,Leeds City Council,Childrens Services,Children Looked After,Third Party Payments,Services Rendered By Other Organisations,511,17-Jan-2011,1101-00108,200023.00,R,Action For Children
http://statistics.data.gov.uk/doc/local-authority/00DA,Leeds City Council,Childrens Services,Other Childrens And Families Services,Third Party Payments,Adoptions - Allowances,560,28-Jan-2011,1101-00109,20640.00,R,Action For Children
http://statistics.data.gov.uk/doc/local-authority/00DA,Leeds City Council,Childrens Services,Early Years Service,Third Party Payments,Services Rendered By Other Organisations,511,07-Jan-2011,1101-00110,4984.61,R,ACTIVE KIDS DAY NURSERY
http://statistics.data.gov.uk/doc/local-authority/00DA,Leeds City Council,Insurance,Insurance,Supplies and Services,Other Hired And Contracted Services,265,05-Jan-2011,1101-00111,522.00,R,Acumension
http://statistics.data.gov.uk/doc/local-authority/00DA,Leeds City Council,City Development,Recreation,Supplies and Services,Bought In Professional Services,277,14-Jan-2011,1101-00112,3030.99,R,Ad Golf Management Ltd
http://statistics.data.gov.uk/doc/local-authority/00DA,Leeds City Council,Childrens Services,Early Years Service,Third Party Payments,Services Rendered By Voluntary Sector,505,07-Jan-2011,1101-00113,8635.33,R,ADEL PRE SCHOOL
http://statistics.data.gov.uk/doc/local-authority/00DA,Leeds City Council,City Development,Economic Development,Supplies and Services,Resaleable Materials,204,13-Jan-2011,1101-00114,5010.00,R,Adidas (Uk) Ltd
http://statistics.data.gov.uk/doc/local-authority/00DA,Education Leeds,Education Leeds,Education Leeds,Supplies and Services,Teaching Equipment,202,19-Jan-2011,1101-00115,464.35,R,ADO (UK) Limited
http://statistics.data.gov.uk/doc/local-authority/00DA,Leeds City Council,Childrens Services,Other Childrens And Families Services,Third Party Payments,Adoptions - Allowances,560,26-Jan-2011,1101-00116,2580.00,R,ADOPTION MATTERS NORTHWEST
http://statistics.data.gov.uk/doc/local-authority/00DA,Leeds City Council,Childrens Services,Other Childrens And Families Services,Third Party Payments,Adoptions - Allowances,560,26-Jan-2011,1101-00117,2862.74,R,ADOPTION MATTERS NORTHWEST
http://statistics.data.gov.uk/doc/local-authority/00DA,Leeds City Council,Childrens Services,Other Childrens And Families Services,Third Party Payments,Adoptions - Allowances,560,26-Jan-2011,1101-00118,7784.77,R,ADOPTION MATTERS NORTHWEST
http://statistics.data.gov.uk/doc/local-authority/00DA,Leeds City Council,Central & Corporate Functions,Corporate Governance,Support Services,EXTERNAL COUNSEL - SPECIALIST,751,13-Jan-2011,1101-00119,8084.44,R,Adrian Lynch
http://statistics.data.gov.uk/doc/local-authority/00DA,Leeds City Council,Central & Corporate Functions,Corporate Governance,Support Services,EXTERNAL COUNSEL - SPECIALIST,751,27-Jan-2011,1101-00120,12000.00,R,Adrian Lynch
http://statistics.data.gov.uk/doc/local-authority/00DA,Leeds City Council,Central & Corporate Functions,Corporate Governance,Support Services,EXTERNAL COUNSEL - SPECIALIST,751,27-Jan-2011,1101-00121,4915.00,R,Adrian Lynch
http://statistics.data.gov.uk/doc/local-authority/00DA,Leeds City Council,Central & Corporate Functions,Commercial Services Trading Services,Supplies and Services,Other Hired And Contracted Services,265,12-Jan-2011,1101-00122,1209.25,R,ADT FIRE AND SECURITY
http://statistics.data.gov.uk/doc/local-authority/00DA,Leeds City Council,Childrens Services,Children - Commissioning And Social Work,Support Services,Legal Disbursements,411,14-Jan-2011,1101-00123,3000.00,R,ADVANCED CHILD CARE ASSESSMENTS LTD
http://statistics.data.gov.uk/doc/local-authority/00DA,Leeds City Council,Childrens Services,Children - Commissioning And Social Work,Support Services,Legal Disbursements,411,17-Jan-2011,1101-00124,2700.00,R,ADVANCED CHILD CARE ASSESSMENTS LTD
http://statistics.data.gov.uk/doc/local-authority/00DA,Leeds City Council as Accountable Body,Social Services Pooled Budgets,Jcs For People With Learning Disabilitie,Third Party Payments,Residential,580,19-Jan-2011,1101-00125,20777.56,R,ADVITAM LTD
http://statistics.data.gov.uk/doc/local-authority/00DA,Leeds City Council,Insurance,Insurance,Supplies and Services,Other Hired And Contracted Services,265,27-Jan-2011,1101-00126,1900.00,R,Aegis Legal Ltd
http://statistics.data.gov.uk/doc/local-authority/00DA,Leeds City Council as Accountable Body,Social Services Pooled Budgets,Jcs For People With Learning Disabilitie,Third Party Payments,Home Care,568,10-Jan-2011,1101-00127,644.88,R,Affinity Trust North Divisional Office
http://statistics.data.gov.uk/doc/local-authority/00DA,Leeds City Council as Accountable Body,Social Services Pooled Budgets,Jcs For People With Learning Disabilitie,Third Party Payments,Day Centre,564,10-Jan-2011,1101-00128,2338.56,R,Affinity Trust North Divisional Office
http://statistics.data.gov.uk/doc/local-authority/00DA,Leeds City Council as Accountable Body,Social Services Pooled Budgets,Jcs For People With Learning Disabilitie,Third Party Payments,Day Centre,564,10-Jan-2011,1101-00129,2187.90,R,Affinity Trust North Divisional Office
http://statistics.data.gov.uk/doc/local-authority/00DA,Leeds City Council,Adult Social Care,Services For Older People Under 65 P/Dis,Third Party Payments,Home Care,568,12-Jan-2011,1101-00130,648.26,R,Affinity Trust North Divisional Office
http://statistics.data.gov.uk/doc/local-authority/00DA,Leeds City Council,Adult Social Care,Services For Older People - 65 And Over,Third Party Payments,Residential,580,17-Jan-2011,1101-00131,470.96,R,Affinity Trust North Divisional Office
http://statistics.data.gov.uk/doc/local-authority/00DA,Leeds City Council as Accountable Body,Social Services Pooled Budgets,Jcs For People With Learning Disabilitie,Third Party Payments,Home Care,568,18-Jan-2011,1101-00132,7741.65,R,Affinity Trust North Divisional Office
http://statistics.data.gov.uk/doc/local-authority/00DA,Leeds City Council as Accountable Body,Social Services Pooled Budgets,Jcs For People With Learning Disabilitie,Third Party Payments,Home Care,568,24-Jan-2011,1101-00133,2452.02,R,Affinity Trust North Divisional Office
http://statistics.data.gov.uk/doc/local-authority/00DA,Leeds City Council as Accountable Body,Social Services Pooled Budgets,Jcs For People With Learning Disabilitie,Third Party Payments,Home Care,568,25-Jan-2011,1101-00134,663.00,R,Affinity Trust North Divisional Office
http://statistics.data.gov.uk/doc/local-authority/00DA,Leeds City Council as Accountable Body,Social Services Pooled Budgets,Jcs For People With Learning Disabilitie,Third Party Payments,Home Care,568,25-Jan-2011,1101-00135,623.34,R,Affinity Trust North Divisional Office
http://statistics.data.gov.uk/doc/local-authority/00DA,Leeds City Council as Accountable Body,Social Services Pooled Budgets,Jcs For People With Learning Disabilitie,Third Party Payments,Day Centre,564,26-Jan-2011,1101-00136,4136.16,R,Affinity Trust North Divisional Office
http://statistics.data.gov.uk/doc/local-authority/00DA,Leeds City Council,City Development,Asset Management Services,Supplies and Services,Office Consumables,210,17-Jan-2011,1101-00137,-1069.32,R,AFS
http://statistics.data.gov.uk/doc/local-authority/00DA,Leeds City Council,City Development,Asset Management Services,Supplies and Services,Office Consumables,210,17-Jan-2011,1101-00138,1069.32,R,AFS
http://statistics.data.gov.uk/doc/local-authority/00DA,Leeds City Council,Childrens Services,Other Childrens And Families Services,Third Party Payments,Adoptions - Allowances,560,13-Jan-2011,1101-00139,5350.00,R,After Adoption
http://statistics.data.gov.uk/doc/local-authority/00DA,Leeds City Council,Adult Social Care,Services For Older People - 65 And Over,Third Party Payments,Residential Care Emi,571,19-Jan-2011,1101-00140,1673.56,R,AFTON COURT RETIREMEMNT HOME
http://statistics.data.gov.uk/doc/local-authority/00DA,Leeds City Council,Environment & Neighbourhoods,Housing Needs,Third Party Payments,Supporting Ppl - Block Gross Chargeable,514,04-Jan-2011,1101-00141,2051.72,R,Age Concern Leeds
http://statistics.data.gov.uk/doc/local-authority/00DA,Leeds City Council,Central & Corporate Functions,Commercial Services Trading Services,Supplies and Services,Other Hired And Contracted Services,265,07-Jan-2011,1101-00142,4500.00,R,Age Concern Leeds
http://statistics.data.gov.uk/doc/local-authority/00DA,Leeds City Council,Adult Social Care,Other Generic Services,Third Party Payments,Home Care,568,13-Jan-2011,1101-00143,26174.00,R,Age Concern Leeds
http://statistics.data.gov.uk/doc/local-authority/00DA,Leeds City Council,Central & Corporate Functions,Commercial Services Trading Services,Supplies and Services,Other Hired And Contracted Services,265,28-Jan-2011,1101-00144,4500.00,R,Age Concern Leeds
http://statistics.data.gov.uk/doc/local-authority/00DA,Leeds City Council,Environment & Neighbourhoods,Housing Needs,Third Party Payments,Supporting Ppl - Block Gross Chargeable,514,31-Jan-2011,1101-00145,4165.98,R,Age Concern Leeds
http://statistics.data.gov.uk/doc/local-authority/00DA,Leeds City Council,City Development,Highways,Supplies and Services,Other Hired And Contracted Services,265,06-Jan-2011,1101-00146,76219.83,R,AGGREGATE INDUSTRIES UK LTD
http://statistics.data.gov.uk/doc/local-authority/00DA,Leeds City Council,City Development,Highways,Capital,CONSTRUCTION,3,21-Jan-2011,1101-00147,20679.00,C,AGGREGATE INDUSTRIES UK LTD
http://statistics.data.gov.uk/doc/local-authority/00DA,Leeds City Council,City Development,Highways,Supplies and Services,Other Hired And Contracted Services,265,28-Jan-2011,1101-00148,25310.00,R,AGGREGATE INDUSTRIES UK LTD
http://statistics.data.gov.uk/doc/local-authority/00DA,Leeds City Council,Adult Social Care,Services For Older People Under 65 P/Dis,Third Party Payments,Residential,580,19-Jan-2011,1101-00149,5626.84,R,Agricola House
http://statistics.data.gov.uk/doc/local-authority/00DA,Leeds City Council as Accountable Body,Social Services Pooled Budgets,Leeds Community Equip Store Pooled Budgt,Supplies and Services,Other Equipment,203,14-Jan-2011,1101-00150,1886.76,R,AIDAPT BATHROOMS LTD
http://statistics.data.gov.uk/doc/local-authority/00DA,Leeds City Council as Accountable Body,Social Services Pooled Budgets,Leeds Community Equip Store Pooled Budgt,Supplies and Services,Other Equipment,203,14-Jan-2011,1101-00151,3397.18,R,AIDAPT BATHROOMS LTD
http://statistics.data.gov.uk/doc/local-authority/00DA,Leeds City Council as Accountable Body,Social Services Pooled Budgets,Leeds Community Equip Store Pooled Budgt,Supplies and Services,Other Equipment,203,17-Jan-2011,1101-00152,2472.80,R,AIDAPT BATHROOMS LTD
http://statistics.data.gov.uk/doc/local-authority/00DA,Leeds City Council as Accountable Body,Social Services Pooled Budgets,Leeds Community Equip Store Pooled Budgt,Supplies and Services,Other Equipment,203,18-Jan-2011,1101-00153,2871.26,R,AIDAPT BATHROOMS LTD
http://statistics.data.gov.uk/doc/local-authority/00DA,Leeds City Council as Accountable Body,Social Services Pooled Budgets,Leeds Community Equip Store Pooled Budgt,Supplies and Services,Other Equipment,203,18-Jan-2011,1101-00154,675.00,R,AIDAPT BATHROOMS LTD
http://statistics.data.gov.uk/doc/local-authority/00DA,Leeds City Council as Accountable Body,Social Services Pooled Budgets,Leeds Community Equip Store Pooled Budgt,Supplies and Services,Other Equipment,203,21-Jan-2011,1101-00155,2505.00,R,AIDAPT BATHROOMS LTD
http://statistics.data.gov.uk/doc/local-authority/00DA,Leeds City Council as Accountable Body,Social Services Pooled Budgets,Leeds Community Equip Store Pooled Budgt,Supplies and Services,Other Equipment,203,24-Jan-2011,1101-00156,2475.80,R,AIDAPT BATHROOMS LTD
http://statistics.data.gov.uk/doc/local-authority/00DA,Leeds City Council,City Development,Recreation,Supplies and Services,Other Hired And Contracted Services,265,20-Jan-2011,1101-00157,500.00,R,Ainge R and V
http://statistics.data.gov.uk/doc/local-authority/00DA,Leeds City Council,Environment & Neighbourhoods,Health & Environmental Action,Supplies and Services,Operational Furniture And Equipment,203,19-Jan-2011,1101-00158,529.08,R,AIR LIQUIDE UK
http://statistics.data.gov.uk/doc/local-authority/00DA,Leeds City Council as Accountable Body,Social Services Pooled Budgets,Jcs For People With Learning Disabilitie,Third Party Payments,Residential,580,19-Jan-2011,1101-00159,3085.48,R,AIRE HOUSE
http://statistics.data.gov.uk/doc/local-authority/00DA,Leeds City Council,Environment & Neighbourhoods,Regeneration,Supplies and Services,Non-Recurring Grants,227,28-Jan-2011,1101-00160,7211.00,R,AIRE VALLEY HOMES LEEDS
http://statistics.data.gov.uk/doc/local-authority/00DA,West North West  Homes Leeds,West - North West,Property And Maintenance,Premises,H.R.A. - Special Maintenance,106,14-Jan-2011,1101-00161,1895.00,R,Aire Valley Landscaping Services Ltd
http://statistics.data.gov.uk/doc/local-authority/00DA,Leeds City Council,Environment & Neighbourhoods,East North East,Capital,CONSTRUCTION,3,17-Jan-2011,1101-00162,942.50,C,Aire Valley Landscaping Services Ltd
http://statistics.data.gov.uk/doc/local-authority/00DA,East North East Homes Leeds,East - North East,Housing Services,Premises,Estate Walkabout,114,17-Jan-2011,1101-00163,485.00,R,Aire Valley Landscaping Services Ltd
http://statistics.data.gov.uk/doc/local-authority/00DA,Leeds City Council,Environment & Neighbourhoods,East North East,Capital,CONSTRUCTION,3,21-Jan-2011,1101-00164,8275.00,C,Aire Valley Landscaping Services Ltd
http://statistics.data.gov.uk/doc/local-authority/00DA,West North West  Homes Leeds,West - North West,Customer And Tenancy,Premises,General Maintenance,104,12-Jan-2011,1101-00165,585.00,R,Aire Valley Tree Services Ltd
http://statistics.data.gov.uk/doc/local-authority/00DA,West North West  Homes Leeds,West - North West,Customer And Tenancy,Premises,General Maintenance,104,19-Jan-2011,1101-00166,1495.00,R,Aire Valley Tree Services Ltd
http://statistics.data.gov.uk/doc/local-authority/00DA,Leeds City Council,Adult Social Care,Services For Older People - 65 And Over,Third Party Payments,Residential Care Emi,571,19-Jan-2011,1101-00167,16124.34,R,Aire View Residential Home
http://statistics.data.gov.uk/doc/local-authority/00DA,Leeds City Council,Adult Social Care,Services For Older People - 65 And Over,Third Party Payments,Nursing Care Emi,574,19-Jan-2011,1101-00168,1342.80,R,Aire View Residential Home
http://statistics.data.gov.uk/doc/local-authority/00DA,Leeds City Council,Adult Social Care,Services For Older People - 65 And Over,Third Party Payments,Residential,580,19-Jan-2011,1101-00169,5106.00,R,Aire View Residential Home
http://statistics.data.gov.uk/doc/local-authority/00DA,Leeds City Council,Adult Social Care,Services For Older People - 65 And Over,Third Party Payments,Residential,580,19-Jan-2011,1101-00170,41357.19,R,AIREDALE (GOLDSBOROUGH)
http://statistics.data.gov.uk/doc/local-authority/00DA,Leeds City Council,City Development,Recreation,Supplies and Services,Operational Materials,205,13-Jan-2011,1101-00171,1104.50,R,Aitkens Sportsturf Ltd
http://statistics.data.gov.uk/doc/local-authority/00DA,East North East Homes Leeds,East - North East,Technical Services,Supplies and Services,Other Materials,205,04-Jan-2011,1101-00172,1365.98,R,AJM FIXINGS & POWER TOOLS LTD
http://statistics.data.gov.uk/doc/local-authority/00DA,East North East Homes Leeds,East - North East,Technical Services,Supplies and Services,Other Materials,205,04-Jan-2011,1101-00173,770.75,R,AJM FIXINGS & POWER TOOLS LTD
http://statistics.data.gov.uk/doc/local-authority/00DA,East North East Homes Leeds,East - North East,Technical Services,Supplies and Services,Other Materials,205,04-Jan-2011,1101-00174,920.00,R,AJM FIXINGS & POWER TOOLS LTD
http://statistics.data.gov.uk/doc/local-authority/00DA,East North East Homes Leeds,East - North East,Technical Services,Supplies and Services,Other Materials,205,04-Jan-2011,1101-00175,996.46,R,AJM FIXINGS & POWER TOOLS LTD
http://statistics.data.gov.uk/doc/local-authority/00DA,Leeds City Council,Central & Corporate Functions,Commercial Services Trading Services,Supplies and Services,Operational Materials,205,07-Jan-2011,1101-00176,807.50,R,AJM FIXINGS & POWER TOOLS LTD
http://statistics.data.gov.uk/doc/local-authority/00DA,East North East Homes Leeds,East - North East,Technical Services,Supplies and Services,Other Materials,205,18-Jan-2011,1101-00177,1609.63,R,AJM FIXINGS & POWER TOOLS LTD
http://statistics.data.gov.uk/doc/local-authority/00DA,East North East Homes Leeds,East - North East,Technical Services,Supplies and Services,Other Materials,205,18-Jan-2011,1101-00178,819.09,R,AJM FIXINGS & POWER TOOLS LTD
http://statistics.data.gov.uk/doc/local-authority/00DA,East North East Homes Leeds,East - North East,Technical Services,Supplies and Services,Other Materials,205,18-Jan-2011,1101-00179,920.00,R,AJM FIXINGS & POWER TOOLS LTD
http://statistics.data.gov.uk/doc/local-authority/00DA,Leeds City Council,Central & Corporate Functions,Corporate Governance,Support Services,MSCLLANEOUS - COUNSELS' FEES,702,05-Jan-2011,1101-00180,4600.00,R,Alan Evans
http://statistics.data.gov.uk/doc/local-authority/00DA,Leeds City Council,Central & Corporate Functions,Corporate Governance,Support Services,MSCLLANEOUS - COUNSELS' FEES,702,07-Jan-2011,1101-00181,1000.00,R,Alan Evans
http://statistics.data.gov.uk/doc/local-authority/00DA,Leeds City Council,Environment & Neighbourhoods,Streetscene Environmental Services,Transport,External Hire -Occasional,304,20-Jan-2011,1101-00182,594.00,R,ALAN THOMPSON TRANSPORT
http://statistics.data.gov.uk/doc/local-authority/00DA,Leeds City Council,Central & Corporate Functions,Information Technology,Supplies and Services,Computer Software & Equipment,214,28-Jan-2011,1101-00183,530.00,R,ALBANY SOFTWARE LTD
http://statistics.data.gov.uk/doc/local-authority/00DA,Leeds City Council,City Development,Libraries Arts & Heritage,Transport,Plant Hire - By Directorate,305,13-Jan-2011,1101-00184,1093.29,R,Albury Asset Rentals Ltd
http://statistics.data.gov.uk/doc/local-authority/00DA,Leeds City Council,City Development,Libraries Arts & Heritage,Transport,Plant Hire - By Directorate,305,13-Jan-2011,1101-00185,-1093.29,R,Albury Asset Rentals Ltd
http://statistics.data.gov.uk/doc/local-authority/00DA,Leeds City Council,City Development,Libraries Arts & Heritage,Transport,Plant Hire - By Directorate,305,27-Jan-2011,1101-00186,1093.29,R,Albury Asset Rentals Ltd
http://statistics.data.gov.uk/doc/local-authority/00DA,Leeds City Council,Environment & Neighbourhoods,Health & Environmental Action,Supplies and Services,Other Hired And Contracted Services,265,25-Jan-2011,1101-00187,683.80,R,ALCONTROL UK LTD
http://statistics.data.gov.uk/doc/local-authority/00DA,Leeds City Council,Adult Social Care,Services For Older People - 65 And Over,Third Party Payments,Residential,580,19-Jan-2011,1101-00188,13853.75,R,ALEXANDER RESIDENTIAL HOME
http://statistics.data.gov.uk/doc/local-authority/00DA,Leeds City Council,Adult Social Care,Services For Older People Under 65 P/Dis,Third Party Payments,Residential,580,19-Jan-2011,1101-00189,1162.72,R,ALEXANDER RESIDENTIAL HOME
http://statistics.data.gov.uk/doc/local-authority/00DA,Leeds City Council as Accountable Body,Social Services Pooled Budgets,Jcs For People With Learning Disabilitie,Third Party Payments,Residential,580,19-Jan-2011,1101-00190,1238.52,R,ALEXANDER RESIDENTIAL HOME
http://statistics.data.gov.uk/doc/local-authority/00DA,Leeds City Council,Adult Social Care,Services For Older People - 65 And Over,Third Party Payments,Residential Care Emi,571,19-Jan-2011,1101-00191,1256.20,R,ALEXANDRA COURT
http://statistics.data.gov.uk/doc/local-authority/00DA,Leeds City Council,Adult Social Care,Services For Older People - 65 And Over,Third Party Payments,Residential,580,19-Jan-2011,1101-00192,8361.76,R,ALEXANDRA COURT
http://statistics.data.gov.uk/doc/local-authority/00DA,Leeds City Council,Environment & Neighbourhoods,Health & Environmental Action,Supplies and Services,Other Hired And Contracted Services,265,21-Jan-2011,1101-00193,667.00,R,Alfies Boarding Kennels
http://statistics.data.gov.uk/doc/local-authority/00DA,Leeds City Council,Environment & Neighbourhoods,Health & Environmental Action,Supplies and Services,Other Hired And Contracted Services,265,25-Jan-2011,1101-00194,667.00,R,Alfies Boarding Kennels
http://statistics.data.gov.uk/doc/local-authority/00DA,Leeds City Council,Central & Corporate Functions,Corporate Property Management,Premises,Maintenance Of Buildings,101,04-Jan-2011,1101-00195,2464.44,R,Alfred Bagnall & Sons (Leeds) Ltd
http://statistics.data.gov.uk/doc/local-authority/00DA,Leeds City Council,Central & Corporate Functions,Civic And Community Buildings,Capital,CONSTRUCTION,3,21-Jan-2011,1101-00196,836.98,C,Alfred Bagnall & Sons (Leeds) Ltd
http://statistics.data.gov.uk/doc/local-authority/00DA,Leeds City Council,Adult Social Care,Services For Older People - 65 And Over,Third Party Payments,Residential,580,19-Jan-2011,1101-00197,1120.96,R,ALLENDALE RESIDENTIAL HOME
http://statistics.data.gov.uk/doc/local-authority/00DA,Leeds City Council,City Development,Planning & Sustainable Development,Supplies and Services,Non-Recurring Grants,227,18-Jan-2011,1101-00198,66650.00,R,Allerton Bywater Community Group
http://statistics.data.gov.uk/doc/local-authority/00DA,Leeds City Council,Childrens Services,Early Years Service,Capital,OTHER COSTS,7,10-Jan-2011,1101-00199,20000.00,C,ALLERTON BYWATER COMMUNITY PARTNERSHIP
http://statistics.data.gov.uk/doc/local-authority/00DA,Leeds City Council,City Development,Planning & Sustainable Development,Supplies and Services,Non-Recurring Grants,227,19-Jan-2011,1101-00200,1161.15,R,ALLERTON BYWATER YOUTH PROJECT
http://statistics.data.gov.uk/doc/local-authority/00DA,Leeds City Council,Central & Corporate Functions,Revenues,Supplies and Services,Bank Charges,263,06-Jan-2011,1101-00201,1608.53,R,ALLIANCE & LEICESTER COMMERCIAL BANK
http://statistics.data.gov.uk/doc/local-authority/00DA,Leeds City Council,Environment & Neighbourhoods,Community Safety,Supplies and Services,Grant Related Expenditure,290,21-Jan-2011,1101-00202,425.00,R,Alliance Publishing Company
http://statistics.data.gov.uk/doc/local-authority/00DA,Leeds City Council,Childrens Services,Children Looked After,Third Party Payments,Section 17,551,04-Jan-2011,1101-00203,651.00,R,ALLIED HEALTHCARE GROUP LTD
http://statistics.data.gov.uk/doc/local-authority/00DA,Leeds City Council,Adult Social Care,Services For Older People - 65 And Over,Third Party Payments,Home Care,568,05-Jan-2011,1101-00204,9783.04,R,ALLIED HEALTHCARE GROUP LTD
http://statistics.data.gov.uk/doc/local-authority/00DA,Leeds City Council,Adult Social Care,Services For Older People - 65 And Over,Third Party Payments,Home Care,568,05-Jan-2011,1101-00205,19094.47,R,ALLIED HEALTHCARE GROUP LTD
http://statistics.data.gov.uk/doc/local-authority/00DA,Leeds City Council,Adult Social Care,Services For Older People Under 65 P/Dis,Third Party Payments,Home Care,568,05-Jan-2011,1101-00206,2883.53,R,ALLIED HEALTHCARE GROUP LTD
http://statistics.data.gov.uk/doc/local-authority/00DA,Leeds City Council,Adult Social Care,Services For Older People - 65 And Over,Third Party Payments,Home Care,568,05-Jan-2011,1101-00207,11680.49,R,ALLIED HEALTHCARE GROUP LTD
http://statistics.data.gov.uk/doc/local-authority/00DA,Leeds City Council,Adult Social Care,Services For Older People Under 65 P/Dis,Third Party Payments,Home Care,568,05-Jan-2011,1101-00208,3265.33,R,ALLIED HEALTHCARE GROUP LTD
http://statistics.data.gov.uk/doc/local-authority/00DA,Leeds City Council,Adult Social Care,Services For Older People - 65 And Over,Third Party Payments,Home Care,568,05-Jan-2011,1101-00209,17030.58,R,ALLIED HEALTHCARE GROUP LTD
http://statistics.data.gov.uk/doc/local-authority/00DA,Leeds City Council,Adult Social Care,Services For Older People Under 65 P/Dis,Third Party Payments,Home Care,568,05-Jan-2011,1101-00210,1490.52,R,ALLIED HEALTHCARE GROUP LTD
http://statistics.data.gov.uk/doc/local-authority/00DA,Leeds City Council,Adult Social Care,Services For Older People - 65 And Over,Third Party Payments,Home Care,568,05-Jan-2011,1101-00211,13574.44,R,ALLIED HEALTHCARE GROUP LTD
http://statistics.data.gov.uk/doc/local-authority/00DA,Leeds City Council,Adult Social Care,Services For Older People - 65 And Over,Third Party Payments,Home Care,568,11-Jan-2011,1101-00212,-9783.04,R,ALLIED HEALTHCARE GROUP LTD
http://statistics.data.gov.uk/doc/local-authority/00DA,Leeds City Council,Adult Social Care,Services For Older People - 65 And Over,Third Party Payments,Home Care,568,11-Jan-2011,1101-00213,9783.04,R,ALLIED HEALTHCARE GROUP LTD
http://statistics.data.gov.uk/doc/local-authority/00DA,Leeds City Council as Accountable Body,Social Services Pooled Budgets,Jcs For People With Learning Disabilitie,Third Party Payments,Home Care,568,11-Jan-2011,1101-00214,1493.61,R,ALLIED HEALTHCARE GROUP LTD
http://statistics.data.gov.uk/doc/local-authority/00DA,Leeds City Council as Accountable Body,Social Services Pooled Budgets,Jcs For People With Learning Disabilitie,Third Party Payments,Home Care,568,11-Jan-2011,1101-00215,1271.82,R,ALLIED HEALTHCARE GROUP LTD
http://statistics.data.gov.uk/doc/local-authority/00DA,Leeds City Council,Adult Social Care,Services For Older People - 65 And Over,Third Party Payments,Home Care,568,11-Jan-2011,1101-00216,1291.92,R,ALLIED HEALTHCARE GROUP LTD
http://statistics.data.gov.uk/doc/local-authority/00DA,Leeds City Council,Adult Social Care,Services For Older People Under 65 P/Dis,Third Party Payments,Home Care,568,11-Jan-2011,1101-00217,1632.00,R,ALLIED HEALTHCARE GROUP LTD
http://statistics.data.gov.uk/doc/local-authority/00DA,Leeds City Council,Adult Social Care,Services For Older People - 65 And Over,Third Party Payments,Home Care,568,11-Jan-2011,1101-00218,499.80,R,ALLIED HEALTHCARE GROUP LTD
http://statistics.data.gov.uk/doc/local-authority/00DA,Leeds City Council,Adult Social Care,Services For Older People - 65 And Over,Third Party Payments,Home Care,568,11-Jan-2011,1101-00219,652.80,R,ALLIED HEALTHCARE GROUP LTD
http://statistics.data.gov.uk/doc/local-authority/00DA,Leeds City Council,Adult Social Care,Services For Older People Under 65 P/Dis,Third Party Payments,Home Care,568,11-Jan-2011,1101-00220,606.90,R,ALLIED HEALTHCARE GROUP LTD
http://statistics.data.gov.uk/doc/local-authority/00DA,Leeds City Council,Adult Social Care,Services For Older People - 65 And Over,Third Party Payments,Home Care,568,11-Jan-2011,1101-00221,1106.70,R,ALLIED HEALTHCARE GROUP LTD
http://statistics.data.gov.uk/doc/local-authority/00DA,Leeds City Council,Adult Social Care,Services For Older People - 65 And Over,Third Party Payments,Home Care,568,11-Jan-2011,1101-00222,714.00,R,ALLIED HEALTHCARE GROUP LTD
http://statistics.data.gov.uk/doc/local-authority/00DA,Leeds City Council,Adult Social Care,Services For Older People - 65 And Over,Third Party Payments,Home Care,568,11-Jan-2011,1101-00223,459.00,R,ALLIED HEALTHCARE GROUP LTD
http://statistics.data.gov.uk/doc/local-authority/00DA,Leeds City Council,Adult Social Care,Services For Older People Under 65 P/Dis,Third Party Payments,Home Care,568,11-Jan-2011,1101-00224,614.55,R,ALLIED HEALTHCARE GROUP LTD
http://statistics.data.gov.uk/doc/local-authority/00DA,Leeds City Council,Adult Social Care,Services For Older People Under 65 P/Dis,Third Party Payments,Home Care,568,11-Jan-2011,1101-00225,6303.92,R,ALLIED HEALTHCARE GROUP LTD
http://statistics.data.gov.uk/doc/local-authority/00DA,Leeds City Council,Adult Social Care,Services For Older People Under 65 P/Dis,Third Party Payments,Home Care,568,11-Jan-2011,1101-00226,504.90,R,ALLIED HEALTHCARE GROUP LTD
http://statistics.data.gov.uk/doc/local-authority/00DA,Leeds City Council,Adult Social Care,Services For Older People Under 65 P/Dis,Third Party Payments,Home Care,568,11-Jan-2011,1101-00227,831.30,R,ALLIED HEALTHCARE GROUP LTD
http://statistics.data.gov.uk/doc/local-authority/00DA,Leeds City Council,Adult Social Care,Services For Older People - 65 And Over,Third Party Payments,Home Care,568,11-Jan-2011,1101-00228,572.88,R,ALLIED HEALTHCARE GROUP LTD
http://statistics.data.gov.uk/doc/local-authority/00DA,Leeds City Council,Adult Social Care,Services For Older People - 65 And Over,Third Party Payments,Home Care,568,11-Jan-2011,1101-00229,1802.43,R,ALLIED HEALTHCARE GROUP LTD
http://statistics.data.gov.uk/doc/local-authority/00DA,Leeds City Council,Adult Social Care,Services For Older People - 65 And Over,Third Party Payments,Home Care,568,11-Jan-2011,1101-00230,637.50,R,ALLIED HEALTHCARE GROUP LTD
http://statistics.data.gov.uk/doc/local-authority/00DA,Leeds City Council as Accountable Body,Social Services Pooled Budgets,Jcs For People With Learning Disabilitie,Third Party Payments,Home Care,568,12-Jan-2011,1101-00231,1357.99,R,ALLIED HEALTHCARE GROUP LTD
http://statistics.data.gov.uk/doc/local-authority/00DA,Leeds City Council as Accountable Body,Social Services Pooled Budgets,Jcs For People With Learning Disabilitie,Third Party Payments,Home Care,568,18-Jan-2011,1101-00232,1038.81,R,ALLIED HEALTHCARE GROUP LTD
http://statistics.data.gov.uk/doc/local-authority/00DA,Leeds City Council as Accountable Body,Social Services Pooled Budgets,Jcs For People With Learning Disabilitie,Third Party Payments,Home Care,568,18-Jan-2011,1101-00233,1091.22,R,ALLIED HEALTHCARE GROUP LTD
http://statistics.data.gov.uk/doc/local-authority/00DA,Leeds City Council,Adult Social Care,Services For Older People - 65 And Over,Third Party Payments,Home Care,568,19-Jan-2011,1101-00234,17740.05,R,ALLIED HEALTHCARE GROUP LTD
http://statistics.data.gov.uk/doc/local-authority/00DA,Leeds City Council,Adult Social Care,Services For Older People Under 65 P/Dis,Third Party Payments,Home Care,568,19-Jan-2011,1101-00235,3510.32,R,ALLIED HEALTHCARE GROUP LTD
http://statistics.data.gov.uk/doc/local-authority/00DA,Leeds City Council,Adult Social Care,Services For Older People - 65 And Over,Third Party Payments,Home Care,568,19-Jan-2011,1101-00236,14619.11,R,ALLIED HEALTHCARE GROUP LTD
http://statistics.data.gov.uk/doc/local-authority/00DA,Leeds City Council,Adult Social Care,Services For Older People Under 65 P/Dis,Third Party Payments,Home Care,568,19-Jan-2011,1101-00237,630.12,R,ALLIED HEALTHCARE GROUP LTD
http://statistics.data.gov.uk/doc/local-authority/00DA,Leeds City Council,Adult Social Care,Services For Older People - 65 And Over,Third Party Payments,Home Care,568,19-Jan-2011,1101-00238,12808.99,R,ALLIED HEALTHCARE GROUP LTD
http://statistics.data.gov.uk/doc/local-authority/00DA,Leeds City Council,Adult Social Care,Services For Older People - 65 And Over,Third Party Payments,Home Care,568,19-Jan-2011,1101-00239,19322.44,R,ALLIED HEALTHCARE GROUP LTD
http://statistics.data.gov.uk/doc/local-authority/00DA,Leeds City Council,Adult Social Care,Services For Older People Under 65 P/Dis,Third Party Payments,Home Care,568,19-Jan-2011,1101-00240,2270.38,R,ALLIED HEALTHCARE GROUP LTD
http://statistics.data.gov.uk/doc/local-authority/00DA,Leeds City Council,Adult Social Care,Services For Older People - 65 And Over,Third Party Payments,Home Care,568,19-Jan-2011,1101-00241,11899.18,R,ALLIED HEALTHCARE GROUP LTD
http://statistics.data.gov.uk/doc/local-authority/00DA,Leeds City Council,Adult Social Care,Services For Older People - 65 And Over,Third Party Payments,Home Care,568,19-Jan-2011,1101-00242,1291.92,R,ALLIED HEALTHCARE GROUP LTD
http://statistics.data.gov.uk/doc/local-authority/00DA,Leeds City Council as Accountable Body,Social Services Pooled Budgets,Jcs For People With Learning Disabilitie,Third Party Payments,Home Care,568,21-Jan-2011,1101-00243,605.60,R,ALLIED HEALTHCARE GROUP LTD
http://statistics.data.gov.uk/doc/local-authority/00DA,Leeds City Council,Adult Social Care,Social Services Support Services,Supplies and Services,Other Hired And Contracted Services,265,27-Jan-2011,1101-00244,818.29,R,ALLIED HEALTHCARE GROUP LTD
http://statistics.data.gov.uk/doc/local-authority/00DA,Leeds City Council,Adult Social Care,Services For Older People - 65 And Over,Third Party Payments,Home Care,568,28-Jan-2011,1101-00245,1295.76,R,ALLIED HEALTHCARE GROUP LTD
http://statistics.data.gov.uk/doc/local-authority/00DA,Leeds City Council,Adult Social Care,Services For Older People Under 65 P/Dis,Third Party Payments,Home Care,568,28-Jan-2011,1101-00246,1623.17,R,ALLIED HEALTHCARE GROUP LTD
http://statistics.data.gov.uk/doc/local-authority/00DA,Leeds City Council,Childrens Services,Children - Commissioning And Social Work,Support Services,Legal Disbursements,411,20-Jan-2011,1101-00247,705.00,R,Alpha Biolabs
http://statistics.data.gov.uk/doc/local-authority/00DA,Aire Valley Homes Leeds    ,Aire Valley Homes Leeds,Housing,Supplies and Services,Equipment And Materials,207,06-Jan-2011,1101-00248,448.48,R,Alpha Tools (Northern) Ltd
http://statistics.data.gov.uk/doc/local-authority/00DA,Aire Valley Homes Leeds    ,Aire Valley Homes Leeds,Housing,Supplies and Services,Equipment And Materials,207,06-Jan-2011,1101-00249,920.00,R,Alpha Tools (Northern) Ltd
http://statistics.data.gov.uk/doc/local-authority/00DA,Aire Valley Homes Leeds    ,Aire Valley Homes Leeds,Housing,Supplies and Services,Equipment And Materials,207,11-Jan-2011,1101-00250,3620.00,R,Alpha Tools (Northern) Ltd
http://statistics.data.gov.uk/doc/local-authority/00DA,East North East Homes Leeds,East - North East,Business Improvement,Premises,Projects in the Community,114,04-Jan-2011,1101-00251,500.00,R,Alston Lane Over 60'S Club
http://statistics.data.gov.uk/doc/local-authority/00DA,Leeds City Council,Environment & Neighbourhoods,South South East,Capital,CONSTRUCTION,3,07-Jan-2011,1101-00252,21819.06,C,ALTERNATIVE WINDOWS (LEEDS) LTD
http://statistics.data.gov.uk/doc/local-authority/00DA,Leeds City Council,Environment & Neighbourhoods,West North West,Capital,CONSTRUCTION,3,14-Jan-2011,1101-00253,42233.07,C,ALTERNATIVE WINDOWS (LEEDS) LTD
http://statistics.data.gov.uk/doc/local-authority/00DA,Leeds City Council,Central & Corporate Functions,Commercial Services Trading Services,Supplies and Services,Operational Materials,205,13-Jan-2011,1101-00254,1179.95,R,ALVIN MORRIS LTD
http://statistics.data.gov.uk/doc/local-authority/00DA,Leeds City Council,Adult Social Care,Other Generic Services,Third Party Payments,Payments To Voluntary Organisations,561,20-Jan-2011,1101-00255,24500.00,R,ALZHEIMERS DISEASE SOCIETY
http://statistics.data.gov.uk/doc/local-authority/00DA,Leeds City Council,Adult Social Care,Services For Older People - 65 And Over,Third Party Payments,Nursing Care Emi,574,20-Jan-2011,1101-00256,1127.64,R,AMARNA HOUSE CARE CENTRE
http://statistics.data.gov.uk/doc/local-authority/00DA,Leeds City Council,Childrens Services,Early Years Service,Third Party Payments,Services Rendered By Other Organisations,511,21-Jan-2011,1101-00257,2300.00,R,Amazing Grace Early Years Childcare
http://statistics.data.gov.uk/doc/local-authority/00DA,Leeds City Council,Childrens Services,Children Looked After,Third Party Payments,General External Residential Placements,507,13-Jan-2011,1101-00258,16554.00,R,Amberleigh Care Ltd
http://statistics.data.gov.uk/doc/local-authority/00DA,Leeds City Council,Adult Social Care,Services For Older People - 65 And Over,Third Party Payments,Residential,580,19-Jan-2011,1101-00259,2190.36,R,AMELIA HOUSE
http://statistics.data.gov.uk/doc/local-authority/00DA,Leeds City Council,Central & Corporate Functions,Executive Support,Supplies and Services,Educational Visit,269,20-Dec-2010,1101-00260,443.46,R,american ai 001233017778
http://statistics.data.gov.uk/doc/local-authority/00DA,Education Leeds,Education Leeds,Education Leeds,Supplies and Services,Other Hired And Contracted Services,265,06-Jan-2011,1101-00261,730.45,R,Ammie Flexen
http://statistics.data.gov.uk/doc/local-authority/00DA,Leeds City Council,Environment & Neighbourhoods,Community Safety,Supplies and Services,Grant Related Expenditure,290,14-Jan-2011,1101-00262,4537.50,R,Amr Security Services Ltd
http://statistics.data.gov.uk/doc/local-authority/00DA,Leeds City Council,Adult Social Care,Services For Older People - 65 And Over,Third Party Payments,Home Care,568,21-Jan-2011,1101-00263,12133.58,R,ANCHOR CARE
http://statistics.data.gov.uk/doc/local-authority/00DA,Leeds City Council,Adult Social Care,Services For Older People Under 65 P/Dis,Third Party Payments,Home Care,568,21-Jan-2011,1101-00264,712.42,R,ANCHOR CARE
http://statistics.data.gov.uk/doc/local-authority/00DA,Leeds City Council,Adult Social Care,Services For Older People - 65 And Over,Third Party Payments,Home Care,568,21-Jan-2011,1101-00265,33788.01,R,ANCHOR CARE
http://statistics.data.gov.uk/doc/local-authority/00DA,Leeds City Council,Adult Social Care,Services For Older People Under 65 P/Dis,Third Party Payments,Home Care,568,21-Jan-2011,1101-00266,4477.47,R,ANCHOR CARE
http://statistics.data.gov.uk/doc/local-authority/00DA,Leeds City Council as Accountable Body,Social Services Pooled Budgets,Jcs For People With Learning Disabilitie,Third Party Payments,Home Care,568,21-Jan-2011,1101-00267,1197.30,R,ANCHOR CARE
http://statistics.data.gov.uk/doc/local-authority/00DA,Leeds City Council,Adult Social Care,Services For Older People - 65 And Over,Third Party Payments,Home Care,568,21-Jan-2011,1101-00268,22029.13,R,ANCHOR CARE
http://statistics.data.gov.uk/doc/local-authority/00DA,Leeds City Council,Adult Social Care,Services For Older People Under 65 P/Dis,Third Party Payments,Home Care,568,21-Jan-2011,1101-00269,935.37,R,ANCHOR CARE
http://statistics.data.gov.uk/doc/local-authority/00DA,Leeds City Council,Adult Social Care,Services For Older People - 65 And Over,Third Party Payments,Home Care,568,21-Jan-2011,1101-00270,25887.05,R,ANCHOR CARE
http://statistics.data.gov.uk/doc/local-authority/00DA,Leeds City Council,Adult Social Care,Services For Older People Under 65 P/Dis,Third Party Payments,Home Care,568,21-Jan-2011,1101-00271,3534.20,R,ANCHOR CARE
http://statistics.data.gov.uk/doc/local-authority/00DA,Leeds City Council,Environment & Neighbourhoods,Housing Needs,Third Party Payments,Supporting People - Block Subsidy,513,04-Jan-2011,1101-00272,557.65,R,ANCHOR TRUST
http://statistics.data.gov.uk/doc/local-authority/00DA,Leeds City Council,Environment & Neighbourhoods,Housing Needs,Third Party Payments,Supporting People - Block Subsidy,513,04-Jan-2011,1101-00273,9415.34,R,ANCHOR TRUST
http://statistics.data.gov.uk/doc/local-authority/00DA,Leeds City Council,Environment & Neighbourhoods,Housing Needs,Third Party Payments,Supporting People - Block Subsidy,513,04-Jan-2011,1101-00274,595.87,R,ANCHOR TRUST
http://statistics.data.gov.uk/doc/local-authority/00DA,Leeds City Council as Accountable Body,Social Services Pooled Budgets,Jcs For People With Learning Disabilitie,Third Party Payments,Residential,580,10-Jan-2011,1101-00275,588.96,R,ANCHOR TRUST
http://statistics.data.gov.uk/doc/local-authority/00DA,Leeds City Council,Adult Social Care,Services For Older People - 65 And Over,Third Party Payments,Payments To Voluntary Organisations,561,14-Jan-2011,1101-00276,9167.48,R,ANCHOR TRUST
http://statistics.data.gov.uk/doc/local-authority/00DA,Leeds City Council,Adult Social Care,Services For Adults Under 65 Mental/Dis,Third Party Payments,Nursing Home,570,19-Jan-2011,1101-00277,1758.08,R,ANCHOR TRUST
http://statistics.data.gov.uk/doc/local-authority/00DA,Leeds City Council,Adult Social Care,Services For Older People - 65 And Over,Third Party Payments,Nursing Home,570,19-Jan-2011,1101-00278,22254.45,R,ANCHOR TRUST
http://statistics.data.gov.uk/doc/local-authority/00DA,Leeds City Council,Adult Social Care,Services For Older People Under 65 P/Dis,Third Party Payments,Nursing Home,570,19-Jan-2011,1101-00279,1500.20,R,ANCHOR TRUST
http://statistics.data.gov.uk/doc/local-authority/00DA,Leeds City Council,Adult Social Care,Services For Older People - 65 And Over,Third Party Payments,Residential Care Emi,571,19-Jan-2011,1101-00280,1792.95,R,ANCHOR TRUST
http://statistics.data.gov.uk/doc/local-authority/00DA,Leeds City Council,Adult Social Care,Services For Older People - 65 And Over,Third Party Payments,Residential Care Emi,571,19-Jan-2011,1101-00281,1650.04,R,ANCHOR TRUST
http://statistics.data.gov.uk/doc/local-authority/00DA,Leeds City Council,Adult Social Care,Services For Older People - 65 And Over,Third Party Payments,Residential Care Emi,571,19-Jan-2011,1101-00282,6063.64,R,ANCHOR TRUST
http://statistics.data.gov.uk/doc/local-authority/00DA,Leeds City Council,Adult Social Care,Services For Older People - 65 And Over,Third Party Payments,Nursing Care Emi,574,19-Jan-2011,1101-00283,1204.92,R,ANCHOR TRUST
http://statistics.data.gov.uk/doc/local-authority/00DA,Leeds City Council,Adult Social Care,Services For Adults Under 65 Mental/Dis,Third Party Payments,Residential,580,19-Jan-2011,1101-00284,1120.24,R,ANCHOR TRUST
http://statistics.data.gov.uk/doc/local-authority/00DA,Leeds City Council,Adult Social Care,Services For Older People - 65 And Over,Third Party Payments,Residential,580,19-Jan-2011,1101-00285,2578.60,R,ANCHOR TRUST
http://statistics.data.gov.uk/doc/local-authority/00DA,Leeds City Council,Adult Social Care,Services For Older People - 65 And Over,Third Party Payments,Residential,580,19-Jan-2011,1101-00286,2275.72,R,ANCHOR TRUST
http://statistics.data.gov.uk/doc/local-authority/00DA,Leeds City Council,Adult Social Care,Services For Older People - 65 And Over,Third Party Payments,Residential,580,19-Jan-2011,1101-00287,1056.40,R,ANCHOR TRUST
http://statistics.data.gov.uk/doc/local-authority/00DA,Leeds City Council,Adult Social Care,Services For Older People - 65 And Over,Third Party Payments,Residential,580,25-Jan-2011,1101-00288,5839.77,R,ANCHOR TRUST
http://statistics.data.gov.uk/doc/local-authority/00DA,Leeds City Council,Environment & Neighbourhoods,Housing Needs,Third Party Payments,Supporting People - Block Subsidy,513,31-Jan-2011,1101-00289,448.26,R,ANCHOR TRUST
http://statistics.data.gov.uk/doc/local-authority/00DA,Leeds City Council,Environment & Neighbourhoods,Housing Needs,Third Party Payments,Supporting People - Block Subsidy,513,31-Jan-2011,1101-00290,9773.70,R,ANCHOR TRUST
http://statistics.data.gov.uk/doc/local-authority/00DA,Leeds City Council,Environment & Neighbourhoods,Housing Needs,Third Party Payments,Supporting People - Block Subsidy,513,31-Jan-2011,1101-00291,792.95,R,ANCHOR TRUST
http://statistics.data.gov.uk/doc/local-authority/00DA,Leeds City Council,Adult Social Care,Services For Older People - 65 And Over,Third Party Payments,Residential Care Emi,571,19-Jan-2011,1101-00292,6701.61,R,ANCHOR TRUST SIMON MARKS COURT
http://statistics.data.gov.uk/doc/local-authority/00DA,Leeds City Council,Adult Social Care,Services For Older People - 65 And Over,Third Party Payments,Residential,580,19-Jan-2011,1101-00293,11867.84,R,ANCHOR TRUST SIMON MARKS COURT
http://statistics.data.gov.uk/doc/local-authority/00DA,Leeds City Council,Central & Corporate Functions,Corporate Governance,Supplies and Services,Other Hired And Contracted Services,265,21-Jan-2011,1101-00294,8500.00,R,Andrew Arden Qc
http://statistics.data.gov.uk/doc/local-authority/00DA,Leeds City Council,Central & Corporate Functions,Corporate Governance,Support Services,MSCLLANEOUS - COUNSELS' FEES,702,27-Jan-2011,1101-00295,800.00,R,ANDREW DYMOND
http://statistics.data.gov.uk/doc/local-authority/00DA,East North East Homes Leeds,East - North East,Technical Services,Premises,General Maintenance,104,05-Jan-2011,1101-00296,2452.00,R,ANDREW MILLER BUILDERS
http://statistics.data.gov.uk/doc/local-authority/00DA,Leeds City Council,City Development,Libraries Arts & Heritage,Premises,Maintenance Of Buildings,101,14-Jan-2011,1101-00297,1500.00,R,ANDREW MILLER BUILDERS
http://statistics.data.gov.uk/doc/local-authority/00DA,West North West  Homes Leeds,West - North West,Property And Maintenance,Premises,General Maintenance,104,21-Jan-2011,1101-00298,1070.00,R,ANDREW MILLER BUILDERS
http://statistics.data.gov.uk/doc/local-authority/00DA,Leeds City Council,Central & Corporate Functions,Commercial Services Trading Services,Supplies and Services,Other Hired And Contracted Services,265,21-Jan-2011,1101-00299,550.00,R,ANDREW MILLER BUILDERS
http://statistics.data.gov.uk/doc/local-authority/00DA,Leeds City Council,Childrens Services,Children - Commissioning And Social Work,Support Services,Legal Disbursements,411,06-Jan-2011,1101-00300,3000.00,R,Andrew Wastall
http://statistics.data.gov.uk/doc/local-authority/00DA,Leeds City Council,Central & Corporate Functions,Corporate Governance,Support Services,EXTERNAL COUNSEL - RESOURCE,750,14-Jan-2011,1101-00301,500.00,R,ANDREW WILSON
http://statistics.data.gov.uk/doc/local-authority/00DA,Leeds City Council,City Development,Libraries Arts & Heritage,Supplies and Services,Publication And Promotion,267,14-Jan-2011,1101-00302,1550.00,R,ANDY EDWARDS DESIGN LTD
http://statistics.data.gov.uk/doc/local-authority/00DA,Leeds City Council,Adult Social Care,Services For Older People - 65 And Over,Third Party Payments,Home Care,568,07-Jan-2011,1101-00303,560.00,R,ANGELS HOME CARE SERVICES
http://statistics.data.gov.uk/doc/local-authority/00DA,Leeds City Council,Adult Social Care,Services For Older People - 65 And Over,Third Party Payments,Home Care,568,07-Jan-2011,1101-00304,448.00,R,ANGELS HOME CARE SERVICES
http://statistics.data.gov.uk/doc/local-authority/00DA,Leeds City Council,Adult Social Care,Services For Older People - 65 And Over,Third Party Payments,Home Care,568,12-Jan-2011,1101-00305,4689.00,R,ANGELS HOME CARE SERVICES
http://statistics.data.gov.uk/doc/local-authority/00DA,Leeds City Council,Adult Social Care,Services For Older People - 65 And Over,Third Party Payments,Home Care,568,12-Jan-2011,1101-00306,3920.00,R,ANGELS HOME CARE SERVICES
http://statistics.data.gov.uk/doc/local-authority/00DA,Leeds City Council,Adult Social Care,Services For Older People Under 65 P/Dis,Third Party Payments,Home Care,568,12-Jan-2011,1101-00307,1260.40,R,ANGELS HOME CARE SERVICES
http://statistics.data.gov.uk/doc/local-authority/00DA,Leeds City Council,Adult Social Care,Services For Older People Under 65 P/Dis,Third Party Payments,Home Care,568,12-Jan-2011,1101-00308,1227.00,R,ANGELS HOME CARE SERVICES
http://statistics.data.gov.uk/doc/local-authority/00DA,Leeds City Council,Adult Social Care,Services For Older People - 65 And Over,Third Party Payments,Home Care,568,12-Jan-2011,1101-00309,724.50,R,ANGELS HOME CARE SERVICES
http://statistics.data.gov.uk/doc/local-authority/00DA,Leeds City Council,Adult Social Care,Services For Older People - 65 And Over,Third Party Payments,Home Care,568,12-Jan-2011,1101-00310,430.50,R,ANGELS HOME CARE SERVICES
http://statistics.data.gov.uk/doc/local-authority/00DA,Leeds City Council,Adult Social Care,Services For Older People - 65 And Over,Third Party Payments,Home Care,568,12-Jan-2011,1101-00311,546.00,R,ANGELS HOME CARE SERVICES
http://statistics.data.gov.uk/doc/local-authority/00DA,Leeds City Council,Adult Social Care,Services For Older People - 65 And Over,Third Party Payments,Home Care,568,12-Jan-2011,1101-00312,448.00,R,ANGELS HOME CARE SERVICES
http://statistics.data.gov.uk/doc/local-authority/00DA,Leeds City Council,Adult Social Care,Services For Older People - 65 And Over,Third Party Payments,Home Care,568,12-Jan-2011,1101-00313,816.90,R,ANGELS HOME CARE SERVICES
http://statistics.data.gov.uk/doc/local-authority/00DA,Leeds City Council,Adult Social Care,Services For Older People - 65 And Over,Third Party Payments,Home Care,568,12-Jan-2011,1101-00314,653.52,R,ANGELS HOME CARE SERVICES
http://statistics.data.gov.uk/doc/local-authority/00DA,Leeds City Council,Adult Social Care,Services For Older People - 65 And Over,Third Party Payments,Home Care,568,12-Jan-2011,1101-00315,735.00,R,ANGELS HOME CARE SERVICES
http://statistics.data.gov.uk/doc/local-authority/00DA,Leeds City Council,Adult Social Care,Services For Older People - 65 And Over,Third Party Payments,Home Care,568,12-Jan-2011,1101-00316,588.00,R,ANGELS HOME CARE SERVICES
http://statistics.data.gov.uk/doc/local-authority/00DA,Leeds City Council,Adult Social Care,Services For Older People Under 65 P/Dis,Third Party Payments,Home Care,568,12-Jan-2011,1101-00317,2436.00,R,ANGELS HOME CARE SERVICES
http://statistics.data.gov.uk/doc/local-authority/00DA,Leeds City Council,Adult Social Care,Services For Older People Under 65 P/Dis,Third Party Payments,Home Care,568,12-Jan-2011,1101-00318,1624.00,R,ANGELS HOME CARE SERVICES
http://statistics.data.gov.uk/doc/local-authority/00DA,Leeds City Council,Adult Social Care,Services For Older People Under 65 P/Dis,Third Party Payments,Home Care,568,21-Jan-2011,1101-00319,507.50,R,ANGELS HOME CARE SERVICES
http://statistics.data.gov.uk/doc/local-authority/00DA,Leeds City Council,Adult Social Care,Services For Older People - 65 And Over,Third Party Payments,Home Care,568,21-Jan-2011,1101-00320,1318.50,R,ANGELS HOME CARE SERVICES
http://statistics.data.gov.uk/doc/local-authority/00DA,Leeds City Council,Adult Social Care,Services For Older People - 65 And Over,Third Party Payments,Home Care,568,21-Jan-2011,1101-00321,1078.00,R,ANGELS HOME CARE SERVICES
http://statistics.data.gov.uk/doc/local-authority/00DA,Leeds City Council,Adult Social Care,Services For Older People - 65 And Over,Third Party Payments,Home Care,568,21-Jan-2011,1101-00322,2506.00,R,ANGELS HOME CARE SERVICES
http://statistics.data.gov.uk/doc/local-authority/00DA,Leeds City Council,Adult Social Care,Services For Older People - 65 And Over,Third Party Payments,Home Care,568,21-Jan-2011,1101-00323,2016.00,R,ANGELS HOME CARE SERVICES
http://statistics.data.gov.uk/doc/local-authority/00DA,Leeds City Council,Adult Social Care,Services For Older People - 65 And Over,Third Party Payments,Home Care,568,21-Jan-2011,1101-00324,560.00,R,ANGELS HOME CARE SERVICES
http://statistics.data.gov.uk/doc/local-authority/00DA,Leeds City Council,Adult Social Care,Services For Older People - 65 And Over,Third Party Payments,Home Care,568,21-Jan-2011,1101-00325,434.00,R,ANGELS HOME CARE SERVICES
http://statistics.data.gov.uk/doc/local-authority/00DA,Leeds City Council,Adult Social Care,Services For Older People Under 65 P/Dis,Third Party Payments,Home Care,568,21-Jan-2011,1101-00326,1578.50,R,ANGELS HOME CARE SERVICES
http://statistics.data.gov.uk/doc/local-authority/00DA,Leeds City Council,Adult Social Care,Services For Older People Under 65 P/Dis,Third Party Payments,Home Care,568,21-Jan-2011,1101-00327,676.00,R,ANGELS HOME CARE SERVICES
http://statistics.data.gov.uk/doc/local-authority/00DA,Leeds City Council,Environment & Neighbourhoods,Regeneration,Supplies and Services,Non-Recurring Grants,227,28-Jan-2011,1101-00328,3273.00,R,ANGELS HOUSEKEEPING CIC LTD
http://statistics.data.gov.uk/doc/local-authority/00DA,Leeds City Council,Environment & Neighbourhoods,Regeneration,Supplies and Services,Non-Recurring Grants,227,28-Jan-2011,1101-00329,5708.00,R,ANGELS HOUSEKEEPING CIC LTD
http://statistics.data.gov.uk/doc/local-authority/00DA,Leeds City Council,Childrens Services,Early Years Service,Third Party Payments,Services Rendered By Other Organisations,511,07-Jan-2011,1101-00330,11611.91,R,ANGELS NURSERY
http://statistics.data.gov.uk/doc/local-authority/00DA,Leeds City Council,Childrens Services,Children - Commissioning And Social Work,Support Services,Legal Disbursements,411,13-Jan-2011,1101-00331,704.00,R,Anglia Dna Services Limited
http://statistics.data.gov.uk/doc/local-authority/00DA,Leeds City Council,Central & Corporate Functions,Support And Facilities Trading Services,Supplies and Services,Operational Materials,205,11-Jan-2011,1101-00332,469.00,R,Antalis Mcnaughton Limited
http://statistics.data.gov.uk/doc/local-authority/00DA,Leeds City Council,Central & Corporate Functions,Support And Facilities Trading Services,Supplies and Services,Operational Materials,205,11-Jan-2011,1101-00333,469.00,R,Antalis Mcnaughton Limited
http://statistics.data.gov.uk/doc/local-authority/00DA,Leeds City Council,Environment & Neighbourhoods,Hra,Supplies and Services,Office Consumables,210,19-Jan-2011,1101-00334,469.00,R,Antalis Mcnaughton Limited
http://statistics.data.gov.uk/doc/local-authority/00DA,Leeds City Council,Central & Corporate Functions,Support And Facilities Trading Services,Supplies and Services,Operational Materials,205,19-Jan-2011,1101-00335,1365.00,R,Antalis Mcnaughton Limited
http://statistics.data.gov.uk/doc/local-authority/00DA,Leeds City Council,Central & Corporate Functions,Support And Facilities Trading Services,Supplies and Services,Operational Materials,205,21-Jan-2011,1101-00336,469.00,R,Antalis Mcnaughton Limited
http://statistics.data.gov.uk/doc/local-authority/00DA,Leeds City Council,Central & Corporate Functions,Support And Facilities Trading Services,Supplies and Services,Operational Materials,205,26-Jan-2011,1101-00337,469.00,R,Antalis Mcnaughton Limited
http://statistics.data.gov.uk/doc/local-authority/00DA,Leeds City Council,City Development,Support Services,Supplies and Services,Office Consumables,210,09-Dec-2010,1101-00338,720.73,R,antalis uk ltd
http://statistics.data.gov.uk/doc/local-authority/00DA,Leeds City Council,Adult Social Care,Social Services Support Services,Supplies and Services,Office Consumables,210,09-Dec-2010,1101-00339,558.68,R,antalis uk ltd
http://statistics.data.gov.uk/doc/local-authority/00DA,Leeds City Council,Adult Social Care,Social Services Support Services,Supplies and Services,Office Consumables,210,16-Dec-2010,1101-00340,532.00,R,antalis uk ltd
http://statistics.data.gov.uk/doc/local-authority/00DA,Leeds City Council,Central & Corporate Functions,Support & Facilities General Fund,Supplies and Services,Office Consumables,210,16-Dec-2010,1101-00341,514.67,R,antalis uk ltd
http://statistics.data.gov.uk/doc/local-authority/00DA,Leeds City Council,Central & Corporate Functions,Benefits,Supplies and Services,Office Consumables,210,20-Dec-2010,1101-00342,586.25,R,antalis uk ltd
http://statistics.data.gov.uk/doc/local-authority/00DA,Leeds City Council,Adult Social Care,Social Services Support Services,Supplies and Services,Office Consumables,210,20-Dec-2010,1101-00343,532.00,R,antalis uk ltd
http://statistics.data.gov.uk/doc/local-authority/00DA,Leeds City Council,Central & Corporate Functions,Revenues,Supplies and Services,Office Consumables,210,23-Dec-2010,1101-00344,586.25,R,antalis uk ltd
http://statistics.data.gov.uk/doc/local-authority/00DA,Leeds City Council,Adult Social Care,Social Services Support Services,Supplies and Services,Office Consumables,210,23-Dec-2010,1101-00345,532.00,R,antalis uk ltd
http://statistics.data.gov.uk/doc/local-authority/00DA,Leeds City Council,City Development,Libraries Arts & Heritage,Capital,OTHER COSTS,7,12-Jan-2011,1101-00346,429.00,C,AOC ARCHAEOLOGY GROUP
http://statistics.data.gov.uk/doc/local-authority/00DA,Leeds City Council,Other Education Services Managed By E.L.,Other Education Services Managed By E.L.,Supplies and Services,Other Hired And Contracted Services,265,20-Jan-2011,1101-00347,4455.00,R,AON LTD
http://statistics.data.gov.uk/doc/local-authority/00DA,Leeds City Council,City Development,Highways,Capital,CONSTRUCTION,3,28-Jan-2011,1101-00348,29832.85,C,Apa Concrete Repairs Limited
http://statistics.data.gov.uk/doc/local-authority/00DA,Leeds City Council,Central & Corporate Functions,Commercial Services Trading Services,Supplies and Services,Food & Drink,231,07-Jan-2011,1101-00349,715.53,R,APETITO LTD
http://statistics.data.gov.uk/doc/local-authority/00DA,Leeds City Council,Central & Corporate Functions,Commercial Services Trading Services,Supplies and Services,Food & Drink,231,07-Jan-2011,1101-00350,1446.11,R,APETITO LTD
http://statistics.data.gov.uk/doc/local-authority/00DA,Leeds City Council,Central & Corporate Functions,Commercial Services Trading Services,Supplies and Services,Food & Drink,231,07-Jan-2011,1101-00351,1340.65,R,APETITO LTD
http://statistics.data.gov.uk/doc/local-authority/00DA,Leeds City Council,Central & Corporate Functions,Commercial Services Trading Services,Supplies and Services,Food & Drink,231,07-Jan-2011,1101-00352,823.10,R,APETITO LTD
http://statistics.data.gov.uk/doc/local-authority/00DA,Leeds City Council,Central & Corporate Functions,Commercial Services Trading Services,Supplies and Services,Food & Drink,231,07-Jan-2011,1101-00353,1827.92,R,APETITO LTD
http://statistics.data.gov.uk/doc/local-authority/00DA,Leeds City Council,Central & Corporate Functions,Commercial Services Trading Services,Supplies and Services,Food & Drink,231,07-Jan-2011,1101-00354,1881.90,R,APETITO LTD
http://statistics.data.gov.uk/doc/local-authority/00DA,Leeds City Council,Central & Corporate Functions,Commercial Services Trading Services,Transport,External  Hire - ( Fleet Management),313,14-Jan-2011,1101-00355,-4403.56,R,APETITO LTD
http://statistics.data.gov.uk/doc/local-authority/00DA,Leeds City Council,Central & Corporate Functions,Commercial Services Trading Services,Supplies and Services,Food & Drink,231,14-Jan-2011,1101-00356,728.20,R,APETITO LTD
http://statistics.data.gov.uk/doc/local-authority/00DA,Leeds City Council,Central & Corporate Functions,Commercial Services Trading Services,Supplies and Services,Food & Drink,231,14-Jan-2011,1101-00357,502.49,R,APETITO LTD
http://statistics.data.gov.uk/doc/local-authority/00DA,Leeds City Council,Central & Corporate Functions,Commercial Services Trading Services,Supplies and Services,Food & Drink,231,14-Jan-2011,1101-00358,780.49,R,APETITO LTD
http://statistics.data.gov.uk/doc/local-authority/00DA,Leeds City Council,Central & Corporate Functions,Commercial Services Trading Services,Supplies and Services,Food & Drink,231,14-Jan-2011,1101-00359,2023.96,R,APETITO LTD
http://statistics.data.gov.uk/doc/local-authority/00DA,Leeds City Council,Central & Corporate Functions,Commercial Services Trading Services,Supplies and Services,Food & Drink,231,14-Jan-2011,1101-00360,992.92,R,APETITO LTD
http://statistics.data.gov.uk/doc/local-authority/00DA,Leeds City Council,Central & Corporate Functions,Commercial Services Trading Services,Supplies and Services,Food & Drink,231,14-Jan-2011,1101-00361,869.77,R,APETITO LTD
http://statistics.data.gov.uk/doc/local-authority/00DA,Leeds City Council,Central & Corporate Functions,Commercial Services Trading Services,Supplies and Services,Food & Drink,231,21-Jan-2011,1101-00362,1380.56,R,APETITO LTD
http://statistics.data.gov.uk/doc/local-authority/00DA,Leeds City Council,Environment & Neighbourhoods,Regeneration,Supplies and Services,Well Being Small Grants Projects,228,17-Jan-2011,1101-00363,500.00,R,Apna Yogo Group
http://statistics.data.gov.uk/doc/local-authority/00DA,Leeds City Council,City Development,Economic Development,Supplies and Services,Consultancy Services,259,13-Jan-2011,1101-00364,1883.50,R,APPEAL PR LTD
http://statistics.data.gov.uk/doc/local-authority/00DA,Leeds City Council,City Development,Economic Development,Supplies and Services,Consultancy Services,259,21-Jan-2011,1101-00365,1883.50,R,APPEAL PR LTD
http://statistics.data.gov.uk/doc/local-authority/00DA,Leeds City Council as Accountable Body,Social Services Pooled Budgets,Jcs For People With Learning Disabilitie,Third Party Payments,Residential,580,19-Jan-2011,1101-00366,10373.56,R,APPLEWALK HOMES
http://statistics.data.gov.uk/doc/local-authority/00DA,Leeds City Council,Central & Corporate Functions,Commercial Services Trading Services,Employees,Central Training,079,17-Jan-2011,1101-00367,444.00,R,APSE
http://statistics.data.gov.uk/doc/local-authority/00DA,Leeds City Council,Environment & Neighbourhoods,South South East,Capital,CONSTRUCTION,3,12-Jan-2011,1101-00368,49811.06,C,AQUA INTERIORS T/A V & T PLUMBING
http://statistics.data.gov.uk/doc/local-authority/00DA,Leeds City Council,Central & Corporate Functions,Commercial Services Trading Services,Supplies and Services,Other Hired And Contracted Services,265,05-Jan-2011,1101-00369,915.60,R,AQUATRUST WATER & VENTILATION LTD
http://statistics.data.gov.uk/doc/local-authority/00DA,Leeds City Council,Central & Corporate Functions,Commercial Services Trading Services,Supplies and Services,Other Hired And Contracted Services,265,07-Jan-2011,1101-00370,1266.09,R,AQUATRUST WATER & VENTILATION LTD
http://statistics.data.gov.uk/doc/local-authority/00DA,Leeds City Council as Accountable Body,Social Services Pooled Budgets,Jcs For People With Learning Disabilitie,Third Party Payments,Home Care,568,06-Jan-2011,1101-00371,541.00,R,Arabella Health Staffing Ltd
http://statistics.data.gov.uk/doc/local-authority/00DA,Leeds City Council as Accountable Body,Social Services Pooled Budgets,Jcs For People With Learning Disabilitie,Third Party Payments,Home Care,568,06-Jan-2011,1101-00372,428.71,R,Arabella Health Staffing Ltd
http://statistics.data.gov.uk/doc/local-authority/00DA,Leeds City Council as Accountable Body,Social Services Pooled Budgets,Jcs For People With Learning Disabilitie,Third Party Payments,Home Care,568,06-Jan-2011,1101-00373,546.49,R,Arabella Health Staffing Ltd
http://statistics.data.gov.uk/doc/local-authority/00DA,Leeds City Council as Accountable Body,Social Services Pooled Budgets,Jcs For People With Learning Disabilitie,Third Party Payments,Home Care,568,10-Jan-2011,1101-00374,542.08,R,Arabella Health Staffing Ltd
http://statistics.data.gov.uk/doc/local-authority/00DA,Leeds City Council as Accountable Body,Social Services Pooled Budgets,Jcs For People With Learning Disabilitie,Third Party Payments,Home Care,568,11-Jan-2011,1101-00375,866.43,R,Arabella Health Staffing Ltd
http://statistics.data.gov.uk/doc/local-authority/00DA,Leeds City Council as Accountable Body,Social Services Pooled Budgets,Jcs For People With Learning Disabilitie,Third Party Payments,Home Care,568,11-Jan-2011,1101-00376,908.96,R,Arabella Health Staffing Ltd
http://statistics.data.gov.uk/doc/local-authority/00DA,Leeds City Council as Accountable Body,Social Services Pooled Budgets,Jcs For People With Learning Disabilitie,Third Party Payments,Home Care,568,11-Jan-2011,1101-00377,611.40,R,Arabella Health Staffing Ltd
http://statistics.data.gov.uk/doc/local-authority/00DA,Leeds City Council as Accountable Body,Social Services Pooled Budgets,Jcs For People With Learning Disabilitie,Third Party Payments,Home Care,568,11-Jan-2011,1101-00378,862.34,R,Arabella Health Staffing Ltd
http://statistics.data.gov.uk/doc/local-authority/00DA,Leeds City Council as Accountable Body,Social Services Pooled Budgets,Jcs For People With Learning Disabilitie,Third Party Payments,Home Care,568,11-Jan-2011,1101-00379,1103.33,R,Arabella Health Staffing Ltd
http://statistics.data.gov.uk/doc/local-authority/00DA,Leeds City Council as Accountable Body,Social Services Pooled Budgets,Jcs For People With Learning Disabilitie,Third Party Payments,Home Care,568,12-Jan-2011,1101-00380,1047.74,R,Arabella Health Staffing Ltd
http://statistics.data.gov.uk/doc/local-authority/00DA,Leeds City Council as Accountable Body,Social Services Pooled Budgets,Jcs For People With Learning Disabilitie,Third Party Payments,Home Care,568,12-Jan-2011,1101-00381,1019.75,R,Arabella Health Staffing Ltd
http://statistics.data.gov.uk/doc/local-authority/00DA,Leeds City Council as Accountable Body,Social Services Pooled Budgets,Jcs For People With Learning Disabilitie,Third Party Payments,Home Care,568,13-Jan-2011,1101-00382,934.00,R,Arabella Health Staffing Ltd
http://statistics.data.gov.uk/doc/local-authority/00DA,Leeds City Council as Accountable Body,Social Services Pooled Budgets,Jcs For People With Learning Disabilitie,Third Party Payments,Home Care,568,19-Jan-2011,1101-00383,678.05,R,Arabella Health Staffing Ltd
http://statistics.data.gov.uk/doc/local-authority/00DA,Leeds City Council as Accountable Body,Social Services Pooled Budgets,Jcs For People With Learning Disabilitie,Third Party Payments,Home Care,568,19-Jan-2011,1101-00384,908.97,R,Arabella Health Staffing Ltd
http://statistics.data.gov.uk/doc/local-authority/00DA,Leeds City Council as Accountable Body,Social Services Pooled Budgets,Jcs For People With Learning Disabilitie,Third Party Payments,Home Care,568,19-Jan-2011,1101-00385,428.71,R,Arabella Health Staffing Ltd
http://statistics.data.gov.uk/doc/local-authority/00DA,Leeds City Council as Accountable Body,Social Services Pooled Budgets,Jcs For People With Learning Disabilitie,Third Party Payments,Home Care,568,19-Jan-2011,1101-00386,743.88,R,Arabella Health Staffing Ltd
http://statistics.data.gov.uk/doc/local-authority/00DA,Leeds City Council as Accountable Body,Social Services Pooled Budgets,Jcs For People With Learning Disabilitie,Third Party Payments,Home Care,568,19-Jan-2011,1101-00387,636.24,R,Arabella Health Staffing Ltd
http://statistics.data.gov.uk/doc/local-authority/00DA,Leeds City Council as Accountable Body,Social Services Pooled Budgets,Jcs For People With Learning Disabilitie,Third Party Payments,Home Care,568,19-Jan-2011,1101-00388,525.48,R,Arabella Health Staffing Ltd
http://statistics.data.gov.uk/doc/local-authority/00DA,Leeds City Council as Accountable Body,Social Services Pooled Budgets,Jcs For People With Learning Disabilitie,Third Party Payments,Home Care,568,19-Jan-2011,1101-00389,914.84,R,Arabella Health Staffing Ltd
http://statistics.data.gov.uk/doc/local-authority/00DA,Leeds City Council as Accountable Body,Social Services Pooled Budgets,Jcs For People With Learning Disabilitie,Third Party Payments,Home Care,568,21-Jan-2011,1101-00390,441.56,R,Arabella Health Staffing Ltd
http://statistics.data.gov.uk/doc/local-authority/00DA,Leeds City Council as Accountable Body,Social Services Pooled Budgets,Jcs For People With Learning Disabilitie,Third Party Payments,Home Care,568,21-Jan-2011,1101-00391,1075.52,R,Arabella Health Staffing Ltd
http://statistics.data.gov.uk/doc/local-authority/00DA,Leeds City Council as Accountable Body,Social Services Pooled Budgets,Jcs For People With Learning Disabilitie,Third Party Payments,Home Care,568,21-Jan-2011,1101-00392,743.88,R,Arabella Health Staffing Ltd
http://statistics.data.gov.uk/doc/local-authority/00DA,Leeds City Council as Accountable Body,Social Services Pooled Budgets,Jcs For People With Learning Disabilitie,Third Party Payments,Home Care,568,24-Jan-2011,1101-00393,428.62,R,Arabella Health Staffing Ltd
http://statistics.data.gov.uk/doc/local-authority/00DA,Leeds City Council as Accountable Body,Social Services Pooled Budgets,Jcs For People With Learning Disabilitie,Third Party Payments,Home Care,568,25-Jan-2011,1101-00394,866.94,R,Arabella Health Staffing Ltd
http://statistics.data.gov.uk/doc/local-authority/00DA,Leeds City Council as Accountable Body,Social Services Pooled Budgets,Jcs For People With Learning Disabilitie,Third Party Payments,Home Care,568,25-Jan-2011,1101-00395,1215.40,R,Arabella Health Staffing Ltd
http://statistics.data.gov.uk/doc/local-authority/00DA,Leeds City Council as Accountable Body,Social Services Pooled Budgets,Jcs For People With Learning Disabilitie,Third Party Payments,Home Care,568,25-Jan-2011,1101-00396,1213.00,R,Arabella Health Staffing Ltd
http://statistics.data.gov.uk/doc/local-authority/00DA,Leeds City Council as Accountable Body,Social Services Pooled Budgets,Jcs For People With Learning Disabilitie,Third Party Payments,Home Care,568,28-Jan-2011,1101-00397,-548.74,R,Arabella Health Staffing Ltd
http://statistics.data.gov.uk/doc/local-authority/00DA,Leeds City Council as Accountable Body,Social Services Pooled Budgets,Jcs For People With Learning Disabilitie,Third Party Payments,Home Care,568,28-Jan-2011,1101-00398,525.48,R,Arabella Health Staffing Ltd
http://statistics.data.gov.uk/doc/local-authority/00DA,Leeds City Council as Accountable Body,Social Services Pooled Budgets,Jcs For People With Learning Disabilitie,Third Party Payments,Home Care,568,28-Jan-2011,1101-00399,428.71,R,Arabella Health Staffing Ltd
http://statistics.data.gov.uk/doc/local-authority/00DA,Leeds City Council as Accountable Body,Social Services Pooled Budgets,Jcs For People With Learning Disabilitie,Third Party Payments,Home Care,568,28-Jan-2011,1101-00400,525.48,R,Arabella Health Staffing Ltd
http://statistics.data.gov.uk/doc/local-authority/00DA,Leeds City Council,Environment & Neighbourhoods,Regeneration,Supplies and Services,Non-Recurring Grants,227,28-Jan-2011,1101-00401,1912.00,R,ARCHWAY
http://statistics.data.gov.uk/doc/local-authority/00DA,Leeds City Council,Environment & Neighbourhoods,Regeneration,Supplies and Services,Non-Recurring Grants,227,28-Jan-2011,1101-00402,6290.00,R,ARCHWAY
http://statistics.data.gov.uk/doc/local-authority/00DA,Leeds City Council,City Development,Highways,Supplies and Services,Operational Materials,205,04-Jan-2011,1101-00403,525.60,R,ARCO LTD
http://statistics.data.gov.uk/doc/local-authority/00DA,Leeds City Council,Central & Corporate Functions,Commercial Services Trading Services,Supplies and Services,Operational Materials,205,04-Jan-2011,1101-00404,3609.00,R,ARCO LTD
http://statistics.data.gov.uk/doc/local-authority/00DA,Leeds City Council,City Development,Highways,Supplies and Services,Operational Materials,205,12-Jan-2011,1101-00405,420.48,R,ARCO LTD
http://statistics.data.gov.uk/doc/local-authority/00DA,East North East Homes Leeds,East - North East,Technical Services,Supplies and Services,Other Materials,205,18-Jan-2011,1101-00406,594.69,R,ARCO LTD
http://statistics.data.gov.uk/doc/local-authority/00DA,Leeds City Council,Environment & Neighbourhoods,Streetscene Environmental Services,Supplies and Services,Clothing & Uniforms,241,28-Jan-2011,1101-00407,806.40,R,ARCO LTD
http://statistics.data.gov.uk/doc/local-authority/00DA,Leeds City Council,Environment & Neighbourhoods,Streetscene Environmental Services,Supplies and Services,Clothing & Uniforms,241,28-Jan-2011,1101-00408,956.68,R,ARCO LTD
http://statistics.data.gov.uk/doc/local-authority/00DA,Leeds City Council,Environment & Neighbourhoods,Streetscene Environmental Services,Supplies and Services,Clothing & Uniforms,241,07-Jan-2011,1101-00409,623.80,R,ARDEN WINCH AND COMPANY LIMITED
http://statistics.data.gov.uk/doc/local-authority/00DA,Leeds City Council,Environment & Neighbourhoods,Streetscene Environmental Services,Supplies and Services,Clothing & Uniforms,241,07-Jan-2011,1101-00410,2076.00,R,ARDEN WINCH AND COMPANY LIMITED
http://statistics.data.gov.uk/doc/local-authority/00DA,Leeds City Council,Environment & Neighbourhoods,Streetscene Environmental Services,Supplies and Services,Clothing & Uniforms,241,07-Jan-2011,1101-00411,1305.00,R,ARDEN WINCH AND COMPANY LIMITED
http://statistics.data.gov.uk/doc/local-authority/00DA,Leeds City Council,Environment & Neighbourhoods,Streetscene Environmental Services,Supplies and Services,Clothing & Uniforms,241,07-Jan-2011,1101-00412,972.50,R,ARDEN WINCH AND COMPANY LIMITED
http://statistics.data.gov.uk/doc/local-authority/00DA,Leeds City Council,Environment & Neighbourhoods,Streetscene Environmental Services,Supplies and Services,Clothing & Uniforms,241,26-Jan-2011,1101-00413,480.00,R,ARDEN WINCH AND COMPANY LIMITED
http://statistics.data.gov.uk/doc/local-authority/00DA,Leeds City Council,Other Education Services Managed By E.L.,Primary Schools,Capital,CONSTRUCTION,3,19-Jan-2011,1101-00414,4055.00,C,ARJO LIMITED
http://statistics.data.gov.uk/doc/local-authority/00DA,Leeds City Council,Central & Corporate Functions,Commercial Services Trading Services,Transport,External Hire -Occasional,304,12-Jan-2011,1101-00415,430.36,R,ARNOLD CLARK FINANCE LTD
http://statistics.data.gov.uk/doc/local-authority/00DA,Leeds City Council,Central & Corporate Functions,Commercial Services Trading Services,Transport,External Hire -Occasional,304,14-Jan-2011,1101-00416,443.30,R,ARNOLD CLARK FINANCE LTD
http://statistics.data.gov.uk/doc/local-authority/00DA,Leeds City Council,Central & Corporate Functions,Commercial Services Trading Services,Transport,External Hire -Occasional,304,21-Jan-2011,1101-00417,430.36,R,ARNOLD CLARK FINANCE LTD
http://statistics.data.gov.uk/doc/local-authority/00DA,Leeds City Council,Central & Corporate Functions,Commercial Services Trading Services,Transport,External Hire -Occasional,304,21-Jan-2011,1101-00418,436.80,R,ARNOLD CLARK FINANCE LTD
http://statistics.data.gov.uk/doc/local-authority/00DA,East North East Homes Leeds,East - North East,Technical Services,Supplies and Services,Other Materials,205,04-Jan-2011,1101-00419,642.38,R,ARNOLD LAVER & CO LTD
http://statistics.data.gov.uk/doc/local-authority/00DA,East North East Homes Leeds,East - North East,Technical Services,Supplies and Services,Other Materials,205,07-Jan-2011,1101-00420,752.33,R,ARNOLD LAVER & CO LTD
http://statistics.data.gov.uk/doc/local-authority/00DA,East North East Homes Leeds,East - North East,Technical Services,Supplies and Services,Other Materials,205,19-Jan-2011,1101-00421,509.78,R,ARNOLD LAVER & CO LTD
http://statistics.data.gov.uk/doc/local-authority/00DA,Leeds City Council,City Development,Libraries Arts & Heritage,Supplies and Services,Operational Materials,205,21-Jan-2011,1101-00422,563.59,R,ARNOLD LAVER & CO LTD
http://statistics.data.gov.uk/doc/local-authority/00DA,East North East Homes Leeds,East - North East,Technical Services,Supplies and Services,Other Materials,205,28-Jan-2011,1101-00423,443.62,R,ARNOLD LAVER & CO LTD
http://statistics.data.gov.uk/doc/local-authority/00DA,East North East Homes Leeds,East - North East,Technical Services,Supplies and Services,Other Hired And Contracted Services,265,07-Jan-2011,1101-00424,4400.00,R,Arr Spend Management Solutions
http://statistics.data.gov.uk/doc/local-authority/00DA,East North East Homes Leeds,East - North East,Technical Services,Supplies and Services,Other Hired And Contracted Services,265,14-Jan-2011,1101-00425,3850.00,R,Arr Spend Management Solutions
http://statistics.data.gov.uk/doc/local-authority/00DA,East North East Homes Leeds,East - North East,Technical Services,Supplies and Services,Other Hired And Contracted Services,265,28-Jan-2011,1101-00426,1100.00,R,Arr Spend Management Solutions
http://statistics.data.gov.uk/doc/local-authority/00DA,Leeds City Council,Adult Social Care,Services For Older People - 65 And Over,Third Party Payments,Nursing Home,570,20-Jan-2011,1101-00427,1367.92,R,Arrigadeen Nursing Home
http://statistics.data.gov.uk/doc/local-authority/00DA,Leeds City Council,Environment & Neighbourhoods,Regeneration,Supplies and Services,Well Being Small Grants Projects,228,14-Jan-2011,1101-00428,500.00,R,Art First
http://statistics.data.gov.uk/doc/local-authority/00DA,Leeds City Council,Adult Social Care,Social Services Support Services,Third Party Payments,Payments To Voluntary Organisations,561,07-Jan-2011,1101-00429,7139.96,R,ARTICULATE ADVOCACY
http://statistics.data.gov.uk/doc/local-authority/00DA,Leeds City Council,Adult Social Care,Social Services Support Services,Third Party Payments,Payments To Voluntary Organisations,561,07-Jan-2011,1101-00430,1326.55,R,ARTICULATE ADVOCACY
http://statistics.data.gov.uk/doc/local-authority/00DA,Leeds City Council,Adult Social Care,Social Services Support Services,Third Party Payments,Payments To Voluntary Organisations,561,18-Jan-2011,1101-00431,7988.14,R,ARTICULATE ADVOCACY
http://statistics.data.gov.uk/doc/local-authority/00DA,Leeds City Council,Central & Corporate Functions,Corporate Governance,Transport,Fuel (Non LCC Supplies),321,07-Jan-2011,1101-00432,504.55,R,ARVAL PHH BUSINESS SOLUTIONS LTD
http://statistics.data.gov.uk/doc/local-authority/00DA,Leeds City Council,Other Education Services Managed By E.L.,Other Education Services Managed By E.L.,Transport,Fuel (Non LCC Supplies),321,07-Jan-2011,1101-00433,1578.74,R,ARVAL PHH BUSINESS SOLUTIONS LTD
http://statistics.data.gov.uk/doc/local-authority/00DA,Leeds City Council,Environment & Neighbourhoods,West North West,Capital,CONSTRUCTION,3,04-Jan-2011,1101-00434,600.00,C,Asbestos Consultants
http://statistics.data.gov.uk/doc/local-authority/00DA,Leeds City Council,Environment & Neighbourhoods,West North West,Capital,CONSTRUCTION,3,04-Jan-2011,1101-00435,5400.00,C,Asbestos Consultants
http://statistics.data.gov.uk/doc/local-authority/00DA,Leeds City Council,Environment & Neighbourhoods,West North West,Capital,OTHER COSTS,7,19-Jan-2011,1101-00436,750.00,C,Asbestos Consultants
http://statistics.data.gov.uk/doc/local-authority/00DA,Leeds City Council,Environment & Neighbourhoods,West North West,Capital,CONSTRUCTION,3,19-Jan-2011,1101-00437,2700.00,C,Asbestos Consultants
http://statistics.data.gov.uk/doc/local-authority/00DA,Leeds City Council,Environment & Neighbourhoods,West North West,Capital,CONSTRUCTION,3,19-Jan-2011,1101-00438,11690.00,C,Asbestos Consultants
http://statistics.data.gov.uk/doc/local-authority/00DA,Leeds City Council,Central & Corporate Functions,Commercial Services Trading Services,Supplies and Services,Other Hired And Contracted Services,265,07-Jan-2011,1101-00439,435.00,R,ASBESTOS SAMPLE ANALYSIS LIMITED
http://statistics.data.gov.uk/doc/local-authority/00DA,Leeds City Council,Central & Corporate Functions,Commercial Services Trading Services,Supplies and Services,Other Hired And Contracted Services,265,07-Jan-2011,1101-00440,435.00,R,ASBESTOS SAMPLE ANALYSIS LIMITED
http://statistics.data.gov.uk/doc/local-authority/00DA,Leeds City Council,Central & Corporate Functions,Commercial Services Trading Services,Supplies and Services,Other Hired And Contracted Services,265,13-Jan-2011,1101-00441,645.00,R,ASBESTOS SAMPLE ANALYSIS LIMITED
http://statistics.data.gov.uk/doc/local-authority/00DA,Leeds City Council,Central & Corporate Functions,Commercial Services Trading Services,Supplies and Services,Other Hired And Contracted Services,265,13-Jan-2011,1101-00442,468.00,R,ASBESTOS SAMPLE ANALYSIS LIMITED
http://statistics.data.gov.uk/doc/local-authority/00DA,Leeds City Council,Central & Corporate Functions,Commercial Services Trading Services,Supplies and Services,Other Hired And Contracted Services,265,14-Jan-2011,1101-00443,495.00,R,ASBESTOS SAMPLE ANALYSIS LIMITED
http://statistics.data.gov.uk/doc/local-authority/00DA,Leeds City Council,Central & Corporate Functions,Commercial Services Trading Services,Supplies and Services,Other Hired And Contracted Services,265,14-Jan-2011,1101-00444,427.50,R,ASBESTOS SAMPLE ANALYSIS LIMITED
http://statistics.data.gov.uk/doc/local-authority/00DA,Leeds City Council,Central & Corporate Functions,Commercial Services Trading Services,Supplies and Services,Other Hired And Contracted Services,265,28-Jan-2011,1101-00445,465.00,R,ASBESTOS SAMPLE ANALYSIS LIMITED
http://statistics.data.gov.uk/doc/local-authority/00DA,Leeds City Council,Central & Corporate Functions,Commercial Services Trading Services,Supplies and Services,Other Hired And Contracted Services,265,28-Jan-2011,1101-00446,450.00,R,ASBESTOS SAMPLE ANALYSIS LIMITED
http://statistics.data.gov.uk/doc/local-authority/00DA,Leeds City Council,Central & Corporate Functions,Support And Facilities Trading Services,Supplies and Services,Operational Materials,205,07-Jan-2011,1101-00447,2415.60,R,ASD METAL SERVICES
http://statistics.data.gov.uk/doc/local-authority/00DA,Leeds City Council,Central & Corporate Functions,Support And Facilities Trading Services,Supplies and Services,Operational Materials,205,19-Jan-2011,1101-00448,2880.00,R,ASD METAL SERVICES
http://statistics.data.gov.uk/doc/local-authority/00DA,Leeds City Council,Central & Corporate Functions,Corporate Property Management,Premises,Rents,141,13-Jan-2011,1101-00449,17017.50,R,ASDA STORES LIMITED
http://statistics.data.gov.uk/doc/local-authority/00DA,Leeds City Council,Adult Social Care,Services For Older People - 65 And Over,Third Party Payments,Residential,580,19-Jan-2011,1101-00450,9686.74,R,ASHCROFT HOUSE RESIDENTIAL HOME
http://statistics.data.gov.uk/doc/local-authority/00DA,Leeds City Council,Adult Social Care,Services For Older People - 65 And Over,Third Party Payments,Nursing Home,570,19-Jan-2011,1101-00451,1228.68,R,ASHCROFT NURSING HOME
http://statistics.data.gov.uk/doc/local-authority/00DA,Leeds City Council,Adult Social Care,Services For Older People - 65 And Over,Third Party Payments,Nursing Home,570,19-Jan-2011,1101-00452,2575.68,R,ASHCROFT NURSING HOME
http://statistics.data.gov.uk/doc/local-authority/00DA,Leeds City Council,Adult Social Care,Services For Older People - 65 And Over,Third Party Payments,Residential Care Emi,571,19-Jan-2011,1101-00453,802.80,R,ASHCROFT NURSING HOME
http://statistics.data.gov.uk/doc/local-authority/00DA,Leeds City Council,Adult Social Care,Services For Older People - 65 And Over,Third Party Payments,Residential Care Emi,571,19-Jan-2011,1101-00454,693.16,R,ASHFIELD COURT
http://statistics.data.gov.uk/doc/local-authority/00DA,Leeds City Council,Adult Social Care,Services For Older People - 65 And Over,Third Party Payments,Residential,580,19-Jan-2011,1101-00455,605.08,R,Ashfield Court
http://statistics.data.gov.uk/doc/local-authority/00DA,Leeds City Council,Adult Social Care,Services For Older People - 65 And Over,Third Party Payments,Nursing Home,570,19-Jan-2011,1101-00456,19593.49,R,ASHFIELD NURSING HOME
http://statistics.data.gov.uk/doc/local-authority/00DA,Leeds City Council,Adult Social Care,Services For Adults Under 65 Mental/Dis,Third Party Payments,Residential,580,19-Jan-2011,1101-00457,2318.40,R,ASHFIELD NURSING HOME
http://statistics.data.gov.uk/doc/local-authority/00DA,Leeds City Council,Adult Social Care,Services For Older People - 65 And Over,Third Party Payments,Residential,580,19-Jan-2011,1101-00458,2739.76,R,ASHFIELD NURSING HOME
http://statistics.data.gov.uk/doc/local-authority/00DA,Leeds City Council,Adult Social Care,Services For Older People - 65 And Over,Third Party Payments,Nursing Home,570,19-Jan-2011,1101-00459,1504.00,R,Ashley Care Ltd
http://statistics.data.gov.uk/doc/local-authority/00DA,Leeds City Council,Central & Corporate Functions,Corporate Governance,Support Services,EXTERNAL COUNSEL - SPECIALIST,751,07-Jan-2011,1101-00460,17625.00,R,Ashley Underwood
http://statistics.data.gov.uk/doc/local-authority/00DA,Leeds City Council,Central & Corporate Functions,Corporate Governance,Support Services,MSCLLANEOUS - COUNSELS' FEES,702,28-Jan-2011,1101-00461,1500.00,R,Ashley Underwood
http://statistics.data.gov.uk/doc/local-authority/00DA,Leeds City Council,City Development,Highways,Transport,Plant Hire - By Directorate,305,05-Jan-2011,1101-00462,726.00,R,ASHTEAD PLANT HIRE COMPANY LTD
http://statistics.data.gov.uk/doc/local-authority/00DA,Leeds City Council,City Development,Highways,Transport,Plant Hire - By Directorate,305,05-Jan-2011,1101-00463,726.00,R,ASHTEAD PLANT HIRE COMPANY LTD
http://statistics.data.gov.uk/doc/local-authority/00DA,Leeds City Council,Adult Social Care,Services For Older People - 65 And Over,Third Party Payments,Residential Care Emi,571,19-Jan-2011,1101-00464,871.28,R,ASHVILLE CARE HOME
http://statistics.data.gov.uk/doc/local-authority/00DA,Leeds City Council,Adult Social Care,Services For Older People - 65 And Over,Third Party Payments,Residential,580,20-Jan-2011,1101-00465,1139.72,R,Ashworth Grange
http://statistics.data.gov.uk/doc/local-authority/00DA,East North East Homes Leeds,East - North East,Corporate Directorate,Employees,General Training,079,20-Jan-2011,1101-00466,875.00,R,ASKHAM BRYAN COLLEGE
http://statistics.data.gov.uk/doc/local-authority/00DA,Leeds City Council as Accountable Body,Social Services Pooled Budgets,Leeds Community Equip Store Pooled Budgt,Supplies and Services,Other Equipment,203,13-Jan-2011,1101-00467,1375.00,R,ASM ACCESSORIES LTD
http://statistics.data.gov.uk/doc/local-authority/00DA,Education Leeds,Education Leeds,Education Leeds,Premises,Buildings,101,28-Jan-2011,1101-00468,416.75,R,ASPECT BUILDING SOLUTIONS
http://statistics.data.gov.uk/doc/local-authority/00DA,Leeds City Council,City Development,Highways,Transport,Plant Hire - By Directorate,305,05-Jan-2011,1101-00469,2642.00,R,ASPHALT PAVERS
http://statistics.data.gov.uk/doc/local-authority/00DA,Leeds City Council,City Development,Highways,Transport,Plant Hire - By Directorate,305,07-Jan-2011,1101-00470,790.00,R,ASPHALT PAVERS
http://statistics.data.gov.uk/doc/local-authority/00DA,Leeds City Council,City Development,Highways,Transport,Plant Hire - By Directorate,305,07-Jan-2011,1101-00471,790.00,R,ASPHALT PAVERS
http://statistics.data.gov.uk/doc/local-authority/00DA,Leeds City Council,City Development,Highways,Transport,Plant Hire - By Directorate,305,07-Jan-2011,1101-00472,850.00,R,ASPHALT PAVERS
http://statistics.data.gov.uk/doc/local-authority/00DA,Leeds City Council,City Development,Highways,Transport,Plant Hire - By Directorate,305,20-Jan-2011,1101-00473,790.00,R,ASPHALT PAVERS
http://statistics.data.gov.uk/doc/local-authority/00DA,Leeds City Council,Childrens Services,Early Years Service,Third Party Payments,Services Rendered By Other Organisations,511,07-Jan-2011,1101-00474,7097.98,R,ASQUITH COURT NURSERY
http://statistics.data.gov.uk/doc/local-authority/00DA,Leeds City Council,Childrens Services,Early Years Service,Third Party Payments,Services Rendered By Other Organisations,511,07-Jan-2011,1101-00475,6312.95,R,ASQUITH NURSERIES LTD
http://statistics.data.gov.uk/doc/local-authority/00DA,Leeds City Council,Childrens Services,Youth Justice,Supplies and Services,Teaching Materials,202,14-Jan-2011,1101-00476,1828.35,R,ASSESSMENT AND QUALIFICATIONS ALLIANCE
http://statistics.data.gov.uk/doc/local-authority/00DA,Leeds City Council,Central & Corporate Functions,Commercial Services Trading Services,Transport,Repairs to  External Hire Vehicles,343,10-Jan-2011,1101-00477,608.60,R,ASSET ADVANTAGE LTD
http://statistics.data.gov.uk/doc/local-authority/00DA,Leeds City Council,Strategic Accounts,Leasing,Leasing,Leasing,040,18-Jan-2011,1101-00478,2050.00,R,ASSET ADVANTAGE LTD
http://statistics.data.gov.uk/doc/local-authority/00DA,Leeds City Council,City Development,Support Services,Premises,Removal Of Workplace Waste,126,04-Jan-2011,1101-00479,6753.29,R,ASSOCIATED WASTE MANAGEMENT LIMITED
http://statistics.data.gov.uk/doc/local-authority/00DA,Leeds City Council,Central & Corporate Functions,Commercial Services Trading Services,Supplies and Services,Other Hired And Contracted Services,265,04-Jan-2011,1101-00480,486.00,R,ASSOCIATED WASTE MANAGEMENT LIMITED
http://statistics.data.gov.uk/doc/local-authority/00DA,Leeds City Council,Central & Corporate Functions,Commercial Services Trading Services,Supplies and Services,Other Hired And Contracted Services,265,04-Jan-2011,1101-00481,1266.60,R,ASSOCIATED WASTE MANAGEMENT LIMITED
http://statistics.data.gov.uk/doc/local-authority/00DA,Leeds City Council,City Development,Recreation,Premises,Removal Of Workplace Waste,126,04-Jan-2011,1101-00482,445.70,R,ASSOCIATED WASTE MANAGEMENT LIMITED
http://statistics.data.gov.uk/doc/local-authority/00DA,Leeds City Council,Central & Corporate Functions,Commercial Services Trading Services,Premises,Removal Of Workplace Waste,126,07-Jan-2011,1101-00483,674.52,R,ASSOCIATED WASTE MANAGEMENT LIMITED
http://statistics.data.gov.uk/doc/local-authority/00DA,Leeds City Council,City Development,Support Services,Premises,Removal Of Workplace Waste,126,11-Jan-2011,1101-00484,5879.31,R,ASSOCIATED WASTE MANAGEMENT LIMITED
http://statistics.data.gov.uk/doc/local-authority/00DA,Leeds City Council,Central & Corporate Functions,Commercial Services Trading Services,Supplies and Services,Other Hired And Contracted Services,265,13-Jan-2011,1101-00485,777.00,R,ASSOCIATED WASTE MANAGEMENT LIMITED
http://statistics.data.gov.uk/doc/local-authority/00DA,Leeds City Council,City Development,Recreation,Premises,Removal Of Workplace Waste,126,13-Jan-2011,1101-00486,926.11,R,ASSOCIATED WASTE MANAGEMENT LIMITED
http://statistics.data.gov.uk/doc/local-authority/00DA,Leeds City Council,Central & Corporate Functions,Commercial Services Trading Services,Supplies and Services,Other Hired And Contracted Services,265,14-Jan-2011,1101-00487,457.80,R,ASSOCIATED WASTE MANAGEMENT LIMITED
http://statistics.data.gov.uk/doc/local-authority/00DA,Leeds City Council,City Development,Recreation,Premises,Removal Of Workplace Waste,126,17-Jan-2011,1101-00488,1053.46,R,ASSOCIATED WASTE MANAGEMENT LIMITED
http://statistics.data.gov.uk/doc/local-authority/00DA,Leeds City Council,City Development,Libraries Arts & Heritage,Premises,Removal Of Workplace Waste,126,18-Jan-2011,1101-00489,-487.50,R,ASSOCIATED WASTE MANAGEMENT LIMITED
http://statistics.data.gov.uk/doc/local-authority/00DA,Leeds City Council,City Development,Libraries Arts & Heritage,Premises,Removal Of Workplace Waste,126,18-Jan-2011,1101-00490,-480.00,R,ASSOCIATED WASTE MANAGEMENT LIMITED
http://statistics.data.gov.uk/doc/local-authority/00DA,Leeds City Council,City Development,Support Services,Premises,Removal Of Workplace Waste,126,20-Jan-2011,1101-00491,1762.67,R,ASSOCIATED WASTE MANAGEMENT LIMITED
http://statistics.data.gov.uk/doc/local-authority/00DA,Leeds City Council,City Development,Recreation,Premises,Removal Of Workplace Waste,126,24-Jan-2011,1101-00492,577.54,R,ASSOCIATED WASTE MANAGEMENT LIMITED
http://statistics.data.gov.uk/doc/local-authority/00DA,Leeds City Council,Central & Corporate Functions,Support And Facilities General Fund,Premises,Removal Of Workplace Waste,126,28-Jan-2011,1101-00493,474.96,R,ASSOCIATED WASTE MANAGEMENT LIMITED
http://statistics.data.gov.uk/doc/local-authority/00DA,Leeds City Council,City Development,Recreation,Premises,Removal Of Workplace Waste,126,28-Jan-2011,1101-00494,440.42,R,ASSOCIATED WASTE MANAGEMENT LIMITED
http://statistics.data.gov.uk/doc/local-authority/00DA,Leeds City Council,City Development,Recreation,Premises,Removal Of Workplace Waste,126,28-Jan-2011,1101-00495,417.79,R,ASSOCIATED WASTE MANAGEMENT LIMITED
http://statistics.data.gov.uk/doc/local-authority/00DA,Leeds City Council,City Development,Economic Development,Supplies and Services,Memberships,226,28-Jan-2011,1101-00496,695.00,R,ASSOCIATION OF TOWN CENTRE MANAGEMENT
http://statistics.data.gov.uk/doc/local-authority/00DA,Leeds City Council,Central & Corporate Functions,Corporate Property Management,Premises,Rents,141,12-Jan-2011,1101-00497,32318.87,R,ATC PROPERTIES LIMITED
http://statistics.data.gov.uk/doc/local-authority/00DA,Leeds City Council,Central & Corporate Functions,Corporate Property Management,Premises,Rents,141,13-Jan-2011,1101-00498,16159.43,R,ATC PROPERTIES LIMITED
http://statistics.data.gov.uk/doc/local-authority/00DA,Leeds City Council,Central & Corporate Functions,Corporate Property Management,Premises,Rents,141,18-Jan-2011,1101-00499,16434.43,R,ATC PROPERTIES LIMITED
http://statistics.data.gov.uk/doc/local-authority/00DA,Leeds City Council,Adult Social Care,Services For Older People - 65 And Over,Third Party Payments,Nursing Home,570,19-Jan-2011,1101-00500,8711.50,R,Atkinson Court
http://statistics.data.gov.uk/doc/local-authority/00DA,Leeds City Council,Adult Social Care,Services For Older People - 65 And Over,Third Party Payments,Nursing Care Emi,574,19-Jan-2011,1101-00501,9733.27,R,Atkinson Court
http://statistics.data.gov.uk/doc/local-authority/00DA,Leeds City Council,Adult Social Care,Services For Older People - 65 And Over,Third Party Payments,Nursing Home,570,19-Jan-2011,1101-00502,1142.80,R,ATTLEE COURT
http://statistics.data.gov.uk/doc/local-authority/00DA,Leeds City Council,Adult Social Care,Services For Older People - 65 And Over,Third Party Payments,Nursing Care Emi,574,19-Jan-2011,1101-00503,1161.40,R,ATTLEE COURT
http://statistics.data.gov.uk/doc/local-authority/00DA,Leeds City Council,Central & Corporate Functions,Commercial Services Trading Services,Supplies and Services,Food & Drink,231,05-Jan-2011,1101-00504,1146.88,R,Aunt Bessie's Limited
http://statistics.data.gov.uk/doc/local-authority/00DA,Leeds City Council,Central & Corporate Functions,Commercial Services Trading Services,Supplies and Services,Food & Drink,231,12-Jan-2011,1101-00505,1131.52,R,Aunt Bessie's Limited
http://statistics.data.gov.uk/doc/local-authority/00DA,Leeds City Council,Central & Corporate Functions,Commercial Services Trading Services,Supplies and Services,Food & Drink,231,14-Jan-2011,1101-00506,1146.88,R,Aunt Bessie's Limited
http://statistics.data.gov.uk/doc/local-authority/00DA,Leeds City Council,Central & Corporate Functions,Commercial Services Trading Services,Supplies and Services,Food & Drink,231,28-Jan-2011,1101-00507,1146.88,R,Aunt Bessie's Limited
http://statistics.data.gov.uk/doc/local-authority/00DA,Leeds City Council as Accountable Body,Social Services Pooled Budgets,Jcs For People With Learning Disabilitie,Third Party Payments,Residential,580,19-Jan-2011,1101-00508,9302.61,R,AUTISM CARE (UK) LTD
http://statistics.data.gov.uk/doc/local-authority/00DA,Leeds City Council,City Development,Libraries Arts & Heritage,Supplies and Services,Operational Furniture And Equipment,203,05-Jan-2011,1101-00509,587.50,R,AV & C LIMITED
http://statistics.data.gov.uk/doc/local-authority/00DA,East North East Homes Leeds,East - North East,Technical Services,Supplies and Services,Other Hired And Contracted Services,265,07-Jan-2011,1101-00510,7599.67,R,AVALON
http://statistics.data.gov.uk/doc/local-authority/00DA,Leeds City Council as Accountable Body,Social Services Pooled Budgets,Jcs For People With Learning Disabilitie,Third Party Payments,Home Care,568,17-Jan-2011,1101-00511,823.81,R,AVALON
http://statistics.data.gov.uk/doc/local-authority/00DA,Leeds City Council as Accountable Body,Social Services Pooled Budgets,Jcs For People With Learning Disabilitie,Third Party Payments,Home Care,568,21-Jan-2011,1101-00512,1332.20,R,AVALON
http://statistics.data.gov.uk/doc/local-authority/00DA,East North East Homes Leeds,East - North East,Housing Services,Supplies and Services,Other Hired And Contracted Services,009,31-Jan-2011,1101-00513,6133.33,R,AVALON
http://statistics.data.gov.uk/doc/local-authority/00DA,East North East Homes Leeds,East - North East,Housing Services,Supplies and Services,Other Hired And Contracted Services,009,31-Jan-2011,1101-00514,6133.33,R,AVALON
http://statistics.data.gov.uk/doc/local-authority/00DA,Leeds City Council as Accountable Body,Social Services Pooled Budgets,Jcs For People With Learning Disabilitie,Third Party Payments,Residential,580,10-Jan-2011,1101-00515,4642.20,R,AVENS LTD
http://statistics.data.gov.uk/doc/local-authority/00DA,Leeds City Council as Accountable Body,Social Services Pooled Budgets,Jcs For People With Learning Disabilitie,Third Party Payments,Residential,580,28-Jan-2011,1101-00516,4642.20,R,AVENS LTD
http://statistics.data.gov.uk/doc/local-authority/00DA,Leeds City Council as Accountable Body,Social Services Pooled Budgets,Jcs For People With Learning Disabilitie,Third Party Payments,Residential,580,19-Jan-2011,1101-00517,4153.72,R,AVON LODGE
http://statistics.data.gov.uk/doc/local-authority/00DA,Leeds City Council,City Development,Libraries Arts & Heritage,Supplies and Services,Operational Materials,205,06-Jan-2011,1101-00518,1676.00,R,AW HAINSWORTH & SONS LTD
http://statistics.data.gov.uk/doc/local-authority/00DA,Leeds City Council,City Development,Recreation,Supplies and Services,Publication And Promotion,267,21-Jan-2011,1101-00519,1007.87,R,AWARD BANNERS & SIGNS
http://statistics.data.gov.uk/doc/local-authority/00DA,Leeds City Council,Childrens Services,Intergrated Youth Support  Service,Supplies and Services,Books & Audio-Visual Materials,206,06-Jan-2011,1101-00520,2185.53,R,AWARD SCHEME LTD
http://statistics.data.gov.uk/doc/local-authority/00DA,Leeds City Council,Central & Corporate Functions,Corporate Property Management,Premises,Rents,141,14-Jan-2011,1101-00521,10200.23,R,AWS LTD
http://statistics.data.gov.uk/doc/local-authority/00DA,Leeds City Council,Adult Social Care,Services For Older People - 65 And Over,Third Party Payments,Nursing Home,570,19-Jan-2011,1101-00522,1238.80,R,AYRESOME COURT NURSING HOME
http://statistics.data.gov.uk/doc/local-authority/00DA,Leeds City Council,Environment & Neighbourhoods,Environmental Health,Capital,CONSTRUCTION,3,04-Jan-2011,1101-00523,4400.00,C,B & K PASSMORE
http://statistics.data.gov.uk/doc/local-authority/00DA,Leeds City Council,Environment & Neighbourhoods,Environmental Health,Capital,CONSTRUCTION,3,04-Jan-2011,1101-00524,4400.00,C,B & K PASSMORE
http://statistics.data.gov.uk/doc/local-authority/00DA,Leeds City Council,Environment & Neighbourhoods,Environmental Health,Capital,CONSTRUCTION,3,04-Jan-2011,1101-00525,1500.00,C,B & K PASSMORE
http://statistics.data.gov.uk/doc/local-authority/00DA,Leeds City Council,Environment & Neighbourhoods,Environmental Health,Capital,CONSTRUCTION,3,04-Jan-2011,1101-00526,7656.00,C,B & K PASSMORE
http://statistics.data.gov.uk/doc/local-authority/00DA,Leeds City Council,Environment & Neighbourhoods,Environmental Health,Capital,CONSTRUCTION,3,07-Jan-2011,1101-00527,4400.00,C,B & K PASSMORE
http://statistics.data.gov.uk/doc/local-authority/00DA,Leeds City Council,Environment & Neighbourhoods,Environmental Health,Capital,CONSTRUCTION,3,07-Jan-2011,1101-00528,4670.00,C,B & K PASSMORE
http://statistics.data.gov.uk/doc/local-authority/00DA,Leeds City Council,Environment & Neighbourhoods,Environmental Health,Capital,CONSTRUCTION,3,07-Jan-2011,1101-00529,4400.00,C,B & K PASSMORE
http://statistics.data.gov.uk/doc/local-authority/00DA,Leeds City Council,Environment & Neighbourhoods,Environmental Health,Capital,CONSTRUCTION,3,18-Jan-2011,1101-00530,4342.32,C,B & K PASSMORE
http://statistics.data.gov.uk/doc/local-authority/00DA,Leeds City Council,Environment & Neighbourhoods,Environmental Health,Capital,CONSTRUCTION,3,18-Jan-2011,1101-00531,4400.00,C,B & K PASSMORE
http://statistics.data.gov.uk/doc/local-authority/00DA,Leeds City Council,Environment & Neighbourhoods,Environmental Health,Capital,CONSTRUCTION,3,18-Jan-2011,1101-00532,1500.00,C,B & K PASSMORE
http://statistics.data.gov.uk/doc/local-authority/00DA,Leeds City Council,Environment & Neighbourhoods,Environmental Health,Capital,CONSTRUCTION,3,18-Jan-2011,1101-00533,4400.00,C,B & K PASSMORE
http://statistics.data.gov.uk/doc/local-authority/00DA,Leeds City Council,Environment & Neighbourhoods,Environmental Health,Capital,CONSTRUCTION,3,18-Jan-2011,1101-00534,7071.00,C,B & K PASSMORE
http://statistics.data.gov.uk/doc/local-authority/00DA,Leeds City Council,Environment & Neighbourhoods,Environmental Health,Capital,CONSTRUCTION,3,18-Jan-2011,1101-00535,4400.00,C,B & K PASSMORE
http://statistics.data.gov.uk/doc/local-authority/00DA,Leeds City Council,Environment & Neighbourhoods,East North East,Capital,CONSTRUCTION,3,31-Jan-2011,1101-00536,-5000.00,C,B & K PASSMORE
http://statistics.data.gov.uk/doc/local-authority/00DA,Leeds City Council,Environment & Neighbourhoods,East North East,Capital,CONSTRUCTION,3,31-Jan-2011,1101-00537,-5000.00,C,B & K PASSMORE
http://statistics.data.gov.uk/doc/local-authority/00DA,Leeds City Council,Environment & Neighbourhoods,Environmental Health,Capital,CONSTRUCTION,3,31-Jan-2011,1101-00538,4400.00,C,B & K PASSMORE
http://statistics.data.gov.uk/doc/local-authority/00DA,Leeds City Council,Environment & Neighbourhoods,Environmental Health,Capital,CONSTRUCTION,3,31-Jan-2011,1101-00539,4400.00,C,B & K PASSMORE
http://statistics.data.gov.uk/doc/local-authority/00DA,Leeds City Council,Environment & Neighbourhoods,Environmental Health,Capital,CONSTRUCTION,3,31-Jan-2011,1101-00540,4400.00,C,B & K PASSMORE
http://statistics.data.gov.uk/doc/local-authority/00DA,Leeds City Council,Environment & Neighbourhoods,Environmental Health,Capital,CONSTRUCTION,3,31-Jan-2011,1101-00541,4670.00,C,B & K PASSMORE
http://statistics.data.gov.uk/doc/local-authority/00DA,Leeds City Council,Environment & Neighbourhoods,Environmental Health,Capital,CONSTRUCTION,3,31-Jan-2011,1101-00542,4700.00,C,B & K PASSMORE
http://statistics.data.gov.uk/doc/local-authority/00DA,Leeds City Council,Environment & Neighbourhoods,Environmental Health,Capital,CONSTRUCTION,3,31-Jan-2011,1101-00543,5514.23,C,B & K PASSMORE
http://statistics.data.gov.uk/doc/local-authority/00DA,Leeds City Council,Environment & Neighbourhoods,Regeneration,Supplies and Services,Grant Related Expenditure,290,14-Jan-2011,1101-00544,500.00,R,BABA DAL DAY CENTRE
http://statistics.data.gov.uk/doc/local-authority/00DA,Leeds City Council,Childrens Services,Youth Justice,Supplies and Services,Office Furniture & Equipment,201,05-Jan-2011,1101-00545,640.80,R,BACK CARE SOLUTIONS LTD
http://statistics.data.gov.uk/doc/local-authority/00DA,Leeds City Council,Adult Social Care,Social Services Support Services,Supplies and Services,Operational Furniture And Equipment,203,07-Jan-2011,1101-00546,591.90,R,BACK CARE SOLUTIONS LTD
http://statistics.data.gov.uk/doc/local-authority/00DA,Leeds City Council,Central & Corporate Functions,Information Technology,Supplies and Services,Computer Software & Equipment,214,07-Jan-2011,1101-00547,529.90,R,BACK CARE SOLUTIONS LTD
http://statistics.data.gov.uk/doc/local-authority/00DA,Leeds City Council,Childrens Services,Intergrated Youth Support  Service,Supplies and Services,Other Hired And Contracted Services,265,13-Jan-2011,1101-00548,720.00,R,BACK LANE STABLES
http://statistics.data.gov.uk/doc/local-authority/00DA,West North West  Homes Leeds,West - North West,Customer And Tenancy,Employees,Temporary Staff-Basic,009,05-Jan-2011,1101-00549,562.50,R,BADENOCH & CLARK LTD
http://statistics.data.gov.uk/doc/local-authority/00DA,West North West  Homes Leeds,West - North West,Customer And Tenancy,Employees,Temporary Staff-Basic,009,07-Jan-2011,1101-00550,829.80,R,BADENOCH & CLARK LTD
http://statistics.data.gov.uk/doc/local-authority/00DA,West North West  Homes Leeds,West - North West,Customer And Tenancy,Employees,Temporary Staff-Basic,009,07-Jan-2011,1101-00551,522.07,R,BADENOCH & CLARK LTD
http://statistics.data.gov.uk/doc/local-authority/00DA,West North West  Homes Leeds,West - North West,Customer And Tenancy,Supplies and Services,Project Management Group,260,10-Jan-2011,1101-00552,843.41,R,BADENOCH & CLARK LTD
http://statistics.data.gov.uk/doc/local-authority/00DA,West North West  Homes Leeds,West - North West,Customer And Tenancy,Supplies and Services,Project Management Group,260,10-Jan-2011,1101-00553,852.85,R,BADENOCH & CLARK LTD
http://statistics.data.gov.uk/doc/local-authority/00DA,Aire Valley Homes Leeds    ,Aire Valley Homes Leeds,Housing,Employees,Temporary Staff-Basic,009,12-Jan-2011,1101-00554,667.08,R,BADENOCH & CLARK LTD
http://statistics.data.gov.uk/doc/local-authority/00DA,Aire Valley Homes Leeds    ,Aire Valley Homes Leeds,Housing,Employees,Temporary Staff-Basic,009,12-Jan-2011,1101-00555,593.51,R,BADENOCH & CLARK LTD
http://statistics.data.gov.uk/doc/local-authority/00DA,West North West  Homes Leeds,West - North West,Customer And Tenancy,Employees,Temporary Staff-Basic,009,12-Jan-2011,1101-00556,545.75,R,BADENOCH & CLARK LTD
http://statistics.data.gov.uk/doc/local-authority/00DA,West North West  Homes Leeds,West - North West,Customer And Tenancy,Employees,Temporary Staff-Basic,009,12-Jan-2011,1101-00557,612.38,R,BADENOCH & CLARK LTD
http://statistics.data.gov.uk/doc/local-authority/00DA,West North West  Homes Leeds,West - North West,Customer And Tenancy,Supplies and Services,Project Management Group,260,14-Jan-2011,1101-00558,766.41,R,BADENOCH & CLARK LTD
http://statistics.data.gov.uk/doc/local-authority/00DA,Aire Valley Homes Leeds    ,Aire Valley Homes Leeds,Housing,Employees,Temporary Staff-Basic,009,18-Jan-2011,1101-00559,608.22,R,BADENOCH & CLARK LTD
http://statistics.data.gov.uk/doc/local-authority/00DA,West North West  Homes Leeds,West - North West,Customer And Tenancy,Employees,Temporary Staff-Basic,009,18-Jan-2011,1101-00560,476.25,R,BADENOCH & CLARK LTD
http://statistics.data.gov.uk/doc/local-authority/00DA,West North West  Homes Leeds,West - North West,Customer And Tenancy,Supplies and Services,Project Management Group,260,18-Jan-2011,1101-00561,865.46,R,BADENOCH & CLARK LTD
http://statistics.data.gov.uk/doc/local-authority/00DA,West North West  Homes Leeds,West - North West,Customer And Tenancy,Supplies and Services,Project Management Group,260,18-Jan-2011,1101-00562,991.15,R,BADENOCH & CLARK LTD
http://statistics.data.gov.uk/doc/local-authority/00DA,West North West  Homes Leeds,West - North West,Customer And Tenancy,Employees,Temporary Staff-Basic,009,18-Jan-2011,1101-00563,525.60,R,BADENOCH & CLARK LTD
http://statistics.data.gov.uk/doc/local-authority/00DA,West North West  Homes Leeds,West - North West,Customer And Tenancy,Employees,Temporary Staff-Basic,009,18-Jan-2011,1101-00564,430.36,R,BADENOCH & CLARK LTD
http://statistics.data.gov.uk/doc/local-authority/00DA,West North West  Homes Leeds,West - North West,Customer And Tenancy,Employees,Temporary Staff-Basic,009,18-Jan-2011,1101-00565,629.63,R,BADENOCH & CLARK LTD
http://statistics.data.gov.uk/doc/local-authority/00DA,West North West  Homes Leeds,West - North West,Customer And Tenancy,Employees,Temporary Staff-Basic,009,18-Jan-2011,1101-00566,693.50,R,BADENOCH & CLARK LTD
http://statistics.data.gov.uk/doc/local-authority/00DA,West North West  Homes Leeds,West - North West,Customer And Tenancy,Supplies and Services,Project Management Group,260,19-Jan-2011,1101-00567,668.45,R,BADENOCH & CLARK LTD
http://statistics.data.gov.uk/doc/local-authority/00DA,Aire Valley Homes Leeds    ,Aire Valley Homes Leeds,Housing,Employees,Temporary Staff-Basic,009,21-Jan-2011,1101-00568,549.36,R,BADENOCH & CLARK LTD
http://statistics.data.gov.uk/doc/local-authority/00DA,Aire Valley Homes Leeds    ,Aire Valley Homes Leeds,Housing,Employees,Temporary Staff-Basic,009,21-Jan-2011,1101-00569,583.70,R,BADENOCH & CLARK LTD
http://statistics.data.gov.uk/doc/local-authority/00DA,West North West  Homes Leeds,West - North West,Customer And Tenancy,Employees,Temporary Staff-Basic,009,21-Jan-2011,1101-00570,629.25,R,BADENOCH & CLARK LTD
http://statistics.data.gov.uk/doc/local-authority/00DA,West North West  Homes Leeds,West - North West,Customer And Tenancy,Supplies and Services,Project Management Group,260,28-Jan-2011,1101-00571,870.98,R,BADENOCH & CLARK LTD
http://statistics.data.gov.uk/doc/local-authority/00DA,West North West  Homes Leeds,West - North West,Customer And Tenancy,Supplies and Services,Project Management Group,260,28-Jan-2011,1101-00572,991.15,R,BADENOCH & CLARK LTD
http://statistics.data.gov.uk/doc/local-authority/00DA,West North West  Homes Leeds,West - North West,Customer And Tenancy,Supplies and Services,Project Management Group,260,28-Jan-2011,1101-00573,727.65,R,BADENOCH & CLARK LTD
http://statistics.data.gov.uk/doc/local-authority/00DA,West North West  Homes Leeds,West - North West,Customer And Tenancy,Supplies and Services,Project Management Group,260,28-Jan-2011,1101-00574,461.00,R,BADENOCH & CLARK LTD
http://statistics.data.gov.uk/doc/local-authority/00DA,West North West  Homes Leeds,West - North West,Customer And Tenancy,Employees,Temporary Staff-Basic,009,28-Jan-2011,1101-00575,562.50,R,BADENOCH & CLARK LTD
http://statistics.data.gov.uk/doc/local-authority/00DA,West North West  Homes Leeds,West - North West,Customer And Tenancy,Employees,Temporary Staff-Basic,009,28-Jan-2011,1101-00576,458.85,R,BADENOCH & CLARK LTD
http://statistics.data.gov.uk/doc/local-authority/00DA,West North West  Homes Leeds,West - North West,Customer And Tenancy,Supplies and Services,Project Management Group,260,28-Jan-2011,1101-00577,495.01,R,BADENOCH & CLARK LTD
http://statistics.data.gov.uk/doc/local-authority/00DA,Leeds City Council,City Development,Recreation,Transport,Plant Spares,346,12-Jan-2011,1101-00578,533.85,R,BALMERS GARDEN MACHINERY
http://statistics.data.gov.uk/doc/local-authority/00DA,Leeds City Council,City Development,Recreation,Transport,Plant Spares,346,19-Jan-2011,1101-00579,601.38,R,BALMERS GARDEN MACHINERY
http://statistics.data.gov.uk/doc/local-authority/00DA,Leeds City Council as Accountable Body,Social Services Pooled Budgets,Leeds Community Equip Store Pooled Budgt,Supplies and Services,Other Equipment,203,17-Jan-2011,1101-00580,957.00,R,BAMBACH SADDLE SEAT (EUR) LTD
http://statistics.data.gov.uk/doc/local-authority/00DA,Leeds City Council,City Development,Economic Development,Supplies and Services,Publication And Promotion,267,14-Jan-2011,1101-00581,825.00,R,Banana Kick Ltd
http://statistics.data.gov.uk/doc/local-authority/00DA,Leeds City Council,Environment & Neighbourhoods,Regeneration,Supplies and Services,Other Hired And Contracted Services,265,28-Jan-2011,1101-00582,7500.00,R,Bangladesh Centre Leeds.
http://statistics.data.gov.uk/doc/local-authority/00DA,Leeds City Council,Childrens Services,Director Of Childrens Services,Third Party Payments,Services Rendered By Other Organisations,511,07-Jan-2011,1101-00583,580.00,R,BARCA LEEDS
http://statistics.data.gov.uk/doc/local-authority/00DA,Leeds City Council,Childrens Services,Intergrated Youth Support  Service,Third Party Payments,Services Rendered By Voluntary Sector,505,21-Jan-2011,1101-00584,2130.25,R,BARCA LEEDS
http://statistics.data.gov.uk/doc/local-authority/00DA,Leeds City Council,Childrens Services,Youth Justice,Supplies and Services,General Amenity For Clients/Residents,285,21-Jan-2011,1101-00585,588.00,R,BARCA LEEDS
http://statistics.data.gov.uk/doc/local-authority/00DA,Leeds City Council,City Development,Economic Development,Supplies and Services,Other Hired And Contracted Services,265,24-Jan-2011,1101-00586,5765.33,R,BARCA LEEDS
http://statistics.data.gov.uk/doc/local-authority/00DA,Leeds City Council,Childrens Services,Early Years Service,Third Party Payments,Services Rendered By Other Organisations,511,07-Jan-2011,1101-00587,8327.79,R,BARDSEY NURSERY GROUP
http://statistics.data.gov.uk/doc/local-authority/00DA,Leeds City Council,Environment & Neighbourhoods,Housing Needs,Supplies and Services,Other Hired And Contracted Services,265,19-Jan-2011,1101-00588,525.00,R,Barley Lettings And Management
http://statistics.data.gov.uk/doc/local-authority/00DA,Leeds City Council,Childrens Services,Director Of Childrens Services,Third Party Payments,Services Rendered By Voluntary Sector,505,04-Jan-2011,1101-00589,5330.50,R,BARNARDOS FUTURES
http://statistics.data.gov.uk/doc/local-authority/00DA,Leeds City Council,Childrens Services,Director Of Childrens Services,Third Party Payments,Services Rendered By Voluntary Sector,505,04-Jan-2011,1101-00590,5330.50,R,BARNARDOS FUTURES
http://statistics.data.gov.uk/doc/local-authority/00DA,Leeds City Council,Childrens Services,Director Of Childrens Services,Third Party Payments,Services Rendered By Voluntary Sector,505,04-Jan-2011,1101-00591,5330.50,R,BARNARDOS FUTURES
http://statistics.data.gov.uk/doc/local-authority/00DA,Leeds City Council,Environment & Neighbourhoods,Housing Needs,Supplies and Services,Non-Recurring Grants,227,20-Jan-2011,1101-00592,4608.00,R,BARNARDOS YORKSHIRE
http://statistics.data.gov.uk/doc/local-authority/00DA,Leeds City Council,Environment & Neighbourhoods,Housing Needs,Income,Admissions Booking Fees & Ticket Sales,933,12-Jan-2011,1101-00593,-13786.00,R,BARNSLEY MBC
http://statistics.data.gov.uk/doc/local-authority/00DA,Leeds City Council,Environment & Neighbourhoods,Health & Environmental Action,Supplies and Services,Operational Materials,205,19-Jan-2011,1101-00594,502.16,R,BARRETTINE ENVIRONMENTAL HEALTH
http://statistics.data.gov.uk/doc/local-authority/00DA,Leeds City Council,City Development,Recreation,Supplies and Services,Publication And Promotion,267,04-Jan-2011,1101-00595,1050.00,R,Bauer Radio Ltd
http://statistics.data.gov.uk/doc/local-authority/00DA,Leeds City Council,City Development,Recreation,Supplies and Services,Advertising,211,18-Jan-2011,1101-00596,900.00,R,Bauer Radio Ltd
http://statistics.data.gov.uk/doc/local-authority/00DA,Education Leeds,Education Leeds,Education Leeds,Supplies and Services,Advertising,211,19-Jan-2011,1101-00597,10000.00,R,Bauer Radio Ltd
http://statistics.data.gov.uk/doc/local-authority/00DA,Education Leeds,Education Leeds,Education Leeds,Supplies and Services,Advertising,211,19-Jan-2011,1101-00598,-10000.00,R,Bauer Radio Ltd
http://statistics.data.gov.uk/doc/local-authority/00DA,Leeds City Council,Central & Corporate Functions,Commercial Services Trading Services,Transport,Fuel (Non LCC Supplies),321,06-Jan-2011,1101-00599,35432.44,R,Bayford Oil
http://statistics.data.gov.uk/doc/local-authority/00DA,Leeds City Council,Central & Corporate Functions,Commercial Services Trading Services,Transport,Fuel (Non LCC Supplies),321,06-Jan-2011,1101-00600,1551.10,R,Bayford Oil
http://statistics.data.gov.uk/doc/local-authority/00DA,Leeds City Council,Central & Corporate Functions,Commercial Services Trading Services,Transport,Fuel (Non LCC Supplies),321,06-Jan-2011,1101-00601,1593.60,R,Bayford Oil
http://statistics.data.gov.uk/doc/local-authority/00DA,Leeds City Council,Environment & Neighbourhoods,Streetscene Environmental Services,Transport,Fuel (Non LCC Supplies),321,07-Jan-2011,1101-00602,718.62,R,Bayford Oil
http://statistics.data.gov.uk/doc/local-authority/00DA,Leeds City Council,Central & Corporate Functions,Commercial Services Trading Services,Transport,Fuel (Non LCC Supplies),321,07-Jan-2011,1101-00603,10153.82,R,Bayford Oil
http://statistics.data.gov.uk/doc/local-authority/00DA,Leeds City Council,Central & Corporate Functions,Support And Facilities Trading Services,Premises,Oil,122,07-Jan-2011,1101-00604,1029.80,R,Bayford Oil
http://statistics.data.gov.uk/doc/local-authority/00DA,Leeds City Council,Central & Corporate Functions,Commercial Services Trading Services,Transport,Fuel (Non LCC Supplies),321,07-Jan-2011,1101-00605,17722.30,R,Bayford Oil
http://statistics.data.gov.uk/doc/local-authority/00DA,Leeds City Council,Central & Corporate Functions,Commercial Services Trading Services,Transport,Fuel (Non LCC Supplies),321,07-Jan-2011,1101-00606,2651.00,R,Bayford Oil
http://statistics.data.gov.uk/doc/local-authority/00DA,Leeds City Council,City Development,Libraries Arts & Heritage,Premises,Oil,122,10-Jan-2011,1101-00607,1407.46,R,Bayford Oil
http://statistics.data.gov.uk/doc/local-authority/00DA,Education Leeds,Education Leeds,Education Leeds,Premises,Oil,122,11-Jan-2011,1101-00608,1388.75,R,Bayford Oil
http://statistics.data.gov.uk/doc/local-authority/00DA,Leeds City Council,Central & Corporate Functions,Commercial Services Trading Services,Transport,Fuel (Non LCC Supplies),321,12-Jan-2011,1101-00609,22275.00,R,Bayford Oil
http://statistics.data.gov.uk/doc/local-authority/00DA,Leeds City Council,Central & Corporate Functions,Commercial Services Trading Services,Transport,Fuel (Non LCC Supplies),321,12-Jan-2011,1101-00610,15217.50,R,Bayford Oil
http://statistics.data.gov.uk/doc/local-authority/00DA,Leeds City Council,Central & Corporate Functions,Commercial Services Trading Services,Transport,Fuel (Non LCC Supplies),321,13-Jan-2011,1101-00611,36176.00,R,Bayford Oil
http://statistics.data.gov.uk/doc/local-authority/00DA,Leeds City Council,Central & Corporate Functions,Commercial Services Trading Services,Transport,Fuel (Non LCC Supplies),321,13-Jan-2011,1101-00612,1655.10,R,Bayford Oil
http://statistics.data.gov.uk/doc/local-authority/00DA,Leeds City Council,Central & Corporate Functions,Commercial Services Trading Services,Transport,Fuel (Non LCC Supplies),321,13-Jan-2011,1101-00613,10366.00,R,Bayford Oil
http://statistics.data.gov.uk/doc/local-authority/00DA,Leeds City Council,Childrens Services,Intergrated Youth Support  Service,Premises,Oil,122,14-Jan-2011,1101-00614,1514.30,R,Bayford Oil
http://statistics.data.gov.uk/doc/local-authority/00DA,Leeds City Council,Childrens Services,Intergrated Youth Support  Service,Premises,Oil,122,17-Jan-2011,1101-00615,1532.10,R,Bayford Oil
http://statistics.data.gov.uk/doc/local-authority/00DA,Leeds City Council,Central & Corporate Functions,Commercial Services Trading Services,Transport,Fuel (Non LCC Supplies),321,19-Jan-2011,1101-00616,18775.27,R,Bayford Oil
http://statistics.data.gov.uk/doc/local-authority/00DA,Leeds City Council,Central & Corporate Functions,Commercial Services Trading Services,Transport,Fuel (Non LCC Supplies),321,19-Jan-2011,1101-00617,1675.20,R,Bayford Oil
http://statistics.data.gov.uk/doc/local-authority/00DA,Leeds City Council,Central & Corporate Functions,Commercial Services Trading Services,Transport,Fuel (Non LCC Supplies),321,19-Jan-2011,1101-00618,19773.30,R,Bayford Oil
http://statistics.data.gov.uk/doc/local-authority/00DA,Leeds City Council,Central & Corporate Functions,Commercial Services Trading Services,Transport,Fuel (Non LCC Supplies),321,19-Jan-2011,1101-00619,15640.50,R,Bayford Oil
http://statistics.data.gov.uk/doc/local-authority/00DA,Leeds City Council,Central & Corporate Functions,Commercial Services Trading Services,Transport,Fuel (Non LCC Supplies),321,19-Jan-2011,1101-00620,1675.20,R,Bayford Oil
http://statistics.data.gov.uk/doc/local-authority/00DA,Leeds City Council,Central & Corporate Functions,Commercial Services Trading Services,Transport,Fuel (Non LCC Supplies),321,20-Jan-2011,1101-00621,36423.46,R,Bayford Oil
http://statistics.data.gov.uk/doc/local-authority/00DA,Education Leeds,Education Leeds,Education Leeds,Premises,Oil,122,20-Jan-2011,1101-00622,2233.60,R,Bayford Oil
http://statistics.data.gov.uk/doc/local-authority/00DA,Leeds City Council,City Development,Recreation,Transport,Fuel (Non LCC Supplies),321,21-Jan-2011,1101-00623,16569.60,R,Bayford Oil
http://statistics.data.gov.uk/doc/local-authority/00DA,Leeds City Council,City Development,Recreation,Transport,Fuel (Non LCC Supplies),321,21-Jan-2011,1101-00624,1655.10,R,Bayford Oil
http://statistics.data.gov.uk/doc/local-authority/00DA,Leeds City Council,Central & Corporate Functions,Support And Facilities Trading Services,Premises,Oil,122,21-Jan-2011,1101-00625,1111.40,R,Bayford Oil
http://statistics.data.gov.uk/doc/local-authority/00DA,Leeds City Council,Central & Corporate Functions,Support And Facilities General Fund,Premises,Oil,122,27-Jan-2011,1101-00626,2203.49,R,Bayford Oil
http://statistics.data.gov.uk/doc/local-authority/00DA,Leeds City Council,Central & Corporate Functions,Commercial Services Trading Services,Transport,Fuel (Non LCC Supplies),321,28-Jan-2011,1101-00627,36575.00,R,Bayford Oil
http://statistics.data.gov.uk/doc/local-authority/00DA,Leeds City Council,Adult Social Care,Services For Older People Under 65 P/Dis,Third Party Payments,Residential,580,19-Jan-2011,1101-00628,7984.00,R,Baylis Place
http://statistics.data.gov.uk/doc/local-authority/00DA,Aire Valley Homes Leeds    ,Aire Valley Homes Leeds,Aire Valley Homes Leeds,Supplies and Services,Miscellaneous Expenditure,208,20-Jan-2011,1101-00629,750.00,R,BDO STOY HAYWARD LLP
http://statistics.data.gov.uk/doc/local-authority/00DA,Leeds City Council,Central & Corporate Functions,Information Technology,Supplies and Services,Telephones,213,05-Jan-2011,1101-00630,425.00,R,BEACON COMMUNICATION TECHNOLOGY (NORTH)
http://statistics.data.gov.uk/doc/local-authority/00DA,Leeds City Council,Central & Corporate Functions,Information Technology,Supplies and Services,Telephones,213,11-Jan-2011,1101-00631,448.80,R,BEACON COMMUNICATION TECHNOLOGY (NORTH)
http://statistics.data.gov.uk/doc/local-authority/00DA,Leeds City Council,Central & Corporate Functions,Information Technology,Supplies and Services,Telephones,213,11-Jan-2011,1101-00632,437.30,R,BEACON COMMUNICATION TECHNOLOGY (NORTH)
http://statistics.data.gov.uk/doc/local-authority/00DA,Leeds City Council,Environment & Neighbourhoods,Streetscene Environmental Services,Supplies and Services,Computer Software & Equipment,214,14-Jan-2011,1101-00633,579.00,R,BEACON COMMUNICATION TECHNOLOGY (NORTH)
http://statistics.data.gov.uk/doc/local-authority/00DA,Leeds City Council,Central & Corporate Functions,Information Technology,Supplies and Services,NETWORKS DEPT ORDERS - EXPENDITURE,090,18-Jan-2011,1101-00634,1425.00,R,BEACON COMMUNICATION TECHNOLOGY (NORTH)
http://statistics.data.gov.uk/doc/local-authority/00DA,Leeds City Council,Central & Corporate Functions,Information Technology,Supplies and Services,NETWORKS DEPT ORDERS - EXPENDITURE,090,19-Jan-2011,1101-00635,6760.00,R,BEACON COMMUNICATION TECHNOLOGY (NORTH)
http://statistics.data.gov.uk/doc/local-authority/00DA,Leeds City Council,Childrens Services,Support Services,Supplies and Services,Computer Software & Equipment,214,21-Jan-2011,1101-00636,504.00,R,BEACON COMMUNICATION TECHNOLOGY (NORTH)
http://statistics.data.gov.uk/doc/local-authority/00DA,Leeds City Council,Central & Corporate Functions,Information Technology,Supplies and Services,Telephones,213,24-Jan-2011,1101-00637,425.00,R,BEACON COMMUNICATION TECHNOLOGY (NORTH)
http://statistics.data.gov.uk/doc/local-authority/00DA,Leeds City Council,Central & Corporate Functions,Information Technology,Supplies and Services,Telephones,213,28-Jan-2011,1101-00638,497.00,R,BEACON COMMUNICATION TECHNOLOGY (NORTH)
http://statistics.data.gov.uk/doc/local-authority/00DA,Leeds City Council,Central & Corporate Functions,Information Technology,Supplies and Services,NETWORKS DEPT ORDERS - EXPENDITURE,090,31-Jan-2011,1101-00639,4180.00,R,BEACON COMMUNICATION TECHNOLOGY (NORTH)
http://statistics.data.gov.uk/doc/local-authority/00DA,Leeds City Council,Adult Social Care,Services For Older People - 65 And Over,Premises,Cleaning Maintenance & Toiletries,127,23-Dec-2010,1101-00640,578.38,R,beaucare ltd
http://statistics.data.gov.uk/doc/local-authority/00DA,Leeds City Council,Adult Social Care,Services For Older People - 65 And Over,Third Party Payments,Residential,580,19-Jan-2011,1101-00641,1242.80,R,Beech Lodge Residential Home
http://statistics.data.gov.uk/doc/local-authority/00DA,Leeds City Council,Central & Corporate Functions,Commercial Services Trading Services,Supplies and Services,Other Hired And Contracted Services,265,13-Jan-2011,1101-00642,1370.00,R,BEECHFIELD TREE SERVICES
http://statistics.data.gov.uk/doc/local-authority/00DA,Leeds City Council,Childrens Services,Early Years Service,Third Party Payments,Services Rendered By Other Organisations,511,07-Jan-2011,1101-00643,4415.80,R,Beechtree Headingley Kindergarten
http://statistics.data.gov.uk/doc/local-authority/00DA,Leeds City Council,Childrens Services,Early Years Service,Third Party Payments,Services Rendered By Voluntary Sector,505,07-Jan-2011,1101-00644,13247.39,R,BEECHTREE KINDERGARTEN
http://statistics.data.gov.uk/doc/local-authority/00DA,Leeds City Council,Environment & Neighbourhoods,Housing Needs,Third Party Payments,Supporting Ppl - Block Gross Chargeable,514,04-Jan-2011,1101-00645,8786.79,R,Behind Closed Doors (Bcd)
http://statistics.data.gov.uk/doc/local-authority/00DA,Leeds City Council,Environment & Neighbourhoods,Housing Needs,Third Party Payments,Supporting Ppl - Block Gross Chargeable,514,31-Jan-2011,1101-00646,8786.79,R,Behind Closed Doors (Bcd)
http://statistics.data.gov.uk/doc/local-authority/00DA,Leeds City Council,Central & Corporate Functions,Support And Facilities Trading Services,Supplies and Services,Other Hired And Contracted Services,265,07-Jan-2011,1101-00647,592.00,R,BELL GROUP UK
http://statistics.data.gov.uk/doc/local-authority/00DA,Leeds City Council,Central & Corporate Functions,Support And Facilities Trading Services,Supplies and Services,Other Hired And Contracted Services,265,07-Jan-2011,1101-00648,1480.00,R,BELL GROUP UK
http://statistics.data.gov.uk/doc/local-authority/00DA,Leeds City Council,Central & Corporate Functions,Support And Facilities Trading Services,Supplies and Services,Other Hired And Contracted Services,265,21-Jan-2011,1101-00649,2220.00,R,BELL GROUP UK
http://statistics.data.gov.uk/doc/local-authority/00DA,Leeds City Council,Adult Social Care,Services For Older People - 65 And Over,Third Party Payments,Nursing Home,570,20-Jan-2011,1101-00650,1374.64,R,Belle Green Court Care Home
http://statistics.data.gov.uk/doc/local-authority/00DA,Leeds City Council,Environment & Neighbourhoods,Housing Needs,Third Party Payments,Supporting People - Block Subsidy,513,04-Jan-2011,1101-00651,5720.96,R,BELLE ISLE TENANT MANAGEMENT
http://statistics.data.gov.uk/doc/local-authority/00DA,Leeds City Council,Environment & Neighbourhoods,Housing Needs,Third Party Payments,Supporting Ppl - Block Gross Chargeable,514,04-Jan-2011,1101-00652,3188.78,R,BELLE ISLE TENANT MANAGEMENT
http://statistics.data.gov.uk/doc/local-authority/00DA,Leeds City Council,Environment & Neighbourhoods,Housing Needs,Third Party Payments,Supporting Ppl - Block Gross Chargeable,514,04-Jan-2011,1101-00653,2755.24,R,BELLE ISLE TENANT MANAGEMENT
http://statistics.data.gov.uk/doc/local-authority/00DA,Leeds City Council,Environment & Neighbourhoods,Hra,Supplies and Services,ALMO,002,19-Jan-2011,1101-00654,78737.95,R,BELLE ISLE TENANT MANAGEMENT
http://statistics.data.gov.uk/doc/local-authority/00DA,Leeds City Council,Environment & Neighbourhoods,Housing Needs,Third Party Payments,Supporting People - Block Subsidy,513,31-Jan-2011,1101-00655,5720.96,R,BELLE ISLE TENANT MANAGEMENT
http://statistics.data.gov.uk/doc/local-authority/00DA,Leeds City Council,Environment & Neighbourhoods,Housing Needs,Third Party Payments,Supporting Ppl - Block Gross Chargeable,514,31-Jan-2011,1101-00656,1188.78,R,BELLE ISLE TENANT MANAGEMENT
http://statistics.data.gov.uk/doc/local-authority/00DA,Leeds City Council,Environment & Neighbourhoods,Housing Needs,Third Party Payments,Supporting Ppl - Block Gross Chargeable,514,31-Jan-2011,1101-00657,755.24,R,BELLE ISLE TENANT MANAGEMENT
http://statistics.data.gov.uk/doc/local-authority/00DA,Leeds City Council,Adult Social Care,Services For Older People - 65 And Over,Third Party Payments,Residential,580,19-Jan-2011,1101-00658,963.76,R,BELVEDERE RESIDENTIAL HOME
http://statistics.data.gov.uk/doc/local-authority/00DA,Leeds City Council,Adult Social Care,Services For Older People - 65 And Over,Third Party Payments,Residential Care Emi,571,19-Jan-2011,1101-00659,24748.73,R,Berkley Court
http://statistics.data.gov.uk/doc/local-authority/00DA,Leeds City Council,Adult Social Care,Services For Older People - 65 And Over,Third Party Payments,Residential,580,19-Jan-2011,1101-00660,17324.32,R,Berkley Court
http://statistics.data.gov.uk/doc/local-authority/00DA,Leeds City Council,Childrens Services,Children - Commissioning And Social Work,Supplies and Services,Consultancy Services,259,04-Jan-2011,1101-00661,1550.00,R,Berrybrown Ltd
http://statistics.data.gov.uk/doc/local-authority/00DA,Leeds City Council,Childrens Services,Children - Commissioning And Social Work,Supplies and Services,Consultancy Services,259,11-Jan-2011,1101-00662,1550.00,R,Berrybrown Ltd
http://statistics.data.gov.uk/doc/local-authority/00DA,Leeds City Council,Childrens Services,Children - Commissioning And Social Work,Supplies and Services,Consultancy Services,259,18-Jan-2011,1101-00663,1550.00,R,Berrybrown Ltd
http://statistics.data.gov.uk/doc/local-authority/00DA,Leeds City Council,Childrens Services,Children - Commissioning And Social Work,Supplies and Services,Consultancy Services,259,28-Jan-2011,1101-00664,930.00,R,Berrybrown Ltd
http://statistics.data.gov.uk/doc/local-authority/00DA,Leeds City Council,Childrens Services,Children - Commissioning And Social Work,Supplies and Services,Consultancy Services,259,28-Jan-2011,1101-00665,1550.00,R,Berrybrown Ltd
http://statistics.data.gov.uk/doc/local-authority/00DA,Leeds City Council,Central & Corporate Functions,Corporate Governance,Support Services,EXTERNAL SOLICITOR - RESOURCE,752,04-Jan-2011,1101-00666,1913.50,R,BERRYMANS LACE MAWER
http://statistics.data.gov.uk/doc/local-authority/00DA,Leeds City Council,Central & Corporate Functions,Corporate Governance,Support Services,EXTERNAL SOLICITOR - RESOURCE,752,04-Jan-2011,1101-00667,1642.00,R,BERRYMANS LACE MAWER
http://statistics.data.gov.uk/doc/local-authority/00DA,Leeds City Council,Central & Corporate Functions,Corporate Governance,Support Services,EXTERNAL SOLICITOR - RESOURCE,752,07-Jan-2011,1101-00668,3387.40,R,BERRYMANS LACE MAWER
http://statistics.data.gov.uk/doc/local-authority/00DA,Leeds City Council,Central & Corporate Functions,Corporate Governance,Support Services,EXTERNAL SOLICITOR - RESOURCE,752,07-Jan-2011,1101-00669,2032.10,R,BERRYMANS LACE MAWER
http://statistics.data.gov.uk/doc/local-authority/00DA,Leeds City Council,Central & Corporate Functions,Corporate Governance,Support Services,EXTERNAL SOLICITOR - RESOURCE,752,07-Jan-2011,1101-00670,3058.00,R,BERRYMANS LACE MAWER
http://statistics.data.gov.uk/doc/local-authority/00DA,Leeds City Council,Central & Corporate Functions,Corporate Governance,Support Services,EXTERNAL SOLICITOR - RESOURCE,752,25-Jan-2011,1101-00671,641.40,R,BERRYMANS LACE MAWER
http://statistics.data.gov.uk/doc/local-authority/00DA,Leeds City Council,Central & Corporate Functions,Corporate Governance,Support Services,EXTERNAL SOLICITOR - RESOURCE,752,25-Jan-2011,1101-00672,656.70,R,BERRYMANS LACE MAWER
http://statistics.data.gov.uk/doc/local-authority/00DA,Leeds City Council,Central & Corporate Functions,Corporate Governance,Support Services,EXTERNAL SOLICITOR - RESOURCE,752,25-Jan-2011,1101-00673,661.20,R,BERRYMANS LACE MAWER
http://statistics.data.gov.uk/doc/local-authority/00DA,Leeds City Council,Central & Corporate Functions,Corporate Governance,Support Services,EXTERNAL SOLICITOR - RESOURCE,752,25-Jan-2011,1101-00674,682.50,R,BERRYMANS LACE MAWER
http://statistics.data.gov.uk/doc/local-authority/00DA,Leeds City Council,Central & Corporate Functions,Corporate Governance,Support Services,EXTERNAL SOLICITOR - RESOURCE,752,25-Jan-2011,1101-00675,713.00,R,BERRYMANS LACE MAWER
http://statistics.data.gov.uk/doc/local-authority/00DA,Leeds City Council,Central & Corporate Functions,Corporate Governance,Support Services,EXTERNAL SOLICITOR - RESOURCE,752,25-Jan-2011,1101-00676,796.40,R,BERRYMANS LACE MAWER
http://statistics.data.gov.uk/doc/local-authority/00DA,Leeds City Council,Central & Corporate Functions,Corporate Governance,Support Services,EXTERNAL SOLICITOR - RESOURCE,752,25-Jan-2011,1101-00677,932.50,R,BERRYMANS LACE MAWER
http://statistics.data.gov.uk/doc/local-authority/00DA,Leeds City Council,Central & Corporate Functions,Corporate Governance,Support Services,EXTERNAL SOLICITOR - RESOURCE,752,25-Jan-2011,1101-00678,971.10,R,BERRYMANS LACE MAWER
http://statistics.data.gov.uk/doc/local-authority/00DA,Leeds City Council,Central & Corporate Functions,Corporate Governance,Support Services,EXTERNAL SOLICITOR - RESOURCE,752,25-Jan-2011,1101-00679,975.40,R,BERRYMANS LACE MAWER
http://statistics.data.gov.uk/doc/local-authority/00DA,Leeds City Council,Central & Corporate Functions,Corporate Governance,Support Services,EXTERNAL SOLICITOR - RESOURCE,752,25-Jan-2011,1101-00680,1802.50,R,BERRYMANS LACE MAWER
http://statistics.data.gov.uk/doc/local-authority/00DA,Leeds City Council,Environment & Neighbourhoods,East North East,Capital,CONSTRUCTION,3,26-Jan-2011,1101-00681,14072.75,C,BERSCHE- ROLT LTD
http://statistics.data.gov.uk/doc/local-authority/00DA,Leeds City Council,Environment & Neighbourhoods,Regeneration,Supplies and Services,Non-Recurring Grants,227,28-Jan-2011,1101-00682,1362.00,R,BEST LTD
http://statistics.data.gov.uk/doc/local-authority/00DA,Leeds City Council,Adult Social Care,Services For Older People - 65 And Over,Third Party Payments,Residential Care Emi,571,20-Jan-2011,1101-00683,4213.63,R,Bethel House
http://statistics.data.gov.uk/doc/local-authority/00DA,Leeds City Council,Central & Corporate Functions,Commercial Services Trading Services,Supplies and Services,Crockery Cutlery & Utensils,221,14-Jan-2011,1101-00684,498.11,R,Beverages Direct Ltd
http://statistics.data.gov.uk/doc/local-authority/00DA,Leeds City Council,Adult Social Care,Services For Older People - 65 And Over,Third Party Payments,Nursing Care Emi,574,19-Jan-2011,1101-00685,1728.00,R,BEWICK LODGE
http://statistics.data.gov.uk/doc/local-authority/00DA,Leeds City Council,Environment & Neighbourhoods,Streetscene Environmental Services,Supplies and Services,Recycling & Reuse Charges,234,04-Jan-2011,1101-00686,961.88,R,BIFFA WASTE SERVICES LTD
http://statistics.data.gov.uk/doc/local-authority/00DA,Leeds City Council,Environment & Neighbourhoods,Streetscene Environmental Services,Supplies and Services,Waste Disposal Charges,236,04-Jan-2011,1101-00687,56786.64,R,BIFFA WASTE SERVICES LTD
http://statistics.data.gov.uk/doc/local-authority/00DA,Leeds City Council,Environment & Neighbourhoods,Streetscene Environmental Services,Supplies and Services,Landfill Tax,237,04-Jan-2011,1101-00688,161350.83,R,BIFFA WASTE SERVICES LTD
http://statistics.data.gov.uk/doc/local-authority/00DA,Leeds City Council,Environment & Neighbourhoods,Streetscene Environmental Services,Supplies and Services,Waste Disposal Charges,236,06-Jan-2011,1101-00689,5813.90,R,BIFFA WASTE SERVICES LTD
http://statistics.data.gov.uk/doc/local-authority/00DA,Leeds City Council,Environment & Neighbourhoods,Streetscene Environmental Services,Supplies and Services,Landfill Tax,237,06-Jan-2011,1101-00690,9849.00,R,BIFFA WASTE SERVICES LTD
http://statistics.data.gov.uk/doc/local-authority/00DA,Leeds City Council,Environment & Neighbourhoods,Streetscene Environmental Services,Supplies and Services,Waste Disposal Charges,236,07-Jan-2011,1101-00691,1687.89,R,BIFFA WASTE SERVICES LTD
http://statistics.data.gov.uk/doc/local-authority/00DA,Leeds City Council,Environment & Neighbourhoods,Streetscene Environmental Services,Supplies and Services,Landfill Tax,237,07-Jan-2011,1101-00692,2859.84,R,BIFFA WASTE SERVICES LTD
http://statistics.data.gov.uk/doc/local-authority/00DA,Leeds City Council,Environment & Neighbourhoods,Streetscene Environmental Services,Supplies and Services,Waste Disposal Charges,236,12-Jan-2011,1101-00693,28520.31,R,BIFFA WASTE SERVICES LTD
http://statistics.data.gov.uk/doc/local-authority/00DA,Leeds City Council,Environment & Neighbourhoods,Streetscene Environmental Services,Supplies and Services,Landfill Tax,237,12-Jan-2011,1101-00694,79609.94,R,BIFFA WASTE SERVICES LTD
http://statistics.data.gov.uk/doc/local-authority/00DA,Leeds City Council,Environment & Neighbourhoods,Streetscene Environmental Services,Supplies and Services,Waste Disposal Charges,236,14-Jan-2011,1101-00695,12294.09,R,BIFFA WASTE SERVICES LTD
http://statistics.data.gov.uk/doc/local-authority/00DA,Leeds City Council,Environment & Neighbourhoods,Streetscene Environmental Services,Supplies and Services,Landfill Tax,237,14-Jan-2011,1101-00696,20830.08,R,BIFFA WASTE SERVICES LTD
http://statistics.data.gov.uk/doc/local-authority/00DA,Leeds City Council,Environment & Neighbourhoods,Streetscene Environmental Services,Supplies and Services,Waste Disposal Charges,236,14-Jan-2011,1101-00697,46498.85,R,BIFFA WASTE SERVICES LTD
http://statistics.data.gov.uk/doc/local-authority/00DA,Leeds City Council,Environment & Neighbourhoods,Streetscene Environmental Services,Supplies and Services,Landfill Tax,237,14-Jan-2011,1101-00698,131831.78,R,BIFFA WASTE SERVICES LTD
http://statistics.data.gov.uk/doc/local-authority/00DA,East North East Homes Leeds,East - North East,Technical Services,Supplies and Services,Other Materials,205,04-Jan-2011,1101-00699,1732.84,R,BILBECK (MERCHANTS) LTD
http://statistics.data.gov.uk/doc/local-authority/00DA,East North East Homes Leeds,East - North East,Technical Services,Supplies and Services,Other Materials,205,04-Jan-2011,1101-00700,2416.92,R,BILBECK (MERCHANTS) LTD
http://statistics.data.gov.uk/doc/local-authority/00DA,East North East Homes Leeds,East - North East,Technical Services,Supplies and Services,Other Materials,205,04-Jan-2011,1101-00701,731.24,R,BILBECK (MERCHANTS) LTD
http://statistics.data.gov.uk/doc/local-authority/00DA,East North East Homes Leeds,East - North East,Technical Services,Supplies and Services,Other Materials,205,06-Jan-2011,1101-00702,1176.55,R,BILBECK (MERCHANTS) LTD
http://statistics.data.gov.uk/doc/local-authority/00DA,East North East Homes Leeds,East - North East,Technical Services,Supplies and Services,Other Materials,205,06-Jan-2011,1101-00703,1210.70,R,BILBECK (MERCHANTS) LTD
http://statistics.data.gov.uk/doc/local-authority/00DA,East North East Homes Leeds,East - North East,Technical Services,Supplies and Services,Other Materials,205,17-Jan-2011,1101-00704,1341.99,R,BILBECK (MERCHANTS) LTD
http://statistics.data.gov.uk/doc/local-authority/00DA,East North East Homes Leeds,East - North East,Technical Services,Supplies and Services,Other Materials,205,19-Jan-2011,1101-00705,584.70,R,BILBECK (MERCHANTS) LTD
http://statistics.data.gov.uk/doc/local-authority/00DA,Leeds City Council,Central & Corporate Functions,Commercial Services Trading Services,Supplies and Services,Operational Materials,205,13-Jan-2011,1101-00706,3609.00,R,BISON BEDE LIMITED
http://statistics.data.gov.uk/doc/local-authority/00DA,Leeds City Council,Central & Corporate Functions,Commercial Services Trading Services,Supplies and Services,Operational Materials,205,20-Jan-2011,1101-00707,1050.00,R,BISON BEDE LIMITED
http://statistics.data.gov.uk/doc/local-authority/00DA,Leeds City Council,Central & Corporate Functions,Support And Facilities Trading Services,Supplies and Services,Operational Materials,205,24-Jan-2011,1101-00708,715.00,R,BLACKBURNS METALS LIMITED
http://statistics.data.gov.uk/doc/local-authority/00DA,Leeds City Council,Environment & Neighbourhoods,Belle Isle,Capital,CONSTRUCTION,3,05-Jan-2011,1101-00709,5933.33,C,BLACKIE LTD
http://statistics.data.gov.uk/doc/local-authority/00DA,Leeds City Council,Environment & Neighbourhoods,Belle Isle,Capital,CONSTRUCTION,3,14-Jan-2011,1101-00710,3514.72,C,BLACKIE LTD
http://statistics.data.gov.uk/doc/local-authority/00DA,Leeds City Council,Environment & Neighbourhoods,Belle Isle,Capital,CONSTRUCTION,3,20-Jan-2011,1101-00711,14886.62,C,BLACKIE LTD
http://statistics.data.gov.uk/doc/local-authority/00DA,Education Leeds,Education Leeds,Education Leeds,Supplies and Services,Other Hired And Contracted Services,265,25-Jan-2011,1101-00712,3118.08,R,BLACKPOOL BOROUGH COUNCIL
http://statistics.data.gov.uk/doc/local-authority/00DA,Leeds City Council,Childrens Services,Children Looked After,Third Party Payments,Section 17,551,11-Jan-2011,1101-00713,613.44,R,BLUE ARROW LIMITED
http://statistics.data.gov.uk/doc/local-authority/00DA,Leeds City Council,City Development,Recreation,Supplies and Services,Operational Materials,205,17-Jan-2011,1101-00714,536.00,R,BOCM PAULS LTD
http://statistics.data.gov.uk/doc/local-authority/00DA,Leeds City Council,Central & Corporate Functions,Commercial Services Trading Services,Supplies and Services,Operational Materials,205,07-Jan-2011,1101-00715,2428.00,R,BOILER & HEATING SUPPLIES LTD
http://statistics.data.gov.uk/doc/local-authority/00DA,Leeds City Council,Central & Corporate Functions,Commercial Services Trading Services,Supplies and Services,Operational Materials,205,07-Jan-2011,1101-00716,485.77,R,BOILER & HEATING SUPPLIES LTD
http://statistics.data.gov.uk/doc/local-authority/00DA,Leeds City Council,Central & Corporate Functions,Commercial Services Trading Services,Supplies and Services,Operational Materials,205,07-Jan-2011,1101-00717,611.00,R,BOILER & HEATING SUPPLIES LTD
http://statistics.data.gov.uk/doc/local-authority/00DA,Leeds City Council,Central & Corporate Functions,Commercial Services Trading Services,Supplies and Services,Operational Materials,205,13-Jan-2011,1101-00718,427.68,R,BOILER & HEATING SUPPLIES LTD
http://statistics.data.gov.uk/doc/local-authority/00DA,Leeds City Council,Central & Corporate Functions,Commercial Services Trading Services,Supplies and Services,Operational Materials,205,21-Jan-2011,1101-00719,624.25,R,BOILER & HEATING SUPPLIES LTD
http://statistics.data.gov.uk/doc/local-authority/00DA,Leeds City Council,Central & Corporate Functions,Commercial Services Trading Services,Supplies and Services,Operational Materials,205,21-Jan-2011,1101-00720,595.00,R,BOILER & HEATING SUPPLIES LTD
http://statistics.data.gov.uk/doc/local-authority/00DA,Leeds City Council,Central & Corporate Functions,Commercial Services Trading Services,Supplies and Services,Operational Materials,205,21-Jan-2011,1101-00721,794.80,R,BOILER & HEATING SUPPLIES LTD
http://statistics.data.gov.uk/doc/local-authority/00DA,Leeds City Council,Central & Corporate Functions,Commercial Services Trading Services,Supplies and Services,Operational Materials,205,21-Jan-2011,1101-00722,640.50,R,BOILER & HEATING SUPPLIES LTD
http://statistics.data.gov.uk/doc/local-authority/00DA,Leeds City Council,City Development,Recreation,Capital,CONSTRUCTION,3,05-Jan-2011,1101-00723,464.94,C,BOLT AND NUT SUPPLIES LTD
http://statistics.data.gov.uk/doc/local-authority/00DA,Leeds City Council,Central & Corporate Functions,Commercial Services Trading Services,Premises,Plant and Machinery,102,05-Jan-2011,1101-00724,1163.00,R,BOLTON GATE SERVICES LTD
http://statistics.data.gov.uk/doc/local-authority/00DA,Leeds City Council,Central & Corporate Functions,Commercial Services Trading Services,Premises,Plant and Machinery,102,13-Jan-2011,1101-00725,583.50,R,BOLTON GATE SERVICES LTD
http://statistics.data.gov.uk/doc/local-authority/00DA,Leeds City Council,City Development,Libraries Arts & Heritage,Supplies and Services,Resaleable Materials,204,07-Jan-2011,1101-00726,1926.90,R,BOOK TOKENS LTD
http://statistics.data.gov.uk/doc/local-authority/00DA,Leeds City Council,City Development,Libraries Arts & Heritage,Supplies and Services,Books & Audio-Visual Materials,206,20-Jan-2011,1101-00727,424.54,R,BOOKSCAN LIBRARY SERVICES
http://statistics.data.gov.uk/doc/local-authority/00DA,Leeds City Council,Childrens Services,Children - Commissioning And Social Work,Supplies and Services,Publication And Promotion,267,14-Jan-2011,1101-00728,8268.37,R,BOOKTRUST
http://statistics.data.gov.uk/doc/local-authority/00DA,Leeds City Council,Childrens Services,Children Looked After,Supplies and Services,Publication And Promotion,267,14-Jan-2011,1101-00729,2750.00,R,BOOKTRUST
http://statistics.data.gov.uk/doc/local-authority/00DA,Leeds City Council,Adult Social Care,Services For Older People - 65 And Over,Third Party Payments,Residential Care Emi,571,19-Jan-2011,1101-00730,2441.00,R,Boroughbridge Lodge
http://statistics.data.gov.uk/doc/local-authority/00DA,Aire Valley Homes Leeds    ,Aire Valley Homes Leeds,Aire Valley Homes Leeds,Supplies and Services,Conference Fees,253,04-Jan-2011,1101-00731,2680.00,R,BOUTIQUE CATERING LTD
http://statistics.data.gov.uk/doc/local-authority/00DA,Leeds City Council,Environment & Neighbourhoods,Community Safety,Capital,CONSTRUCTION,3,10-Jan-2011,1101-00732,5835.09,C,BPS LTD
http://statistics.data.gov.uk/doc/local-authority/00DA,Leeds City Council,Central & Corporate Functions,Corporate Governance,Supplies and Services,Other Hired And Contracted Services,265,31-Jan-2011,1101-00733,5232.50,R,BPS LTD
http://statistics.data.gov.uk/doc/local-authority/00DA,Leeds City Council,Other Education Services Managed By E.L.,Other Education Services Managed By E.L.,Supplies and Services,Schools related grant expenditure,299,31-Jan-2011,1101-00734,3350.00,R,BPS LTD
http://statistics.data.gov.uk/doc/local-authority/00DA,Leeds City Council,Environment & Neighbourhoods,Housing Needs,Third Party Payments,Supporting Ppl - Block Gross Chargeable,514,04-Jan-2011,1101-00735,1088.52,R,BRADFORD AND NORTHERN HOUSING
http://statistics.data.gov.uk/doc/local-authority/00DA,Leeds City Council,Environment & Neighbourhoods,Housing Needs,Third Party Payments,Supporting Ppl - Block Gross Chargeable,514,31-Jan-2011,1101-00736,1100.80,R,BRADFORD AND NORTHERN HOUSING
http://statistics.data.gov.uk/doc/local-authority/00DA,Leeds City Council,Childrens Services,Intergrated Youth Support  Service,Employees,Central Training,079,28-Jan-2011,1101-00737,1250.00,R,Bradford Chamber Of Commerce & Industry
http://statistics.data.gov.uk/doc/local-authority/00DA,Leeds City Council,Central & Corporate Functions,Commercial Services Trading Services,Supplies and Services,Food & Drink,231,13-Jan-2011,1101-00738,448.80,R,BRADFORD COUNCIL
http://statistics.data.gov.uk/doc/local-authority/00DA,Leeds City Council,Adult Social Care,Services For Older People - 65 And Over,Third Party Payments,Nursing Home,570,19-Jan-2011,1101-00739,1970.36,R,BRADFORD INDEPENDENT (ST IVES) LTD
http://statistics.data.gov.uk/doc/local-authority/00DA,Leeds City Council,Adult Social Care,Services For Older People Under 65 P/Dis,Third Party Payments,Nursing Home,570,19-Jan-2011,1101-00740,12332.52,R,BRADFORD INDEPENDENT (ST IVES) LTD
http://statistics.data.gov.uk/doc/local-authority/00DA,Leeds City Council,Adult Social Care,Services For Adults Under 65 Mental/Dis,Third Party Payments,Residential,580,19-Jan-2011,1101-00741,1469.80,R,BRADFORD INDEPENDENT (ST IVES) LTD
http://statistics.data.gov.uk/doc/local-authority/00DA,Leeds City Council,Adult Social Care,Services For Older People Under 65 P/Dis,Third Party Payments,Residential,580,19-Jan-2011,1101-00742,1933.88,R,BRADFORD INDEPENDENT (ST IVES) LTD
http://statistics.data.gov.uk/doc/local-authority/00DA,Leeds City Council,Adult Social Care,Services For Adults Under 65 Mental/Dis,Third Party Payments,Nursing Home,570,19-Jan-2011,1101-00743,1551.76,R,BRADFORD INDEPENDENT HEALTH CARE
http://statistics.data.gov.uk/doc/local-authority/00DA,Leeds City Council,Adult Social Care,Services For Adults Under 65 Mental/Dis,Third Party Payments,Nursing Home,570,19-Jan-2011,1101-00744,21173.44,R,BRADFORD INDEPENDENT HEALTH CARE
http://statistics.data.gov.uk/doc/local-authority/00DA,Leeds City Council,Adult Social Care,Services For Older People - 65 And Over,Third Party Payments,Nursing Home,570,19-Jan-2011,1101-00745,4335.56,R,BRADFORD INDEPENDENT HEALTH CARE
http://statistics.data.gov.uk/doc/local-authority/00DA,Leeds City Council,Adult Social Care,Services For Older People - 65 And Over,Third Party Payments,Nursing Home,570,19-Jan-2011,1101-00746,15053.68,R,BRADFORD INDEPENDENT HEALTH CARE
http://statistics.data.gov.uk/doc/local-authority/00DA,Leeds City Council,Adult Social Care,Services For Older People - 65 And Over,Third Party Payments,Residential Care Emi,571,19-Jan-2011,1101-00747,1638.68,R,BRADFORD INDEPENDENT HEALTH CARE
http://statistics.data.gov.uk/doc/local-authority/00DA,Leeds City Council,Adult Social Care,Services For Older People - 65 And Over,Third Party Payments,Residential Care Emi,571,19-Jan-2011,1101-00748,1745.68,R,BRADFORD INDEPENDENT HEALTH CARE
http://statistics.data.gov.uk/doc/local-authority/00DA,Leeds City Council,Adult Social Care,Services For Older People - 65 And Over,Third Party Payments,Nursing Care Emi,574,19-Jan-2011,1101-00749,5612.44,R,BRADFORD INDEPENDENT HEALTH CARE
http://statistics.data.gov.uk/doc/local-authority/00DA,Leeds City Council,Adult Social Care,Services For Older People - 65 And Over,Third Party Payments,Nursing Care Emi,574,19-Jan-2011,1101-00750,3256.60,R,BRADFORD INDEPENDENT HEALTH CARE
http://statistics.data.gov.uk/doc/local-authority/00DA,Leeds City Council,Adult Social Care,Services For Adults Under 65 Mental/Dis,Third Party Payments,Residential,580,19-Jan-2011,1101-00751,1147.96,R,BRADFORD INDEPENDENT HEALTH CARE
http://statistics.data.gov.uk/doc/local-authority/00DA,Leeds City Council,Adult Social Care,Services For Older People - 65 And Over,Third Party Payments,Residential,580,19-Jan-2011,1101-00752,1102.24,R,BRADFORD INDEPENDENT HEALTH CARE
http://statistics.data.gov.uk/doc/local-authority/00DA,Leeds City Council as Accountable Body,Social Services Pooled Budgets,Jcs For People With Learning Disabilitie,Third Party Payments,Nursing Home,570,19-Jan-2011,1101-00753,1818.60,R,BRADFORD INDEPENDENT HEALTH CARE
http://statistics.data.gov.uk/doc/local-authority/00DA,Leeds City Council,Adult Social Care,Services For Adults Under 65 Mental/Dis,Third Party Payments,Nursing Home,570,19-Jan-2011,1101-00754,1431.00,R,BRADFORD INDEPENDENT HEALTH CARE OWLETT
http://statistics.data.gov.uk/doc/local-authority/00DA,Leeds City Council,Adult Social Care,Services For Older People - 65 And Over,Third Party Payments,Nursing Home,570,19-Jan-2011,1101-00755,28743.48,R,BRADFORD INDEPENDENT HEALTH CARE OWLETT
http://statistics.data.gov.uk/doc/local-authority/00DA,Leeds City Council,Adult Social Care,Services For Older People - 65 And Over,Third Party Payments,Residential,580,19-Jan-2011,1101-00756,1004.96,R,BRADFORD INDEPENDENT HEALTH CARE OWLETT
http://statistics.data.gov.uk/doc/local-authority/00DA,Aire Valley Homes Leeds    ,Aire Valley Homes Leeds,E. Offices,Premises,H.R.A. - Special Maintenance,106,05-Jan-2011,1101-00757,474.15,R,BRADLEY ENVIRONMENTAL CONSULTANTS
http://statistics.data.gov.uk/doc/local-authority/00DA,Leeds City Council,Environment & Neighbourhoods,South South East,Capital,CONSTRUCTION,3,20-Jan-2011,1101-00758,632.20,C,BRADLEY ENVIRONMENTAL CONSULTANTS
http://statistics.data.gov.uk/doc/local-authority/00DA,Aire Valley Homes Leeds    ,Aire Valley Homes Leeds,S. Offices,Premises,H.R.A. - Special Maintenance,106,20-Jan-2011,1101-00759,1106.35,R,BRADLEY ENVIRONMENTAL CONSULTANTS
http://statistics.data.gov.uk/doc/local-authority/00DA,West North West  Homes Leeds,West - North West,Corporate Services,Premises,General Maintenance,104,20-Jan-2011,1101-00760,750.00,R,BRADLEY ENVIRONMENTAL CONSULTANTS
http://statistics.data.gov.uk/doc/local-authority/00DA,West North West  Homes Leeds,West - North West,Property And Maintenance,Premises,H.R.A. - Special Maintenance,106,20-Jan-2011,1101-00761,8599.05,R,BRADLEY ENVIRONMENTAL CONSULTANTS
http://statistics.data.gov.uk/doc/local-authority/00DA,Leeds City Council,Environment & Neighbourhoods,South South East,Capital,CONSTRUCTION,3,27-Jan-2011,1101-00762,632.20,C,BRADLEY ENVIRONMENTAL CONSULTANTS
http://statistics.data.gov.uk/doc/local-authority/00DA,Leeds City Council,Environment & Neighbourhoods,South South East,Capital,CONSTRUCTION,3,27-Jan-2011,1101-00763,632.20,C,BRADLEY ENVIRONMENTAL CONSULTANTS
http://statistics.data.gov.uk/doc/local-authority/00DA,Leeds City Council,Environment & Neighbourhoods,South South East,Capital,CONSTRUCTION,3,27-Jan-2011,1101-00764,632.20,C,BRADLEY ENVIRONMENTAL CONSULTANTS
http://statistics.data.gov.uk/doc/local-authority/00DA,Leeds City Council,Adult Social Care,Services For Older People Under 65 P/Dis,Third Party Payments,Home Care,568,06-Jan-2011,1101-00765,4606.91,R,BRAIN INJURY REHABILITATION TRUST
http://statistics.data.gov.uk/doc/local-authority/00DA,Leeds City Council,Adult Social Care,Services For Older People Under 65 P/Dis,Third Party Payments,Home Care,568,06-Jan-2011,1101-00766,1606.87,R,BRAIN INJURY REHABILITATION TRUST
http://statistics.data.gov.uk/doc/local-authority/00DA,Leeds City Council,Adult Social Care,Services For Older People Under 65 P/Dis,Third Party Payments,Home Care,568,06-Jan-2011,1101-00767,4606.91,R,BRAIN INJURY REHABILITATION TRUST
http://statistics.data.gov.uk/doc/local-authority/00DA,Leeds City Council,Adult Social Care,Services For Older People Under 65 P/Dis,Third Party Payments,Home Care,568,06-Jan-2011,1101-00768,4458.30,R,BRAIN INJURY REHABILITATION TRUST
http://statistics.data.gov.uk/doc/local-authority/00DA,Leeds City Council,Adult Social Care,Services For Older People Under 65 P/Dis,Third Party Payments,Home Care,568,06-Jan-2011,1101-00769,4458.26,R,BRAIN INJURY REHABILITATION TRUST
http://statistics.data.gov.uk/doc/local-authority/00DA,Leeds City Council,Adult Social Care,Services For Older People Under 65 P/Dis,Third Party Payments,Home Care,568,07-Jan-2011,1101-00770,646.00,R,BRAIN INJURY REHABILITATION TRUST
http://statistics.data.gov.uk/doc/local-authority/00DA,Leeds City Council,Adult Social Care,Services For Older People Under 65 P/Dis,Third Party Payments,Home Care,568,07-Jan-2011,1101-00771,646.00,R,BRAIN INJURY REHABILITATION TRUST
http://statistics.data.gov.uk/doc/local-authority/00DA,Leeds City Council,Adult Social Care,Services For Older People - 65 And Over,Third Party Payments,Sheltered Accommodation,569,19-Jan-2011,1101-00772,4356.52,R,BRAIN INJURY REHABILITATION TRUST
http://statistics.data.gov.uk/doc/local-authority/00DA,Leeds City Council,Adult Social Care,Services For Older People Under 65 P/Dis,Third Party Payments,Sheltered Accommodation,569,19-Jan-2011,1101-00773,4448.00,R,BRAIN INJURY REHABILITATION TRUST
http://statistics.data.gov.uk/doc/local-authority/00DA,Leeds City Council,Adult Social Care,Services For Older People Under 65 P/Dis,Third Party Payments,Sheltered Accommodation,569,19-Jan-2011,1101-00774,9241.80,R,Brain Injury Rehabilitation Trust
http://statistics.data.gov.uk/doc/local-authority/00DA,Leeds City Council,Adult Social Care,Services For Adults Under 65 Mental/Dis,Third Party Payments,Nursing Home,570,19-Jan-2011,1101-00775,3782.20,R,BRAIN INJURY REHABILITATION TRUST
http://statistics.data.gov.uk/doc/local-authority/00DA,Leeds City Council,Adult Social Care,Services For Older People Under 65 P/Dis,Third Party Payments,Residential,580,19-Jan-2011,1101-00776,4642.96,R,BRAIN INJURY REHABILITATION TRUST
http://statistics.data.gov.uk/doc/local-authority/00DA,Leeds City Council,Adult Social Care,Services For Older People - 65 And Over,Third Party Payments,Sheltered Accommodation,569,28-Jan-2011,1101-00777,12255.24,R,BRAIN INJURY REHABILITATION TRUST
http://statistics.data.gov.uk/doc/local-authority/00DA,Leeds City Council,Adult Social Care,Services For Older People Under 65 P/Dis,Third Party Payments,Home Care,568,06-Jan-2011,1101-00778,4458.30,R,BRAIN INJURY REHABILLITATION TRUST
http://statistics.data.gov.uk/doc/local-authority/00DA,Leeds City Council,Adult Social Care,Services For Older People Under 65 P/Dis,Third Party Payments,Home Care,568,14-Jan-2011,1101-00779,4442.12,R,BRAIN INJURY REHABILLITATION TRUST
http://statistics.data.gov.uk/doc/local-authority/00DA,Leeds City Council as Accountable Body,Social Services Pooled Budgets,Jcs For People With Learning Disabilitie,Third Party Payments,Home Care,568,21-Jan-2011,1101-00780,1551.82,R,BRAIN INJURY REHABILLITATION TRUST
http://statistics.data.gov.uk/doc/local-authority/00DA,Leeds City Council,Central & Corporate Functions,Commercial Services Trading Services,Supplies and Services,Provisions,231,28-Oct-2010,1101-00781,1104.60,R,brake bros ltd
http://statistics.data.gov.uk/doc/local-authority/00DA,Leeds City Council,Central & Corporate Functions,Commercial Services Trading Services,Supplies and Services,Provisions,231,02-Nov-2010,1101-00782,1188.00,R,brake bros ltd
http://statistics.data.gov.uk/doc/local-authority/00DA,Leeds City Council,Central & Corporate Functions,Commercial Services Trading Services,Supplies and Services,Provisions,231,04-Nov-2010,1101-00783,4187.10,R,brake bros ltd
http://statistics.data.gov.uk/doc/local-authority/00DA,Leeds City Council,Central & Corporate Functions,Commercial Services Trading Services,Supplies and Services,Provisions,231,09-Nov-2010,1101-00784,624.00,R,brake bros ltd
http://statistics.data.gov.uk/doc/local-authority/00DA,Leeds City Council,Central & Corporate Functions,Commercial Services Trading Services,Supplies and Services,Provisions,231,16-Nov-2010,1101-00785,1803.60,R,brake bros ltd
http://statistics.data.gov.uk/doc/local-authority/00DA,Leeds City Council,Central & Corporate Functions,Commercial Services Trading Services,Supplies and Services,Provisions,231,23-Nov-2010,1101-00786,4187.10,R,brake bros ltd
http://statistics.data.gov.uk/doc/local-authority/00DA,Leeds City Council,Central & Corporate Functions,Commercial Services Trading Services,Supplies and Services,Provisions,231,23-Nov-2010,1101-00787,1188.00,R,brake bros ltd
http://statistics.data.gov.uk/doc/local-authority/00DA,Leeds City Council,Central & Corporate Functions,Commercial Services Trading Services,Supplies and Services,Provisions,231,25-Nov-2010,1101-00788,624.00,R,brake bros ltd
http://statistics.data.gov.uk/doc/local-authority/00DA,Leeds City Council,Central & Corporate Functions,Commercial Services Trading Services,Supplies and Services,Provisions,231,25-Nov-2010,1101-00789,1104.60,R,brake bros ltd
http://statistics.data.gov.uk/doc/local-authority/00DA,Leeds City Council,Childrens Services,Youth Justice,Supplies and Services,Provisions,231,07-Dec-2010,1101-00790,1292.98,R,brake bros ltd
http://statistics.data.gov.uk/doc/local-authority/00DA,Leeds City Council,Central & Corporate Functions,Commercial Services Trading Services,Supplies and Services,Provisions,231,07-Dec-2010,1101-00791,1951.20,R,brake bros ltd
http://statistics.data.gov.uk/doc/local-authority/00DA,Leeds City Council,Childrens Services,Youth Justice,Supplies and Services,Provisions,231,09-Dec-2010,1101-00792,1657.19,R,brake bros ltd
http://statistics.data.gov.uk/doc/local-authority/00DA,Leeds City Council,Central & Corporate Functions,Commercial Services Trading Services,Supplies and Services,Provisions,231,09-Dec-2010,1101-00793,1608.00,R,brake bros ltd
http://statistics.data.gov.uk/doc/local-authority/00DA,Leeds City Council,Central & Corporate Functions,Commercial Services Trading Services,Supplies and Services,Provisions,231,09-Dec-2010,1101-00794,1104.60,R,brake bros ltd
http://statistics.data.gov.uk/doc/local-authority/00DA,Leeds City Council,City Development,Libraries Arts & Heritage,Supplies and Services,Provisions,231,14-Dec-2010,1101-00795,620.96,R,brake bros ltd
http://statistics.data.gov.uk/doc/local-authority/00DA,Leeds City Council,Central & Corporate Functions,Commercial Services Trading Services,Supplies and Services,Provisions,231,16-Dec-2010,1101-00796,819.56,R,brake bros ltd
http://statistics.data.gov.uk/doc/local-authority/00DA,Leeds City Council,Central & Corporate Functions,Commercial Services Trading Services,Supplies and Services,Provisions,231,16-Dec-2010,1101-00797,1188.00,R,brake bros ltd
http://statistics.data.gov.uk/doc/local-authority/00DA,Leeds City Council,City Development,Libraries Arts & Heritage,Supplies and Services,Provisions,231,21-Dec-2010,1101-00798,473.87,R,brake bros ltd
http://statistics.data.gov.uk/doc/local-authority/00DA,Leeds City Council,Childrens Services,Youth Justice,Supplies and Services,Provisions,231,23-Dec-2010,1101-00799,1296.10,R,brake bros ltd
http://statistics.data.gov.uk/doc/local-authority/00DA,Leeds City Council,Childrens Services,Youth Justice,Supplies and Services,Provisions,231,30-Dec-2010,1101-00800,952.33,R,brake bros ltd
http://statistics.data.gov.uk/doc/local-authority/00DA,Leeds City Council,City Development,Libraries Arts & Heritage,Supplies and Services,Provisions,231,30-Dec-2010,1101-00801,548.81,R,brake bros ltd
http://statistics.data.gov.uk/doc/local-authority/00DA,Leeds City Council,Central & Corporate Functions,Commercial Services Trading Services,Supplies and Services,Food & Drink,231,07-Jan-2011,1101-00802,542.74,R,BRAKE BROS LTD
http://statistics.data.gov.uk/doc/local-authority/00DA,Leeds City Council,Central & Corporate Functions,Commercial Services Trading Services,Supplies and Services,Food & Drink,231,07-Jan-2011,1101-00803,633.66,R,BRAKE BROS LTD
http://statistics.data.gov.uk/doc/local-authority/00DA,Leeds City Council,Central & Corporate Functions,Commercial Services Trading Services,Supplies and Services,Food & Drink,231,07-Jan-2011,1101-00804,466.18,R,BRAKE BROS LTD
http://statistics.data.gov.uk/doc/local-authority/00DA,Leeds City Council,Central & Corporate Functions,Commercial Services Trading Services,Supplies and Services,Food & Drink,231,13-Jan-2011,1101-00805,492.00,R,BRAKE BROS LTD
http://statistics.data.gov.uk/doc/local-authority/00DA,Leeds City Council,Central & Corporate Functions,Commercial Services Trading Services,Supplies and Services,Food & Drink,231,28-Jan-2011,1101-00806,555.37,R,BRAKE BROS LTD
http://statistics.data.gov.uk/doc/local-authority/00DA,Leeds City Council,Central & Corporate Functions,Commercial Services Trading Services,Supplies and Services,Food & Drink,231,28-Jan-2011,1101-00807,914.70,R,BRAKE BROS LTD
http://statistics.data.gov.uk/doc/local-authority/00DA,Leeds City Council,Central & Corporate Functions,Commercial Services Trading Services,Supplies and Services,Operational Materials,205,13-Jan-2011,1101-00808,715.00,R,Brakes Catering Equipment
http://statistics.data.gov.uk/doc/local-authority/00DA,Leeds City Council,Childrens Services,Early Years Service,Third Party Payments,Services Rendered By Voluntary Sector,505,07-Jan-2011,1101-00809,3140.12,R,BRAMHAM UNDER FIVES
http://statistics.data.gov.uk/doc/local-authority/00DA,Leeds City Council,Environment & Neighbourhoods,Regeneration,Supplies and Services,'Well Being' Large Grants Projects,230,14-Jan-2011,1101-00810,2500.00,R,BRAMLEY ELDERLY ACTION
http://statistics.data.gov.uk/doc/local-authority/00DA,Leeds City Council,Childrens Services,Children Looked After,Third Party Payments,Contact,548,18-Jan-2011,1101-00811,502.79,R,BRAMLEY FAMILY SUPPORT PROJECT
http://statistics.data.gov.uk/doc/local-authority/00DA,Leeds City Council,Childrens Services,Children Looked After,Third Party Payments,Contact,548,18-Jan-2011,1101-00812,495.90,R,BRAMLEY FAMILY SUPPORT PROJECT
http://statistics.data.gov.uk/doc/local-authority/00DA,Leeds City Council,Adult Social Care,Services For Older People - 65 And Over,Third Party Payments,Nursing Home,570,19-Jan-2011,1101-00813,28677.65,R,BRANDON HOUSE
http://statistics.data.gov.uk/doc/local-authority/00DA,Leeds City Council,Adult Social Care,Services For Older People - 65 And Over,Third Party Payments,Residential,580,19-Jan-2011,1101-00814,1150.60,R,BRANDON HOUSE
http://statistics.data.gov.uk/doc/local-authority/00DA,Leeds City Council,Central & Corporate Functions,Commercial Services Trading Services,Transport,Fuel (Non LCC Supplies),321,11-Jan-2011,1101-00815,460.00,R,Brenntag Uk Limited
http://statistics.data.gov.uk/doc/local-authority/00DA,Leeds City Council,Central & Corporate Functions,Commercial Services Trading Services,Transport,Fuel (Non LCC Supplies),321,11-Jan-2011,1101-00816,460.00,R,Brenntag Uk Limited
http://statistics.data.gov.uk/doc/local-authority/00DA,Leeds City Council,Central & Corporate Functions,Commercial Services Trading Services,Transport,Fuel (Non LCC Supplies),321,11-Jan-2011,1101-00817,460.00,R,Brenntag Uk Limited
http://statistics.data.gov.uk/doc/local-authority/00DA,Leeds City Council,Central & Corporate Functions,Commercial Services Trading Services,Transport,Fuel (Non LCC Supplies),321,28-Jan-2011,1101-00818,455.00,R,Brenntag Uk Limited
http://statistics.data.gov.uk/doc/local-authority/00DA,Leeds City Council,Childrens Services,Early Years Service,Third Party Payments,Services Rendered By Other Organisations,511,07-Jan-2011,1101-00819,16572.12,R,Bright Beginnings Childcare Centre
http://statistics.data.gov.uk/doc/local-authority/00DA,Leeds City Council,Childrens Services,Early Years Service,Third Party Payments,Services Rendered By Other Organisations,511,07-Jan-2011,1101-00820,7261.53,R,BRIGHT HORIZONS FAMILY SOLUTIONS
http://statistics.data.gov.uk/doc/local-authority/00DA,Leeds City Council,Childrens Services,Children Looked After,Third Party Payments,Fostering - Placement Support,550,05-Jan-2011,1101-00821,760.00,R,BRIGHT SKIES DAY NURSEY
http://statistics.data.gov.uk/doc/local-authority/00DA,Leeds City Council,Childrens Services,Early Years Service,Third Party Payments,Services Rendered By Other Organisations,511,07-Jan-2011,1101-00822,10693.27,R,BRIGHT SKIES DAY NURSEY
http://statistics.data.gov.uk/doc/local-authority/00DA,Leeds City Council,Childrens Services,Early Years Service,Third Party Payments,Services Rendered By Voluntary Sector,505,07-Jan-2011,1101-00823,16943.57,R,BRIGHT SPARKS PRE-SCHOOL
http://statistics.data.gov.uk/doc/local-authority/00DA,Leeds City Council,Adult Social Care,Services For Older People - 65 And Over,Third Party Payments,Residential Care Emi,571,19-Jan-2011,1101-00824,1208.96,R,BRIGSHAW HOUSE
http://statistics.data.gov.uk/doc/local-authority/00DA,Leeds City Council,Adult Social Care,Services For Older People - 65 And Over,Third Party Payments,Residential,580,19-Jan-2011,1101-00825,2257.28,R,BRIGSHAW HOUSE
http://statistics.data.gov.uk/doc/local-authority/00DA,Leeds City Council,City Development,Recreation,Supplies and Services,Operational Materials,205,05-Jan-2011,1101-00826,652.50,R,BRINKMAN (HORTICULTURAL SERVICES) UK LTD
http://statistics.data.gov.uk/doc/local-authority/00DA,Leeds City Council,Environment & Neighbourhoods,Health & Environmental Action,Premises,Maintenance Of Buildings,101,14-Jan-2011,1101-00827,3450.00,R,Britannia Business Services Ltd
http://statistics.data.gov.uk/doc/local-authority/00DA,West North West  Homes Leeds,West - North West,Customer And Tenancy,Premises,General Maintenance,104,21-Jan-2011,1101-00828,2495.00,R,Britannia Business Services Ltd
http://statistics.data.gov.uk/doc/local-authority/00DA,Leeds City Council,Central & Corporate Functions,Commercial Services Trading Services,Transport,Vehicle Spares,345,17-Jan-2011,1101-00829,587.68,R,BRITANNIA COOLING LTD
http://statistics.data.gov.uk/doc/local-authority/00DA,Aire Valley Homes Leeds    ,Aire Valley Homes Leeds,Aire Valley Homes Leeds,Premises,General Maintenance,104,19-Jan-2011,1101-00830,474.29,R,Britannia Movers of Leeds
http://statistics.data.gov.uk/doc/local-authority/00DA,Leeds City Council,Adult Social Care,Services For Adults Under 65 Mental/Dis,Third Party Payments,Residential,580,19-Jan-2011,1101-00831,1900.00,R,BRITANNIA NURSING HOME
http://statistics.data.gov.uk/doc/local-authority/00DA,Leeds City Council,Adult Social Care,Social Services Support Services,Employees,Central Training,079,05-Jan-2011,1101-00832,885.00,R,BRITISH AGENCIES FOR ADOPTION &
http://statistics.data.gov.uk/doc/local-authority/00DA,Leeds City Council,Central & Corporate Functions,Executive Support,Supplies and Services,Educational Visit,269,21-Dec-2010,1101-00833,443.06,R,british airw125174504496
http://statistics.data.gov.uk/doc/local-authority/00DA,Leeds City Council,Adult Social Care,Services For Adults Under 65 Learn/Dis,Premises,Gas,123,25-Jan-2011,1101-00834,593.51,R,BRITISH GAS
http://statistics.data.gov.uk/doc/local-authority/00DA,West North West  Homes Leeds,West - North West,Corporate Services,Premises,Gas,123,12-Jan-2011,1101-00835,705.35,R,BRITISH GAS BUSINESS
http://statistics.data.gov.uk/doc/local-authority/00DA,West North West  Homes Leeds,West - North West,Customer And Tenancy,Premises,Gas,123,12-Jan-2011,1101-00836,-545.30,R,BRITISH GAS BUSINESS
http://statistics.data.gov.uk/doc/local-authority/00DA,East North East Homes Leeds,East - North East,Technical Services,Premises,H.R.A. - Repairs A To P,107,07-Jan-2011,1101-00837,2890.30,R,BRITISH GAS SERVICE LTD
http://statistics.data.gov.uk/doc/local-authority/00DA,East North East Homes Leeds,East - North East,Technical Services,Premises,H.R.A. - Repairs A To P,107,07-Jan-2011,1101-00838,2890.30,R,BRITISH GAS SERVICE LTD
http://statistics.data.gov.uk/doc/local-authority/00DA,Leeds City Council,Environment & Neighbourhoods,West North West,Capital,CONSTRUCTION,3,04-Jan-2011,1101-00839,3450.61,C,BRITISH GAS SERVICES LTD
http://statistics.data.gov.uk/doc/local-authority/00DA,Leeds City Council,Environment & Neighbourhoods,West North West,Capital,CONSTRUCTION,3,04-Jan-2011,1101-00840,16060.93,C,BRITISH GAS SERVICES LTD
http://statistics.data.gov.uk/doc/local-authority/00DA,Leeds City Council,Environment & Neighbourhoods,East North East,Capital,CONSTRUCTION,3,04-Jan-2011,1101-00841,69306.50,C,BRITISH GAS SERVICES LTD
http://statistics.data.gov.uk/doc/local-authority/00DA,Leeds City Council,Environment & Neighbourhoods,East North East,Capital,CONSTRUCTION,3,04-Jan-2011,1101-00842,46357.00,C,BRITISH GAS SERVICES LTD
http://statistics.data.gov.uk/doc/local-authority/00DA,Leeds City Council,Environment & Neighbourhoods,Belle Isle,Capital,CONSTRUCTION,3,04-Jan-2011,1101-00843,2805.00,C,BRITISH GAS SERVICES LTD
http://statistics.data.gov.uk/doc/local-authority/00DA,Leeds City Council,Environment & Neighbourhoods,West North West,Capital,CONSTRUCTION,3,04-Jan-2011,1101-00844,11513.58,C,BRITISH GAS SERVICES LTD
http://statistics.data.gov.uk/doc/local-authority/00DA,Leeds City Council,Environment & Neighbourhoods,West North West,Capital,CONSTRUCTION,3,12-Jan-2011,1101-00845,3144.45,C,BRITISH GAS SERVICES LTD
http://statistics.data.gov.uk/doc/local-authority/00DA,Leeds City Council,Environment & Neighbourhoods,West North West,Capital,CONSTRUCTION,3,12-Jan-2011,1101-00846,6793.13,C,BRITISH GAS SERVICES LTD
http://statistics.data.gov.uk/doc/local-authority/00DA,Leeds City Council,Environment & Neighbourhoods,East North East,Capital,CONSTRUCTION,3,14-Jan-2011,1101-00847,21555.00,C,BRITISH GAS SERVICES LTD
http://statistics.data.gov.uk/doc/local-authority/00DA,Leeds City Council,Environment & Neighbourhoods,West North West,Capital,CONSTRUCTION,3,19-Jan-2011,1101-00848,2998.71,C,BRITISH GAS SERVICES LTD
http://statistics.data.gov.uk/doc/local-authority/00DA,Leeds City Council,Environment & Neighbourhoods,West North West,Capital,CONSTRUCTION,3,19-Jan-2011,1101-00849,15967.62,C,BRITISH GAS SERVICES LTD
http://statistics.data.gov.uk/doc/local-authority/00DA,Leeds City Council,Environment & Neighbourhoods,East North East,Capital,CONSTRUCTION,3,19-Jan-2011,1101-00850,53583.00,C,BRITISH GAS SERVICES LTD
http://statistics.data.gov.uk/doc/local-authority/00DA,Leeds City Council,Environment & Neighbourhoods,West North West,Capital,CONSTRUCTION,3,19-Jan-2011,1101-00851,15640.48,C,BRITISH GAS SERVICES LTD
http://statistics.data.gov.uk/doc/local-authority/00DA,Leeds City Council,Environment & Neighbourhoods,West North West,Capital,CONSTRUCTION,3,20-Jan-2011,1101-00852,2799.50,C,BRITISH GAS SERVICES LTD
http://statistics.data.gov.uk/doc/local-authority/00DA,Leeds City Council,Environment & Neighbourhoods,West North West,Capital,CONSTRUCTION,3,20-Jan-2011,1101-00853,16236.11,C,BRITISH GAS SERVICES LTD
http://statistics.data.gov.uk/doc/local-authority/00DA,Leeds City Council,Environment & Neighbourhoods,South South East,Capital,CONSTRUCTION,3,20-Jan-2011,1101-00854,11524.00,C,BRITISH GAS SERVICES LTD
http://statistics.data.gov.uk/doc/local-authority/00DA,Leeds City Council,Environment & Neighbourhoods,West North West,Capital,CONSTRUCTION,3,20-Jan-2011,1101-00855,19139.31,C,BRITISH GAS SERVICES LTD
http://statistics.data.gov.uk/doc/local-authority/00DA,Leeds City Council,Environment & Neighbourhoods,South South East,Capital,CONSTRUCTION,3,27-Jan-2011,1101-00856,31882.00,C,BRITISH GAS SERVICES LTD
http://statistics.data.gov.uk/doc/local-authority/00DA,Leeds City Council,Environment & Neighbourhoods,South South East,Capital,CONSTRUCTION,3,27-Jan-2011,1101-00857,18286.00,C,BRITISH GAS SERVICES LTD
http://statistics.data.gov.uk/doc/local-authority/00DA,Leeds City Council,City Development,Highways,Capital,CONSTRUCTION,3,07-Jan-2011,1101-00858,1923.56,C,BRITISH TELECOM
http://statistics.data.gov.uk/doc/local-authority/00DA,Leeds City Council,Adult Social Care,Other Generic Services,Supplies and Services,Telephones,213,07-Jan-2011,1101-00859,854.43,R,BRITISH TELECOM
http://statistics.data.gov.uk/doc/local-authority/00DA,Leeds City Council,City Development,Highways,Capital,CONSTRUCTION,3,14-Jan-2011,1101-00860,31402.55,C,BRITISH TELECOM
http://statistics.data.gov.uk/doc/local-authority/00DA,Leeds City Council,Adult Social Care,Other Generic Services,Supplies and Services,Telephones,213,25-Jan-2011,1101-00861,520.10,R,BRITISH TELECOM
http://statistics.data.gov.uk/doc/local-authority/00DA,Leeds City Council,Adult Social Care,Other Generic Services,Supplies and Services,Telephones,213,25-Jan-2011,1101-00862,668.70,R,BRITISH TELECOM
http://statistics.data.gov.uk/doc/local-authority/00DA,Leeds City Council,City Development,Highways,Capital,OTHER COSTS,7,27-Jan-2011,1101-00863,713.68,C,BRITISH TELECOM
http://statistics.data.gov.uk/doc/local-authority/00DA,Leeds City Council,City Development,Highways,Capital,CONSTRUCTION,3,27-Jan-2011,1101-00864,7840.04,C,BRITISH TELECOM
http://statistics.data.gov.uk/doc/local-authority/00DA,Leeds City Council,Childrens Services,Support Services,Supplies and Services,Telephones,213,04-Jan-2011,1101-00865,15736.51,R,BRITISH TELECOM BT/BACS
http://statistics.data.gov.uk/doc/local-authority/00DA,Leeds City Council,Adult Social Care,Social Services Support Services,Supplies and Services,Telephones,213,24-Jan-2011,1101-00866,42195.88,R,BRITISH TELECOM BT/BACS
http://statistics.data.gov.uk/doc/local-authority/00DA,West North West  Homes Leeds,West - North West,Corporate Services,Supplies and Services,Telephones,213,24-Jan-2011,1101-00867,3565.14,R,BRITISH TELECOM BT/BACS
http://statistics.data.gov.uk/doc/local-authority/00DA,Leeds City Council,Environment & Neighbourhoods,Housing Needs,Supplies and Services,Telephones,213,27-Jan-2011,1101-00868,20768.83,R,BRITISH TELECOM BT/BACS
http://statistics.data.gov.uk/doc/local-authority/00DA,Leeds City Council,City Development,Highways,Supplies and Services,Operational Furniture And Equipment,203,28-Jan-2011,1101-00869,-16622.39,R,BRITISH TELECOM BT/BACS
http://statistics.data.gov.uk/doc/local-authority/00DA,Leeds City Council,City Development,Highways,Supplies and Services,Operational Furniture And Equipment,203,28-Jan-2011,1101-00870,44529.44,R,BRITISH TELECOM BT/BACS
http://statistics.data.gov.uk/doc/local-authority/00DA,Leeds City Council,City Development,Highways,Supplies and Services,Operational Furniture And Equipment,203,28-Jan-2011,1101-00871,-2998.66,R,BRITISH TELECOM BT/BACS
http://statistics.data.gov.uk/doc/local-authority/00DA,Leeds City Council,City Development,Highways,Supplies and Services,Operational Furniture And Equipment,203,28-Jan-2011,1101-00872,17929.16,R,BRITISH TELECOM BT/BACS
http://statistics.data.gov.uk/doc/local-authority/00DA,Leeds City Council,Central & Corporate Functions,Information Technology,Supplies and Services,Computer Software & Equipment,214,28-Jan-2011,1101-00873,1878.34,R,BRITISH TELECOM BT/BACS
http://statistics.data.gov.uk/doc/local-authority/00DA,Leeds City Council,Central & Corporate Functions,Information Technology,Supplies and Services,Telephones,213,31-Jan-2011,1101-00874,67106.71,R,BRITISH TELECOM BT/BACS
http://statistics.data.gov.uk/doc/local-authority/00DA,Leeds City Council,Central & Corporate Functions,Commercial Services Trading Services,Supplies and Services,Telephones,213,31-Jan-2011,1101-00875,2965.25,R,BRITISH TELECOM BT/BACS
http://statistics.data.gov.uk/doc/local-authority/00DA,Leeds City Council,Other Education Services Managed By E.L.,Primary Schools,Capital,CONSTRUCTION,3,07-Jan-2011,1101-00876,42068.71,C,Britspace Modular Buildings Limited
http://statistics.data.gov.uk/doc/local-authority/00DA,Leeds City Council,Central & Corporate Functions,Customer Services,Capital,FURNITURE AND EQUIPMENT,5,21-Jan-2011,1101-00877,432.30,C,Bronte Water Coolers Limited
http://statistics.data.gov.uk/doc/local-authority/00DA,Leeds City Council,Adult Social Care,Services For Older People - 65 And Over,Third Party Payments,Residential Care Emi,571,19-Jan-2011,1101-00878,3707.36,R,BROOKLANDS RESIDENTIAL HOME
